Workbook

Sheet Dashboard
A1: Investment Tracker v5.0
F3: YTD Statistics | I3: History | N3: Lifetime Statistics | R3: Costs
F5: Datum | G5: =Actual!B1 -> 2023-02-11 | I5: Year | J5: 2022 | L5: << Choose Year | N5: Total Dividend EUR | P5: =DividendAmountPeriod("1-1-"&YearStart,$G$5) -> 1266.61 | R5: Year | S5: =$J$5 -> 2022
F6: Current Portfolio | G6: =Actual!B7 -> 40378.366 | I6: Dividend | J6: =IFERROR(YearTotal("DIVCA", J5), 0) -> 733.7402091 | N6: Total Buy | P6: =COUNTIF(Transactions!$B$1:'Transactions'!$B$9755,"BUY") -> 37 | R6: Cost | S6: =IFERROR(CostPerPeriod("01-01-"&S5,"31-12-"&S5,S5),0) -> 252
F7: Since Last | G7: =Actual!I7 -> -0.005221786869 | I7: (+) / (-) | J7: =IFERROR(DeltaYear(DATE(J5,12,31), Triggerfield), 0) -> 12000 | N7: Total Sell | P7: =COUNTIF(Transactions!$B$1:'Transactions'!$B$9755,"SELL") -> 0 | R7: - Servicefee | S7: =IFERROR(ServiceFeePerPeriod("01-01-"&S5,"31-12-"&S5,S5),0) -> 180
F8: Realised YTD | G8: =Actual!G7 -> 0 | I8: End Value | J8: =IFERROR(MostRecentPortfolio(DATE(J5, 12, 31), Triggerfield), 0) -> 37061.604 | N8: Total Dividend | P8: =COUNTIF(Transactions!$B$1:'Transactions'!$B$9755,"DIVCA") -> 31 | R8: - Transactions | S8: =IFERROR(TransactionFeePerPeriod("01-01-"&S5,"31-12-"&S5,S5),0) -> 72
F9: Unrealised YTD | G9: =Actual!H7 -> 2343.462 | I9: ROI | J9: =IFERROR(PortROIYTD(DATE(J5,12,31),Triggerfield),0) -> -0.08924390121 | N9: Total Inflow | P9: =G29 -> 37750 | R9: Percentages
F10: ROI YTD | G10: =Actual!K7 -> 0.06323153202 | I10: XIRR | J10: =IFERROR(XIRRPortPeriod(DATE(J5,1,1),DATE(J5,12,31), Triggerfield),0) -> -0.1014036771 | R10: Cost % | S10: =IFERROR(S6/G30,0) -> 0.005974466326
F11: XIRR 1Y | G11: =Actual!M7 -> -0.008083239198 | I11: Total Cost | J11: =CostPerPeriod("01-01-"&J5,"31-12-"&J5, J5) -> 252 | R11: Servicefee % | S11: =IFERROR(S7/S$6,0) -> 0.7142857143
F12: Cost YTD | G12: =CostPerPeriod("01-01-"&FinYear,$G$5,$G$5) -> 21 | I12: Dividend % | J12: =IFERROR(J6/J8,"n/a") -> 0.01979785357 | R12: Transactions % | S12: =IFERROR(S8/S$6,0) -> 0.2857142857
F14: ="Developed by Geldnerd 2015 - " & FinYear & ". All rights reserved." -> Developed by Geldnerd 2015 - 2023. All rights reserved.
F24: Actual Portfolio | G24: EUR | H24: % | L24: Where's the Market? | O24: Transactions
F26: Stocks | G26: =(MostRecentPortfolio($G$5, Triggerfield)-BondValue($G$5, Triggerfield)) -> 38750.446 | H26: =G26/SUM(G$26:G$28) -> 0.9187033124 | J26: Virtual High | L26: =PortfolioVirtualHighV2($G$5) -> 43127.5955 | N26: Jaar | O26: =J5 -> 2022
F27: Bonds | G27: =BondValue($G$5, Triggerfield) -> 1627.92 | H27: =G27/SUM(G$26:G$28) -> 0.03859505246 | J27: Date High | L27: =PortfolioVirtualHighDateV2($G$5) -> 2022-04-23
F28: Cash | G28: =BalanceEUR($G$5,Triggerfield)+(BalanceUSD($G$5,Triggerfield)/RateUSD($G$5,Triggerfield)) -> 1801.133601 | H28: =G28/SUM(G$26:G$28) -> 0.0427016351 | J28: Inflow since High | L28: =InflowBetweenDates(L27,$G$5) -> 9000 | N28: Buy | O28: =COUNTIFS(Transactions!$B$1:'Transactions'!$B$9755,"BUY",Transactions!$A$1:'Transactions'!$A$9755,">=1-1-"&$J$5,Transactions!$A$1:'Transactions'!$A$9755,"<=31-12-"&$J$5) -> 12
F29: Total Inflow | G29: =InvestAmount("01-01-" & YearStart,$G$5,Triggerfield) -> 37750 | J29: Current EUR +/- | L29: =$G$30-$L$26 -> -948.0958987 | N29: Sell | O29: =COUNTIFS(Transactions!$B$1:'Transactions'!$B$9755,"SELL",Transactions!$A$1:'Transactions'!$A$9755,">=1-1-"&$J$5,Transactions!$A$1:'Transactions'!$A$9755,"<=31-12-"&$J$5) -> 0
F30: Total Current | G30: =Actual!B7+Actual!C7+(Actual!D7/RateUSD($G$5,Triggerfield)) -> 42179.4996 | H30: =(G30/G29)-1 -> 0.1173377378 | J30: Current % +/- | L30: =L29/(L26+L28) -> -0.01818798449 | N30: Dividend | O30: =COUNTIFS(Transactions!$B$1:'Transactions'!$B$9755,"DIVCA",Transactions!$A$1:'Transactions'!$A$9755,">=1-1-"&$J$5,Transactions!$A$1:'Transactions'!$A$9755,"<=31-12-"&$J$5) -> 12
F31: Cost YTD | G31: =CostPerPeriod("01-01-"&FinYear,$G$5,$G$5) -> 21 | H31: =G31/G30 -> 0.0004978721938

Sheet Actual
A1: Actual Portfolio | B1: =MAX(TotalValue!$E$1:'TotalValue'!$WQL$1) -> 2023-02-11
D2: 1
B4: Value | C4: Balance | D4: Balance | E4: Realised | F4: Unrealised | G4: Realised | H4: Unrealised | I4: Since | J4: ROI | K4: ROI | L4: XIRR | M4: XIRR | N4: XIRR | O4: Delta | P4: Inlay | Q4: Value vs
B5: EUR | C5: EUR | D5: USD | E5: Total | F5: Total | G5: YTD | H5: YTD | I5: Last | J5: Total | K5: YTD | L5: Total | M5: 1Y | N5: 3M | O5: Year | P5: EUR | Q5: Inlay
A7: Total Portfolio Statistics | B7: =MostRecentPortfolio($B$1,Triggerfield) -> 40378.366 | C7: =BalanceEUR($B$1,Triggerfield) -> 1724.447285 | D7: =BalanceUSD($B$1,Triggerfield) -> 81.86264165 | E7: =PortTotalRealised($B$1,Triggerfield) -> 1266.61 | F7: =PortTotalUnrealised($B$1,Triggerfield) -> 3741.696 | G7: =PortYTDRealised($B$1,Triggerfield) -> 0 | H7: =PortYTDUnrealised($B$1,Triggerfield) -> 2343.462 | I7: =SinceLastPort($B$1,Triggerfield) -> -0.005221786869 | J7: =PortRoiTotal($B$1,Triggerfield) -> 0.1367019983 | K7: =PortROIYTD($B$1,Triggerfield) -> 0.06323153202 | L7: =XIRRPortTotal($B$1,Triggerfield) -> 0.08534419239 | M7: =XIRRPortPeriod($B$1-365,$B$1,Triggerfield) -> -0.008083239198 | N7: =XIRRPortPeriod($B$1-91,$B$1,Triggerfield) -> 0.004394218326 | O7: =DeltaYear($B$1,Triggerfield) -> 1000 | P7: =InvestAmount("01-01-" & YearStart,$B$1,Triggerfield) -> 37750 | Q7: =((B7-P7)/P7) -> 0.0696255894
A10: Name (Curr) (Acro) | B10: Position | C10: Value | D10: Realised | E10: Unrealised | F10: Price | G10: RealCost | H10: Highest | I10: Lowest | J10: S/L | K10: AVG200 | L10: SinceLast | M10: ROI Total | N10: ROI YTD | O10: XIRR Total | P10: XIRR 1Y | Q10: Days | R10: TA
A11: iShares MSCI World Small Cap (EUR) (IUSN) | B11: 720 | C11: 4404.96 | D11: 0 | E11: 298.74 | F11: 6.118 | G11: 6.118 | H11: 6.752 | I11: 3.2365 | J11: -0.09389810427 | K11: 5.923064516 | L11: -0.01513200258 | M11: 0.07275304294 | N11: 0.08475177305 | O11: 0.04266404212 | P11: 0.02862279117 | Q11: 899 | R11: ▼
A12: VanEck Dev Markets Dividend Leaders ETF (EUR) (TDIV) | B12: 190 | C12: 6859.95 | D12: 442.64 | E12: 1845.33 | F12: 36.105 | G12: 33.77531579 | H12: 36.105 | I12: 20.155 | J12: 0 | K12: 33.89403226 | L12: 0.007956448911 | M12: 0.4562598961 | N12: 0.05231710871 | O12: 0.2024824321 | P12: 0.1542947233 | Q12: 1081 | R12: ▲
A13: Vanguard FTSE All-World Hi Div Yld (EUR) (VHYL) | B13: 72 | C13: 4074.336 | D13: 218.87 | E13: 220.556 | F13: 56.588 | G13: 53.54813889 | H13: 58.98 | I13: 37.036 | J13: -0.04055612072 | K13: 55.78045161 | L13: 0.001734820322 | M13: 0.1140246719 | N13: 0.03523471516 | O13: 0.07387316525 | P13: 0.03226875365 | Q13: 687 | R13: ▼
A14: Vanguard FTSE All-World UCITS ETF (EUR) (VWRL) | B14: 236 | C14: 23411.2 | D14: 605.1 | E14: 1716.29 | F14: 99.2 | G14: 96.63601695 | H14: 109.76 | I14: 62.81 | J14: -0.09620991254 | K14: 97.79741935 | L14: -0.007900790079 | M14: 0.1070015962 | N14: 0.0717049154 | O14: 0.07763621509 | P14: -0.05953778923 | Q14: 1110 | R14: ▼
A15: Xtrackers II Global Gov Bond UCITS ETF (EUR) (DBZB) | B15: 8 | C15: 1627.92 | D15: 0 | E15: -339.22 | F15: 203.49 | G15: 203.49 | H15: 246.69 | I15: 198.97 | J15: -0.1751185699 | K15: 206.5303226 | L15: -0.01156069364 | M15: -0.1724432425 | N15: 0.01138170974 | O15: -0.07397908866 | P15: -0.1163417038 | Q15: 991 | R15: ▼

Sheet Advisor
A1: Advisor | E1: =MostRecent(Triggerfield) -> 2023-02-11
A4: Category | B4: Category | C4: Category | D4: Fund | E4: Index | F4: =Portfolio!F1 -> Name (Curr) (Acro) | G4: ISIN | H4: Actual | I4: Optimal | J4: Delta | K4: ROI | L4: Dividend | M4: TA | N4: Dividend | O4: Actual | P4: Optimal | Q4: Remarks | S4: Acronym
B5: Weight | C5: Value | D5: Weight | J5: (+ = Buy) | K5: YTD | L5: 1Y | O5: % | P5: %
A7: Core Portfolio
A9: Shares | B9: 0.7 | C9: =B9*$H$15 -> 28264.8562 | D9: 0.8 | E9: World Large Cap | F9: =Portfolio!F2 -> Vanguard FTSE All-World UCITS ETF (EUR) (VWRL) | G9: IE00B3RBWM25 | H9: =FundValue($E$1,G9,Triggerfield) -> 23411.2 | I9: =$C$9*D9 -> 22611.88496 | J9: =I9-H9 -> -799.31504 | K9: =FundRoiYTD($E$1,G9,Triggerfield) -> 0.0717049154 | L9: =DividendReturnDays($E$1, G9, 365, Triggerfield) -> 0.01975806452 | M9: =TechSignal($E$1,G9,Triggerfield) -> ▼ | N9: Q | O9: =H9/H$15 -> 0.5797956262 | P9: =I9/$H$15 -> 0.56 | S9: =Portfolio!C2 -> VWRL
D10: 0.2 | E10: World Small Cap | F10: =Portfolio!F3 -> iShares MSCI World Small Cap (EUR) (IUSN) | G10: IE00BF4RFH31 | H10: =FundValue($E$1,G10,Triggerfield) -> 4404.96 | I10: =$C$9*D10 -> 5652.97124 | J10: 1248.01124 | K10: =FundRoiYTD($E$1,G10,Triggerfield) -> 0.08475177305 | L10: =DividendReturnDays($E$1, G10, 365, Triggerfield) -> 0 | M10: =TechSignal($E$1,G10,Triggerfield) -> ▼ | N10: - | O10: =H10/H$15 -> 0.1090920816 | P10: =I10/$H$15 -> 0.14 | S10: =Portfolio!C3 -> IUSN
A11: Bonds | B11: 0.05 | C11: =B11*$H$15 -> 2018.9183 | D11: 1 | E11: Obligaties Wereld | F11: =Portfolio!F5 -> Xtrackers II Global Gov Bond UCITS ETF (EUR) (DBZB) | G11: LU0378818131 | H11: =FundValue($E$1,G11,Triggerfield) -> 1627.92 | I11: =C11*D11 -> 2018.9183 | J11: 390.9983 | K11: =FundRoiYTD($E$1,G11,Triggerfield) -> 0.01138170974 | L11: =DividendReturnDays($E$1, G11, 365, Triggerfield) -> 0 | M11: =TechSignal($E$1,G11,Triggerfield) -> ▼ | N11: - | O11: =H11/H$15 -> 0.04031663887 | P11: =I11/$H$15 -> 0.05 | S11: =Portfolio!C5 -> DBZB
A12: Dividend | B12: 0.25 | C12: =B12*$H$15 -> 10094.5915 | D12: 0.7 | E12: Morningstar Div Leaders | F12: =Portfolio!F4 -> VanEck Dev Markets Dividend Leaders ETF (EUR) (TDIV) | G12: NL0011683594 | H12: =FundValue($E$1,G12,Triggerfield) -> 6859.95 | I12: =C$12*D12 -> 7066.21405 | J12: =I12-H12 -> 206.26405 | K12: =FundRoiYTD($E$1,G12,Triggerfield) -> 0.05231710871 | L12: =DividendReturnDays($E$1, G12, 365, Triggerfield) -> 0.03656003324 | M12: =TechSignal($E$1,G12,Triggerfield) -> ▲ | N12: Q | O12: =H12/H$15 -> 0.1698917187 | P12: =I12/$H$15 -> 0.175 | S12: =Portfolio!C4 -> TDIV
D13: 0.3 | E13: MSCI World High Div. Yield NR USD | F13: =Portfolio!F6 -> Vanguard FTSE All-World Hi Div Yld (EUR) (VHYL) | G13: IE00B8GKDB10 | H13: =FundValue($E$1,G13,Triggerfield) -> 4074.336 | I13: =C$12*D13 -> 3028.37745 | J13: =I13-H13 -> -1045.95855 | K13: =FundRoiYTD($E$1,G13,Triggerfield) -> 0.03523471516 | L13: =DividendReturnDays($E$1, G13, 365, Triggerfield) -> 0.0369336255 | M13: =TechSignal($E$1,G13,Triggerfield) -> ▼ | N13: Q | O13: =H13/H$15 -> 0.1009039345 | P13: =I13/$H$15 -> 0.075 | S13: =Portfolio!C6 -> VHYL
C15: =SUM(C9:C14) -> 40378.366 | H15: =SUM(H9:H14) -> 40378.366 | O15: =SUM(O9:O14) -> 1 | P15: =SUM(P9:P14) -> 1
E19: First buy : | F19: =BuyAdvice(9,15,Triggerfield) -> iShares MSCI World Small Cap (EUR) (IUSN)
E20: Second buy : | F20: =SecondBuyAdvice(9,15,Triggerfield) -> Xtrackers II Global Gov Bond UCITS ETF (EUR) (DBZB)

Sheet Charts
A1: Charts
B4: Chart | C4: Inflow 2
B5: Term | C5: 3Y
B8: IUSN | C8: iShares MSCI World Small Cap | E8: TRUE
B9: ISPA | C9: iShares STOXX Global Select Dividend 100 UCITS ETF | E9: FALSE
B10: TDIV | C10: VanEck Dev Markets Dividend Leaders ETF | E10: TRUE
B11: VHYL | C11: Vanguard FTSE All-World Hi Div Yld | E11: TRUE
B12: VWRL | C12: Vanguard FTSE All-World UCITS ETF | E12: TRUE
B13: DBZB | C13: Xtrackers II Global Gov Bond UCITS ETF | E13: TRUE

Sheet Fund
A1: Fund Info
B3: Fund | C3: Vanguard FTSE All-World UCITS ETF
B4: ISIN | C4: IE00B3RBWM25
B5: Acronym | C5: VWRL | D5: Currency | E5: EUR
B7: Term | C7: 5Y | D7: Chart | E7: Price/Value
A13: Indicatoren
B15: Positie | C15: 1028 | D15: Hoog | E15: 109.76
B16: Koers | C16: 99.99 | D16: Laag | E16: 62.81
B17: Waarde | C17: 102789.72 | D17: AVG200 | E17: 97.73903226
B18: Realised | C18: 4621.26 | D18: S/L | E18: -0.08901239067
B19: Unrealised | C19: 18517.01 | D19: Divid. Totaal | E19: 0.05483696917
B20: ROI Totaal | C20: 0.2745642095 | D20: Divid. Totaal | E20: 4621.26
B21: XIRR Totaal | C21: 0.09813569188 | D21: Divid. YTD | E21: 0
B22: Avg Buy Price | C22: 81.97734436 | D22: Divid. YTD | E22: 0
B23: Avg Sell Price | C23: 0 | D23: Divid. 1Y | E23: 0.0196019602
B24: Real Cost | C24: 95.49461089 | D24: Yield on Cost | E24: 0.02390904481
D25: Netto Inleg | E25: 84272.71
B30: Datum | C30: Actie | D30: Aantal | E30: Koers | F30: Totaal
B32: 2018-05-07 | C32: BUY | D32: 45 | E32: 70.99 | F32: -3206.84
B33: 2018-06-21 | C33: DIVCA | D33: 45 | E33: 0 | F33: 0
B34: 2018-07-05 | C34: DIVCA | D34: 45 | E34: 0.5286666667 | F34: 23.79
B35: 2018-08-27 | C35: BUY | D35: 15 | E35: 74.53 | F35: -1123.95
B36: 2018-09-25 | C36: BUY | D36: 50 | E36: 74.4392 | F36: -3727.96
B37: 2018-10-10 | C37: DIVCA | D37: 110 | E37: 0.4557 | F37: 50.13
B38: 2018-10-26 | C38: BUY | D38: 20 | E38: 69.33 | F38: -1392.6
B39: 2018-11-26 | C39: BUY | D39: 20 | E39: 69.91 | F39: -1404.2
B40: 2018-12-27 | C40: BUY | D40: 20 | E40: 64.43 | F40: -1294.6
B41: 2019-01-09 | C41: DIVCA | D41: 150 | E41: 0.3331333333 | F41: 49.97
B42: 2019-03-26 | C42: BUY | D42: 10 | E42: 73.95 | F42: -745.5
B43: 2019-04-10 | C43: DIVCA | D43: 180 | E43: 0.39174 | F43: 70.51
B44: 2019-06-25 | C44: BUY | D44: 20 | E44: 76.15 | F44: -1529
B45: 2019-07-10 | C45: DIVCA | D45: 200 | E45: 0 | F45: 129.43
B46: 2019-08-28 | C46: BUY | D46: 325 | E46: 74.85 | F46: -24351.58
B47: 2019-09-25 | C47: BUY | D47: 30 | E47: 78 | F47: -2346
B48: 2019-10-09 | C48: DIVCA | D48: 555 | E48: 0.415982 | F48: 230.87
B49: 2019-10-25 | C49: BUY | D49: 20 | E49: 78.71 | F49: -1580.2
B50: 2019-12-27 | C50: DIVCA | D50: 575 | E50: 0.2973 | F50: 170.95
B51: 2019-12-27 | C51: BUY | D51: 17 | E51: 84.28 | F51: -1438.76
B52: 2020-01-27 | C52: BUY | D52: 13 | E52: 83.97 | F52: -1097.61
B53: 2020-03-25 | C53: BUY | D53: 55 | E53: 65.87 | F53: -3628.85
B54: 2020-04-08 | C54: DIVCA | D54: 660 | E54: 0.4083030303 | F54: 269.48
B55: 2020-06-24 | C55: DIVCA | D55: 660 | E55: 0.381197 | F55: 251.59
B56: 2020-06-25 | C56: BUY | D56: 20 | E56: 76.31 | F56: -1532.2
B57: 2020-09-25 | C57: BUY | D57: 19 | E57: 77.71 | F57: -1482.49
B58: 2020-10-07 | C58: DIVCA | D58: 680 | E58: 0.4546323529 | F58: 309.15
B59: 2020-12-28 | C59: BUY | D59: 16 | E59: 86.6 | F59: -1391.6
B60: 2020-12-30 | C60: DIVCA | D60: 699 | E60: 0.3128 | F60: 218.66
B61: 2021-01-25 | C61: BUY | D61: 15 | E61: 90.63 | F61: -1365.45
B62: 2021-03-31 | C62: DIVCA | D62: 730 | E62: 0.338 | F62: 246.75
B63: 2021-05-25 | C63: BUY | D63: 10 | E63: 95.82 | F63: -964.2
B64: 2021-06-25 | C64: BUY | D64: 85 | E64: 99.25 | F64: -8444.69
B65: 2021-07-01 | C65: DIVCA | D65: 740 | E65: 0.4902 | F65: 362.72
B66: 2021-09-27 | C66: BUY | D66: 15 | E66: 102.5 | F66: -1543.5
B67: 2021-09-29 | C67: DIVCA | D67: 825 | E67: 0.3868969697 | F67: 319.19
B68: 2021-12-29 | C68: DIVCA | D68: 840 | E68: 0.4087619048 | F68: 343.36
B69: 2022-01-25 | C69: BUY | D69: 12 | E69: 102.3 | F69: -1227.6
B70: 2022-02-28 | C70: BUY | D70: 14 | E70: 101.66 | F70: -1424.79
B71: 2022-03-24 | C71: BUY | D71: 12 | E71: 105.22 | F71: -1268.64
B72: 2022-03-30 | C72: DIVCA | D72: 866 | E72: 0.2941454965 | F72: 254.73
B73: 2022-04-22 | C73: BUY | D73: 15 | E73: 104.56 | F73: -1574.4
B74: 2022-05-24 | C74: BUY | D74: 12 | E74: 96.08 | F74: -1158.96
B75: 2022-06-27 | C75: BUY | D75: 20 | E75: 95.9 | F75: -1924
B76: 2022-06-29 | C76: DIVCA | D76: 905 | E76: 0.7946519337 | F76: 719.16
B77: 2022-07-25 | C77: BUY | D77: 24 | E77: 99.23 | F77: -2387.52
B78: 2022-08-25 | C78: BUY | D78: 11 | E78: 105.24 | F78: -1163.64
B79: 2022-09-28 | C79: DIVCA | D79: 960 | E79: 0.5187708333 | F79: 498.02
B80: 2022-10-25 | C80: BUY | D80: 21 | E80: 95.31 | F80: -2007.51
B81: 2022-11-25 | C81: BUY | D81: 12 | E81: 98.8 | F81: -1191.6
B82: 2022-12-27 | C82: BUY | D82: 16 | E82: 93.9 | F82: -1508.4
B83: 2022-12-28 | C83: DIVCA | D83: 993 | E83: 0.3555 | F83: 353
B84: 2023-01-25 | C84: BUY | D84: 19 | E84: 96.73 | F84: -1843.87
C85: Current Value | F85: 102789.72
C86: Current Balance | F86: 23388.47

Sheet Transactions
A1: Date | B1: Action | C1: Position | D1: ISIN | E1: Provider | F1: Currency | G1: Number | H1: Price/Share | I1: Commission | J1: Total | K1: 1 EUR = | L1: Remarks
A2: 2020-01-27 | B2: BUY | C2: Vanguard FTSE All-World UCITS ETF | D2: IE00B3RBWM25 | E2: Binck | F2: EUR | G2: 13 | H2: 83.97 | I2: 6 | J2: 1097.61 | K2: 1 | L2: Koop 13 stuks Vanguard FTSE All-World UCITS ETF @ 83,97
A3: 2020-02-25 | B3: BUY | C3: VanEck Dev Markets Dividend Leaders ETF | D3: NL0011683594 | E3: Binck | F3: EUR | G3: 35 | H3: 28.74 | I3: 6 | J3: 1011.9 | K3: 1 | L3: Koop 35 stuks VanEck Dev Markets Dividend Leaders ETF @ 28,74
A4: 2020-03-25 | B4: BUY | C4: Vanguard FTSE All-World UCITS ETF | D4: IE00B3RBWM25 | E4: Binck | F4: EUR | G4: 16 | H4: 65.87 | I4: 6 | J4: 1059.92 | K4: 1 | L4: Koop 16 stuks Vanguard FTSE All-World UCITS ETF @ 65,87
A5: 2020-03-25 | B5: DIVCA | C5: VanEck Dev Markets Dividend Leaders ETF | D5: NL0011683594 | E5: Binck | F5: EUR | G5: 35 | H5: 0.1444909091 | I5: 0 | J5: 5.057181818 | K5: 1 | L5: Dividenduitkering 35 stuks @ 0,144490909090909 VanEck Dev Markets Dividend Leaders ETF
A6: 2020-04-08 | B6: DIVCA | C6: Vanguard FTSE All-World UCITS ETF | D6: IE00B3RBWM25 | E6: Binck | F6: EUR | G6: 13 | H6: 0.4083030303 | I6: 0 | J6: 5.307939394 | K6: 1.086124 | L6: Dividenduitkering 13 stuks @ 0,40830303030303 Vanguard FTSE All-World UCITS ETF
A7: 2020-04-27 | B7: BUY | C7: Vanguard FTSE All-World UCITS ETF | D7: IE00B3RBWM25 | E7: Binck | F7: EUR | G7: 13 | H7: 71.83 | I7: 6 | J7: 939.79 | K7: 1 | L7: Koop 13 stuks Vanguard FTSE All-World UCITS ETF @ 71,83
A8: 2020-04-27 | B8: DIVCA | C8: VanEck Dev Markets Dividend Leaders ETF | D8: NL0011683594 | E8: Binck | F8: EUR | G8: 35 | H8: 0.3314909091 | I8: 0 | J8: 11.60218182 | K8: 1 | L8: Dividenduitkering 35 stuks @ 0,331490909090909 VanEck Dev Markets Dividend Leaders ETF
A9: 2020-05-25 | B9: BUY | C9: Xtrackers II Global Gov Bond UCITS ETF | D9: LU0378818131 | E9: Binck | F9: EUR | G9: 4 | H9: 243.7542857 | I9: 6 | J9: 981.0171429 | K9: 1 | L9: Koop 4 stuks Xtrackers II Global Gov Bond UCITS ETF @ 243,754285714286
A10: 2020-06-24 | B10: DIVCA | C10: Vanguard FTSE All-World UCITS ETF | D10: IE00B3RBWM25 | E10: Binck | F10: USD | G10: 42 | H10: 0.381197 | I10: 0 | J10: 16.010274 | K10: 1.125049 | L10: Dividenduitkering 42 stuks @ 0,381197 Vanguard FTSE All-World UCITS ETF
A11: 2020-06-25 | B11: BUY | C11: Vanguard FTSE All-World UCITS ETF | D11: IE00B3RBWM25 | E11: Binck | F11: EUR | G11: 13 | H11: 76.31 | I11: 6 | J11: 998.03 | K11: 1 | L11: Koop 13 stuks Vanguard FTSE All-World UCITS ETF @ 76,31
A12: 2020-07-27 | B12: BUY | C12: VanEck Dev Markets Dividend Leaders ETF | D12: NL0011683594 | E12: Binck | F12: EUR | G12: 45 | H12: 23.185 | I12: 6 | J12: 1049.325 | K12: 1 | L12: Koop 45 stuks VanEck Dev Markets Dividend Leaders ETF @ 23,185
A13: 2020-08-25 | B13: BUY | C13: iShares MSCI World Small Cap | D13: IE00BF4RFH31 | E13: Binck | F13: EUR | G13: 250 | H13: 4.47325 | I13: 6 | J13: 1124.3125 | K13: 1 | L13: Koop 250 stuks iShares MSCI World Small Cap @ 4,47325
A14: 2020-09-23 | B14: DIVCA | C14: VanEck Dev Markets Dividend Leaders ETF | D14: NL0011683594 | E14: Binck | F14: EUR | G14: 80 | H14: 0.2124941176 | I14: 0 | J14: 16.99952941 | K14: 1 | L14: Dividenduitkering 80 stuks @ 0,212494117647059 VanEck Dev Markets Dividend Leaders ETF
A15: 2020-09-25 | B15: BUY | C15: Vanguard FTSE All-World UCITS ETF | D15: IE00B3RBWM25 | E15: Binck | F15: EUR | G15: 12 | H15: 77.71 | I15: 6 | J15: 938.52 | K15: 1 | L15: Koop 12 stuks Vanguard FTSE All-World UCITS ETF @ 77,71
A16: 2020-10-07 | B16: DIVCA | C16: Vanguard FTSE All-World UCITS ETF | D16: IE00B3RBWM25 | E16: Binck | F16: USD | G16: 67 | H16: 0.4546323529 | I16: 0 | J16: 30.46036765 | K16: 1.176862 | L16: Dividenduitkering 67 stuks @ 0,454632352941176 Vanguard FTSE All-World UCITS ETF
A17: 2020-10-26 | B17: BUY | C17: VanEck Dev Markets Dividend Leaders ETF | D17: NL0011683594 | E17: Binck | F17: EUR | G17: 45 | H17: 22.94258621 | I17: 6.005 | J17: 1038.421379 | K17: 1 | L17: Koop 45 stuks VanEck Dev Markets Dividend Leaders ETF @ 22,9425862068966
A18: 2020-11-25 | B18: BUY | C18: Xtrackers II Global Gov Bond UCITS ETF | D18: LU0378818131 | E18: Binck | F18: EUR | G18: 4 | H18: 245.03 | I18: 6 | J18: 986.12 | K18: 1 | L18: Koop 4 stuks Xtrackers II Global Gov Bond UCITS ETF @ 245,03
A19: 2020-12-23 | B19: DIVCA | C19: VanEck Dev Markets Dividend Leaders ETF | D19: NL0011683594 | E19: Binck | F19: EUR | G19: 125 | H19: 0.1954974874 | I19: 0 | J19: 24.43718593 | K19: 1 | L19: Dividenduitkering 125 stuks @ 0,195497487437186 VanEck Dev Markets Dividend Leaders ETF
A20: 2020-12-28 | B20: BUY | C20: Vanguard FTSE All-World UCITS ETF | D20: IE00B3RBWM25 | E20: Binck | F20: EUR | G20: 12 | H20: 86.6 | I20: 6 | J20: 1045.2 | K20: 1 | L20: Koop 12 stuks Vanguard FTSE All-World UCITS ETF @ 86,6
A21: 2020-12-30 | B21: DIVCA | C21: Vanguard FTSE All-World UCITS ETF | D21: IE00B3RBWM25 | E21: Binck | F21: EUR | G21: 79 | H21: 0.3128 | I21: 0 | J21: 24.7112 | K21: 1.227227 | L21: Dividenduitkering 79 stuks @ 0,3128 Vanguard FTSE All-World UCITS ETF
A22: 2021-01-25 | B22: BUY | C22: Vanguard FTSE All-World UCITS ETF | D22: IE00B3RBWM25 | E22: Binck | F22: EUR | G22: 10 | H22: 90.63 | I22: 6 | J22: 912.3 | K22: 1 | L22: Koop 10 stuks Vanguard FTSE All-World UCITS ETF @ 90,63
A23: 2021-02-25 | B23: BUY | C23: VanEck Dev Markets Dividend Leaders ETF | D23: NL0011683594 | E23: Binck | F23: EUR | G23: 35 | H23: 27.165 | I23: 6 | J23: 956.775 | K23: 1 | L23: Koop 35 stuks VanEck Dev Markets Dividend Leaders ETF @ 27,165
A24: 2021-03-24 | B24: DIVCA | C24: VanEck Dev Markets Dividend Leaders ETF | D24: NL0011683594 | E24: Binck | F24: EUR | G24: 160 | H24: 0.187 | I24: 0 | J24: 29.92 | K24: 1 | L24: Dividenduitkering 160 stuks @ 0,187 VanEck Dev Markets Dividend Leaders ETF
A25: 2021-03-25 | B25: BUY | C25: Vanguard FTSE All-World Hi Div Yld | D25: IE00B8GKDB10 | E25: Binck | F25: EUR | G25: 19 | H25: 50.716 | I25: 6 | J25: 969.604 | K25: 1 | L25: Koop 19 stuks Vanguard FTSE All-World Hi Div Yld @ 50,716
A26: 2021-03-31 | B26: DIVCA | C26: Vanguard FTSE All-World UCITS ETF | D26: IE00B3RBWM25 | E26: Binck | F26: USD | G26: 89 | H26: 0.338 | I26: 0 | J26: 30.082 | K26: 1.172656 | L26: Dividenduitkering 89 stuks @ 0,338 Vanguard FTSE All-World UCITS ETF
A27: 2021-04-26 | B27: BUY | C27: Vanguard FTSE All-World Hi Div Yld | D27: IE00B8GKDB10 | E27: Saxo | F27: EUR | G27: 19 | H27: 51.46 | I27: 6 | J27: 983.74 | K27: 1 | L27: Koop 19 stuks Vanguard FTSE All-World Hi Div Yld @ 51,46
A28: 2021-05-25 | B28: BUY | C28: Vanguard FTSE All-World UCITS ETF | D28: IE00B3RBWM25 | E28: Saxo | F28: EUR | G28: 10 | H28: 95.82 | I28: 6 | J28: 964.2 | K28: 1 | L28: Koop 10 stuks Vanguard FTSE All-World UCITS ETF @ 95,82
A29: 2021-06-23 | B29: DIVCA | C29: VanEck Dev Markets Dividend Leaders ETF | D29: NL0011683594 | E29: Saxo | F29: EUR | G29: 160 | H29: 0.323 | I29: 0 | J29: 51.68 | K29: 1 | L29: Dividenduitkering 160 stuks @ 0,323 VanEck Dev Markets Dividend Leaders ETF
A30: 2021-06-25 | B30: BUY | C30: Vanguard FTSE All-World UCITS ETF | D30: IE00B3RBWM25 | E30: Saxo | F30: EUR | G30: 10 | H30: 99.25 | I30: 6 | J30: 998.5 | K30: 1 | L30: Koop 10 stuks Vanguard FTSE All-World UCITS ETF @ 99,25
A31: 2021-07-01 | B31: DIVCA | C31: Vanguard FTSE All-World UCITS ETF | D31: IE00B3RBWM25 | E31: Saxo | F31: EUR | G31: 109 | H31: 0.4902 | I31: 0 | J31: 53.4318 | K31: 1 | L31: Dividenduitkering 109 stuks @ 0,4902 Vanguard FTSE All-World UCITS ETF
A32: 2021-07-01 | B32: DIVCA | C32: Vanguard FTSE All-World Hi Div Yld | D32: IE00B8GKDB10 | E32: Saxo | F32: EUR | G32: 38 | H32: 0.5172 | I32: 0 | J32: 19.6536 | K32: 1 | L32: Dividenduitkering 38 stuks @ 0,5172 Vanguard FTSE All-World Hi Div Yld
A33: 2021-07-26 | B33: BUY | C33: iShares MSCI World Small Cap | D33: IE00BF4RFH31 | E33: Saxo | F33: EUR | G33: 160 | H33: 6.114 | I33: 6 | J33: 984.24 | K33: 1 | L33: Koop 160 stuks iShares MSCI World Small Cap @ 6,114
A34: 2021-08-25 | B34: BUY | C34: iShares MSCI World Small Cap | D34: IE00BF4RFH31 | E34: Saxo | F34: EUR | G34: 160 | H34: 6.267 | I34: 6 | J34: 1008.72 | K34: 1 | L34: Koop 160 stuks iShares MSCI World Small Cap @ 6,267
A35: 2021-09-22 | B35: DIVCA | C35: VanEck Dev Markets Dividend Leaders ETF | D35: NL0011683594 | E35: Saxo | F35: EUR | G35: 160 | H35: 0.272 | I35: 0 | J35: 43.52 | K35: 1 | L35: Dividenduitkering 160 stuks @ 0,272 VanEck Dev Markets Dividend Leaders ETF
A36: 2021-09-27 | B36: BUY | C36: Vanguard FTSE All-World UCITS ETF | D36: IE00B3RBWM25 | E36: Saxo | F36: EUR | G36: 10 | H36: 102.5 | I36: 6 | J36: 1031 | K36: 1 | L36: Koop 10 stuks Vanguard FTSE All-World UCITS ETF @ 102,5
A37: 2021-09-29 | B37: DIVCA | C37: Vanguard FTSE All-World UCITS ETF | D37: IE00B3RBWM25 | E37: Saxo | F37: EUR | G37: 119 | H37: 0.3868969697 | I37: 0 | J37: 46.04073939 | K37: 1 | L37: Dividenduitkering 119 stuks @ 0,38689696969697 Vanguard FTSE All-World UCITS ETF
A38: 2021-09-29 | B38: DIVCA | C38: Vanguard FTSE All-World Hi Div Yld | D38: IE00B8GKDB10 | E38: Saxo | F38: EUR | G38: 38 | H38: 0.438 | I38: 0 | J38: 16.644 | K38: 1 | L38: Dividenduitkering 38 stuks @ 0,438 Vanguard FTSE All-World Hi Div Yld
A39: 2021-10-25 | B39: BUY | C39: Vanguard FTSE All-World Hi Div Yld | D39: IE00B8GKDB10 | E39: Saxo | F39: EUR | G39: 17 | H39: 54.62 | I39: 6 | J39: 934.54 | K39: 1 | L39: Koop 17 stuks Vanguard FTSE All-World Hi Div Yld @ 54,62
A40: 2021-11-25 | B40: BUY | C40: Vanguard FTSE All-World Hi Div Yld | D40: IE00B8GKDB10 | E40: Saxo | F40: EUR | G40: 17 | H40: 56.4648 | I40: 6 | J40: 965.9016 | K40: 1 | L40: Koop 17 stuks Vanguard FTSE All-World Hi Div Yld @ 56,4648
A41: 2021-12-22 | B41: DIVCA | C41: VanEck Dev Markets Dividend Leaders ETF | D41: NL0011683594 | E41: Saxo | F41: EUR | G41: 160 | H41: 0.2634975845 | I41: 0 | J41: 42.15961353 | K41: 1 | L41: Dividenduitkering 160 stuks @ 0,263497584541063 VanEck Dev Markets Dividend Leaders ETF
A42: 2021-12-29 | B42: DIVCA | C42: Vanguard FTSE All-World UCITS ETF | D42: IE00B3RBWM25 | E42: Saxo | F42: EUR | G42: 119 | H42: 0.4087619048 | I42: 0 | J42: 48.64266667 | K42: 1 | L42: Dividenduitkering 119 stuks @ 0,408761904761905 Vanguard FTSE All-World UCITS ETF
A43: 2021-12-29 | B43: DIVCA | C43: Vanguard FTSE All-World Hi Div Yld | D43: IE00B8GKDB10 | E43: Saxo | F43: EUR | G43: 72 | H43: 0.4487 | I43: 0 | J43: 32.3064 | K43: 1 | L43: Dividenduitkering 72 stuks @ 0,4487 Vanguard FTSE All-World Hi Div Yld
A44: 2021-12-30 | B44: BUY | C44: iShares MSCI World Small Cap UCITS ETF | D44: IE00BF4RFH31 | E44: Saxo | F44: EUR | G44: 150 | H44: 6.553 | I44: 6 | J44: 988.95 | K44: 1 | L44: Koop 150 stuks iShares MSCI World Small Cap UCITS ETF @ 6,553
A45: 2022-01-25 | B45: BUY | C45: Vanguard FTSE All-World UCITS ETF | D45: IE00B3RBWM25 | E45: Saxo | F45: EUR | G45: 10 | H45: 102.3 | I45: 6 | J45: 1029 | K45: 1 | L45: Koop 10 stuks Vanguard FTSE All-World UCITS ETF @ 102,3
A46: 2022-02-28 | B46: BUY | C46: Vanguard FTSE All-World UCITS ETF | D46: IE00B3RBWM25 | E46: Saxo | F46: EUR | G46: 9 | H46: 101.66 | I46: 6 | J46: 920.94 | K46: 1 | L46: Koop 9 stuks Vanguard FTSE All-World UCITS ETF @ 101,66
A47: 2022-03-09 | B47: DIVCA | C47: VanEck Dev Markets Dividend Leaders ETF | D47: NL0011683594 | E47: Saxo | F47: EUR | G47: 160 | H47: 0.09349758454 | I47: 0 | J47: 14.95961353 | K47: 1 | L47: Dividenduitkering 160 stuks @ 0,0934975845410628 VanEck Dev Markets Dividend Leaders ETF
A48: 2022-03-24 | B48: BUY | C48: Vanguard FTSE All-World UCITS ETF | D48: IE00B3RBWM25 | E48: Saxo | F48: EUR | G48: 10 | H48: 105.22 | I48: 6 | J48: 1058.2 | K48: 1 | L48: Koop 10 stuks Vanguard FTSE All-World UCITS ETF @ 105,22
A49: 2022-03-30 | B49: DIVCA | C49: Vanguard FTSE All-World UCITS ETF | D49: IE00B3RBWM25 | E49: Saxo | F49: EUR | G49: 148 | H49: 0.2941454965 | I49: 0 | J49: 43.53353349 | K49: 1 | L49: Dividenduitkering 148 stuks @ 0,294145496535797 Vanguard FTSE All-World UCITS ETF
A50: 2022-03-30 | B50: DIVCA | C50: Vanguard FTSE All-World Hi Div Yld | D50: IE00B8GKDB10 | E50: Saxo | F50: EUR | G50: 72 | H50: 0.3172 | I50: 0 | J50: 22.8384 | K50: 1 | L50: Dividenduitkering 72 stuks @ 0,3172 Vanguard FTSE All-World Hi Div Yld
A51: 2022-04-22 | B51: BUY | C51: Vanguard FTSE All-World UCITS ETF | D51: IE00B3RBWM25 | E51: Saxo | F51: EUR | G51: 9 | H51: 104.56 | I51: 6 | J51: 947.04 | K51: 1 | L51: Koop 9 stuks Vanguard FTSE All-World UCITS ETF @ 104,56
A52: 2022-05-24 | B52: BUY | C52: Vanguard FTSE All-World UCITS ETF | D52: IE00B3RBWM25 | E52: Saxo | F52: EUR | G52: 10 | H52: 96.08 | I52: 6 | J52: 966.8 | K52: 1 | L52: Koop 10 stuks Vanguard FTSE All-World UCITS ETF @ 96,08
A53: 2022-06-08 | B53: DIVCA | C53: VanEck Dev Markets Dividend Leaders ETF | D53: NL0011683594 | E53: Saxo | F53: EUR | G53: 160 | H53: 0.7905024155 | I53: 0 | J53: 126.4803865 | K53: 1 | L53: Dividenduitkering 160 stuks @ 0,790502415458937 VanEck Dev Markets Dividend Leaders ETF
A54: 2022-06-27 | B54: BUY | C54: Vanguard FTSE All-World UCITS ETF | D54: IE00B3RBWM25 | E54: Saxo | F54: EUR | G54: 10 | H54: 95.9 | I54: 6 | J54: 965 | K54: 1 | L54: Koop 10 stuks Vanguard FTSE All-World UCITS ETF @ 95,9
A55: 2022-06-29 | B55: DIVCA | C55: Vanguard FTSE All-World UCITS ETF | D55: IE00B3RBWM25 | E55: Saxo | F55: EUR | G55: 177 | H55: 0.7946519337 | I55: 0 | J55: 140.6533923 | K55: 1 | L55: Dividenduitkering 177 stuks @ 0,794651933701657 Vanguard FTSE All-World UCITS ETF
A56: 2022-06-29 | B56: DIVCA | C56: Vanguard FTSE All-World Hi Div Yld | D56: IE00B8GKDB10 | E56: Saxo | F56: EUR | G56: 72 | H56: 0.8648 | I56: 0 | J56: 62.2656 | K56: 1 | L56: Dividenduitkering 72 stuks @ 0,8648 Vanguard FTSE All-World Hi Div Yld
A57: 2022-07-25 | B57: BUY | C57: Vanguard FTSE All-World UCITS ETF | D57: IE00B3RBWM25 | E57: Saxo | F57: EUR | G57: 10 | H57: 99.23 | I57: 6 | J57: 998.3 | K57: 1 | L57: Koop 10 stuks Vanguard FTSE All-World UCITS ETF @ 99,23
A58: 2022-08-25 | B58: BUY | C58: Vanguard FTSE All-World UCITS ETF | D58: IE00B3RBWM25 | E58: Saxo | F58: EUR | G58: 9 | H58: 105.24 | I58: 6 | J58: 953.16 | K58: 1 | L58: Koop 9 stuks Vanguard FTSE All-World UCITS ETF @ 105,24
A59: 2022-09-14 | B59: DIVCA | C59: VanEck Dev Markets Dividend Leaders ETF | D59: NL0011683594 | E59: Saxo | F59: EUR | G59: 160 | H59: 0.272 | I59: 0 | J59: 43.52 | K59: 1 | L59: Dividenduitkering 160 stuks @ 0,272 VanEck Dev Markets Dividend Leaders ETF
A60: 2022-09-26 | B60: BUY | C60: VanEck Dev Markets Dividend Leaders ETF | D60: NL0011683594 | E60: Saxo | F60: EUR | G60: 30 | H60: 31.74 | I60: 6 | J60: 958.2 | K60: 1 | L60: Koop 30 stuks VanEck Dev Markets Dividend Leaders ETF @ 31,74
A61: 2022-09-28 | B61: DIVCA | C61: Vanguard FTSE All-World UCITS ETF | D61: IE00B3RBWM25 | E61: Saxo | F61: EUR | G61: 196 | H61: 0.5187708333 | I61: 0 | J61: 101.6790833 | K61: 1 | L61: Dividenduitkering 196 stuks @ 0,518770833333333 Vanguard FTSE All-World UCITS ETF
A62: 2022-09-28 | B62: DIVCA | C62: Vanguard FTSE All-World Hi Div Yld | D62: IE00B8GKDB10 | E62: Saxo | F62: EUR | G62: 72 | H62: 0.517 | I62: 0 | J62: 37.224 | K62: 1 | L62: Dividenduitkering 72 stuks @ 0,517 Vanguard FTSE All-World Hi Div Yld
A63: 2022-10-25 | B63: BUY | C63: Vanguard FTSE All-World UCITS ETF | D63: IE00B3RBWM25 | E63: Saxo | F63: EUR | G63: 10 | H63: 95.31 | I63: 6 | J63: 959.1 | K63: 1 | L63: Koop 10 stuks Vanguard FTSE All-World UCITS ETF @ 95,31
A64: 2022-11-25 | B64: BUY | C64: Vanguard FTSE All-World UCITS ETF | D64: IE00B3RBWM25 | E64: Saxo | F64: EUR | G64: 10 | H64: 98.8 | I64: 6 | J64: 994 | K64: 1 | L64: Koop 10 stuks Vanguard FTSE All-World UCITS ETF @ 98,8
A65: 2022-12-14 | B65: DIVCA | C65: VanEck Dev Markets Dividend Leaders ETF | D65: NL0011683594 | E65: Saxo | F65: EUR | G65: 190 | H65: 0.17 | I65: 0 | J65: 32.3 | K65: 1 | L65: Dividenduitkering 190 stuks @ 0,2000 pre-tax VanEck Dev Markets Dividend Leaders ETF
A66: 2022-12-27 | B66: BUY | C66: Vanguard FTSE All-World UCITS ETF | D66: IE00B3RBWM25 | E66: Saxo | F66: EUR | G66: 10 | H66: 93.9 | I66: 6 | J66: 945 | K66: 1 | L66: Koop 10 stuks Vanguard FTSE All-World UCITS ETF @ 93,9
A67: 2022-12-28 | B67: DIVCA | C67: Vanguard FTSE All-World UCITS ETF | D67: IE00B3RBWM25 | E67: Saxo | F67: EUR | G67: 226 | H67: 0.3555 | I67: 0 | J67: 80.343 | K67: 1 | L67: Dividenduitkering 226 stuks @ 0,3785 pre-tax Vanguard FTSE All-World UCITS ETF
A68: 2022-12-28 | B68: DIVCA | C68: Vanguard FTSE All-World Hi Div Yld | D68: IE00B8GKDB10 | E68: Saxo | F68: EUR | G68: 72 | H68: 0.3881 | I68: 0 | J68: 27.9432 | K68: 1 | L68: Dividenduitkering 72 stuks @ 0,4131 pre-tax Vanguard FTSE All-World Hi Div Yld
A69: 2023-01-25 | B69: BUY | C69: Vanguard FTSE All-World UCITS ETF | D69: IE00B3RBWM25 | E69: Saxo | F69: EUR | G69: 10 | H69: 96.73 | I69: 6 | J69: 973.3 | K69: 1 | L69: Koop 10 stuks Vanguard FTSE All-World UCITS ETF @ 96,73

Sheet Cash
A1: Date | B1: Portfolio | C1: EUR | D1: USD | E1: Other | F1: 1 EUR = | G1: Remarks | H1: EURbal | I1: USDbal
A2: 2020-01-06 | B2: 0 | C2: 250 | D2: 0 | E2: -250 | F2: 1 | G2: Maandelijkse geldoverboeking van NL99RABO0123456789 G.E.L.D. Nerd | H2: =C2 -> 250 | I2: =D2 -> 0
A3: 2020-01-27 | B3: 0 | C3: 1000 | D3: 0 | E3: -1000 | F3: 1 | G3: Maandelijkse geldoverboeking van NL99RABO0123456789 G.E.L.D. Nerd | H3: =H2+C3 -> 1250 | I3: =I2+D3 -> 0
A4: 2020-01-27 | B4: 1097.61 | C4: -1097.61 | D4: 0 | E4: 0 | F4: 1 | G4: Koop 13 stuks Vanguard FTSE All-World UCITS ETF @ 83,97 | H4: =H3+C4 -> 152.39 | I4: =I3+D4 -> 0
A5: 2020-02-03 | B5: 0 | C5: -15 | D5: 0 | E5: 0 | F5: 1 | G5: Binck Service Fee Green | H5: 137.39 | I5: 0
A6: 2020-02-25 | B6: 0 | C6: 1000 | D6: 0 | E6: -1000 | F6: 1 | G6: Maandelijkse geldoverboeking van NL99RABO0123456789 G.E.L.D. Nerd | H6: 1137.39 | I6: 0
A7: 2020-02-25 | B7: 1011.9 | C7: -1011.9 | D7: 0 | E7: 0 | F7: 1 | G7: Koop 35 stuks VanEck Dev Markets Dividend Leaders ETF @ 28,74 | H7: 125.49 | I7: 0
A8: 2020-03-02 | B8: 0 | C8: -15 | D8: 0 | E8: 0 | F8: 1 | G8: Binck Service Fee Green | H8: 110.49 | I8: 0
A9: 2020-03-25 | B9: 0 | C9: 1000 | D9: 0 | E9: -1000 | F9: 1 | G9: Maandelijkse geldoverboeking van NL99RABO0123456789 G.E.L.D. Nerd | H9: 1110.49 | I9: 0
A10: 2020-03-25 | B10: 0 | C10: 5.057181818 | D10: 0 | E10: 0 | F10: 1 | G10: Dividenduitkering 35 stuks @ 0,144490909090909 VanEck Dev Markets Dividend Leaders ETF | H10: 1115.547182 | I10: 0
A11: 2020-03-25 | B11: 1059.92 | C11: -1059.92 | D11: 0 | E11: 0 | F11: 1 | G11: Koop 16 stuks Vanguard FTSE All-World UCITS ETF @ 65,87 | H11: 55.62718182 | I11: 0
A12: 2020-04-02 | B12: 0 | C12: -15 | D12: 0 | E12: 0 | F12: 1 | G12: Binck Service Fee Green | H12: 40.62718182 | I12: 0
A13: 2020-04-08 | B13: 0 | C13: 0 | D13: 5.31 | E13: 0 | F13: 1.086124 | G13: Dividenduitkering 13 stuks @ 0,40830303030303 Vanguard FTSE All-World UCITS ETF | H13: 40.62718182 | I13: 5.31
A14: 2020-04-27 | B14: 0 | C14: 1000 | D14: 0 | E14: -1000 | F14: 1 | G14: Maandelijkse geldoverboeking van NL99RABO0123456789 G.E.L.D. Nerd | H14: 1040.627182 | I14: 5.31
A15: 2020-04-27 | B15: 0 | C15: 11.60218182 | D15: 0 | E15: 0 | F15: 1 | G15: Dividenduitkering 35 stuks @ 0,331490909090909 VanEck Dev Markets Dividend Leaders ETF | H15: 1052.229364 | I15: 5.31
A16: 2020-04-27 | B16: 939.79 | C16: -939.79 | D16: 0 | E16: 0 | F16: 1 | G16: Koop 13 stuks Vanguard FTSE All-World UCITS ETF @ 71,83 | H16: 112.4393636 | I16: 5.31
A17: 2020-05-04 | B17: 0 | C17: -15 | D17: 0 | E17: 0 | F17: 1 | G17: Binck Service Fee Green | H17: 97.43936364 | I17: 5.31
A18: 2020-05-25 | B18: 0 | C18: 1000 | D18: 0 | E18: -1000 | F18: 1 | G18: Maandelijkse geldoverboeking van NL99RABO0123456789 G.E.L.D. Nerd | H18: 1097.439364 | I18: 5.31
A19: 2020-05-25 | B19: 981.0171429 | C19: -981.0171429 | D19: 0 | E19: 0 | F19: 1 | G19: Koop 4 stuks Xtrackers II Global Gov Bond UCITS ETF @ 243,754285714286 | H19: 116.4222208 | I19: 5.31
A20: 2020-06-02 | B20: 0 | C20: -15 | D20: 0 | E20: 0 | F20: 1 | G20: Binck Service Fee Green | H20: 101.4222208 | I20: 5.31
A21: 2020-06-24 | B21: 0 | C21: 0 | D21: 16.010274 | E21: 0 | F21: 1.125049 | G21: Dividenduitkering 42 stuks @ 0,381197 Vanguard FTSE All-World UCITS ETF | H21: 101.4222208 | I21: 21.320274
A22: 2020-06-25 | B22: 0 | C22: 1000 | D22: 0 | E22: -1000 | F22: 1 | G22: Maandelijkse geldoverboeking van NL99RABO0123456789 G.E.L.D. Nerd | H22: 1101.422221 | I22: 21.320274
A23: 2020-06-25 | B23: 998.03 | C23: -998.03 | D23: 0 | E23: 0 | F23: 1 | G23: Koop 13 stuks Vanguard FTSE All-World UCITS ETF @ 76,31 | H23: 103.3922208 | I23: 21.320274
A24: 2020-07-02 | B24: 0 | C24: -15 | D24: 0 | E24: 0 | F24: 1 | G24: Binck Service Fee Green | H24: 88.39222078 | I24: 21.320274
A25: 2020-07-27 | B25: 0 | C25: 1100 | D25: 0 | E25: -1100 | F25: 1 | G25: Maandelijkse geldoverboeking van NL99RABO0123456789 G.E.L.D. Nerd | H25: 1188.392221 | I25: 21.320274
A26: 2020-07-27 | B26: 1049.325 | C26: -1049.325 | D26: 0 | E26: 0 | F26: 1 | G26: Koop 45 stuks VanEck Dev Markets Dividend Leaders ETF @ 23,185 | H26: 139.0672208 | I26: 21.320274
A27: 2020-08-03 | B27: 0 | C27: -15 | D27: 0 | E27: 0 | F27: 1 | G27: Binck Service Fee Green | H27: 124.0672208 | I27: 21.320274
A28: 2020-08-25 | B28: 0 | C28: 1100 | D28: 0 | E28: -1100 | F28: 1 | G28: Maandelijkse geldoverboeking van NL99RABO0123456789 G.E.L.D. Nerd | H28: 1224.067221 | I28: 21.320274
A29: 2020-08-25 | B29: 1124.3125 | C29: -1124.3125 | D29: 0 | E29: 0 | F29: 1 | G29: Koop 250 stuks iShares MSCI World Small Cap @ 4,47325 | H29: 99.75472078 | I29: 21.320274
A30: 2020-09-02 | B30: 0 | C30: -15 | D30: 0 | E30: 0 | F30: 1 | G30: Binck Service Fee Green | H30: 84.75472078 | I30: 21.320274
A31: 2020-09-23 | B31: 0 | C31: 16.99952941 | D31: 0 | E31: 0 | F31: 1 | G31: Dividenduitkering 80 stuks @ 0,212494117647059 VanEck Dev Markets Dividend Leaders ETF | H31: 101.7542502 | I31: 21.320274
A32: 2020-09-25 | B32: 0 | C32: 1100 | D32: 0 | E32: -1100 | F32: 1 | G32: Maandelijkse geldoverboeking van NL99RABO0123456789 G.E.L.D. Nerd | H32: 1201.75425 | I32: 21.320274
A33: 2020-09-25 | B33: 938.52 | C33: -938.52 | D33: 0 | E33: 0 | F33: 1 | G33: Koop 12 stuks Vanguard FTSE All-World UCITS ETF @ 77,71 | H33: 263.2342502 | I33: 21.320274
A34: 2020-10-02 | B34: 0 | C34: -15 | D34: 0 | E34: 0 | F34: 1 | G34: Binck Service Fee Green | H34: 248.2342502 | I34: 21.320274
A35: 2020-10-07 | B35: 0 | C35: 0 | D35: 30.46036765 | E35: 0 | F35: 1.176862 | G35: Dividenduitkering 67 stuks @ 0,454632352941176 Vanguard FTSE All-World UCITS ETF | H35: 248.2342502 | I35: 51.78064165
A36: 2020-10-26 | B36: 0 | C36: 1100 | D36: 0 | E36: -1100 | F36: 1 | G36: Maandelijkse geldoverboeking van NL99RABO0123456789 G.E.L.D. Nerd | H36: 1348.23425 | I36: 51.78064165
A37: 2020-10-26 | B37: 1038.421379 | C37: -1038.421379 | D37: 0 | E37: 0 | F37: 1 | G37: Koop 45 stuks VanEck Dev Markets Dividend Leaders ETF @ 22,9425862068966 | H37: 309.8128709 | I37: 51.78064165
A38: 2020-11-02 | B38: 0 | C38: -15 | D38: 0 | E38: 0 | F38: 1 | G38: Binck Service Fee Green | H38: 294.8128709 | I38: 51.78064165
A39: 2020-11-25 | B39: 0 | C39: 1100 | D39: 0 | E39: -1100 | F39: 1 | G39: Maandelijkse geldoverboeking van NL99RABO0123456789 G.E.L.D. Nerd | H39: 1394.812871 | I39: 51.78064165
A40: 2020-11-25 | B40: 986.12 | C40: -986.12 | D40: 0 | E40: 0 | F40: 1 | G40: Koop 4 stuks Xtrackers II Global Gov Bond UCITS ETF @ 245,03 | H40: 408.6928709 | I40: 51.78064165
A41: 2020-12-02 | B41: 0 | C41: -15 | D41: 0 | E41: 0 | F41: 1 | G41: Binck Service Fee Green | H41: 393.6928709 | I41: 51.78064165
A42: 2020-12-23 | B42: 0 | C42: 24.43718593 | D42: 0 | E42: 0 | F42: 1 | G42: Dividenduitkering 125 stuks @ 0,195497487437186 VanEck Dev Markets Dividend Leaders ETF | H42: 418.1300568 | I42: 51.78064165
A43: 2020-12-25 | B43: 0 | C43: 1000 | D43: 0 | E43: -1000 | F43: 1 | G43: Maandelijkse geldoverboeking van NL99RABO0123456789 G.E.L.D. Nerd | H43: 1418.130057 | I43: 51.78064165
A44: 2020-12-28 | B44: 1045.2 | C44: -1045.2 | D44: 0 | E44: 0 | F44: 1 | G44: Koop 12 stuks Vanguard FTSE All-World UCITS ETF @ 86,6 | H44: 372.9300568 | I44: 51.78064165
A45: 2020-12-30 | B45: 24.7112 | C45: -24.7112 | D45: 0 | E45: 0 | F45: 1.227227 | G45: Dividenduitkering 79 stuks @ 0,3128 Vanguard FTSE All-World UCITS ETF | H45: 348.2188568 | I45: 51.78064165
A46: 2021-01-04 | B46: 0 | C46: -15 | D46: 0 | E46: 0 | F46: 1 | G46: Binck Service Fee Green | H46: 333.2188568 | I46: 51.78064165
A47: 2021-01-25 | B47: 0 | C47: 1000 | D47: 0 | E47: -1000 | F47: 1 | G47: Maandelijkse geldoverboeking van NL99RABO0123456789 G.E.L.D. Nerd | H47: 1333.218857 | I47: 51.78064165
A48: 2021-01-25 | B48: 912.3 | C48: -912.3 | D48: 0 | E48: 0 | F48: 1 | G48: Koop 10 stuks Vanguard FTSE All-World UCITS ETF @ 90,63 | H48: 420.9188568 | I48: 51.78064165
A49: 2021-02-02 | B49: 0 | C49: -15 | D49: 0 | E49: 0 | F49: 1 | G49: Binck Service Fee Green | H49: 405.9188568 | I49: 51.78064165
A50: 2021-02-25 | B50: 0 | C50: 1000 | D50: 0 | E50: -1000 | F50: 1 | G50: Maandelijkse geldoverboeking van NL99RABO0123456789 G.E.L.D. Nerd | H50: 1405.918857 | I50: 51.78064165
A51: 2021-02-25 | B51: 956.775 | C51: -956.775 | D51: 0 | E51: 0 | F51: 1 | G51: Koop 35 stuks VanEck Dev Markets Dividend Leaders ETF @ 27,165 | H51: 449.1438568 | I51: 51.78064165
A52: 2021-03-02 | B52: 0 | C52: -15 | D52: 0 | E52: 0 | F52: 1 | G52: Binck Service Fee Green | H52: 434.1438568 | I52: 51.78064165
A53: 2021-03-24 | B53: 0 | C53: 29.92 | D53: 0 | E53: 0 | F53: 1 | G53: Dividenduitkering 160 stuks @ 0,187 VanEck Dev Markets Dividend Leaders ETF | H53: 464.0638568 | I53: 51.78064165
A54: 2021-03-25 | B54: 0 | C54: 1000 | D54: 0 | E54: -1000 | F54: 1 | G54: Maandelijkse geldoverboeking van NL99RABO0123456789 G.E.L.D. Nerd | H54: 1464.063857 | I54: 51.78064165
A55: 2021-03-25 | B55: 969.604 | C55: -969.604 | D55: 0 | E55: 0 | F55: 1 | G55: Koop 19 stuks Vanguard FTSE All-World Hi Div Yld @ 50,716 | H55: 494.4598568 | I55: 51.78064165
A56: 2021-03-31 | B56: 0 | C56: 0 | D56: 30.082 | E56: 0 | F56: 1.172656 | G56: Dividenduitkering 89 stuks @ 0,338 Vanguard FTSE All-World UCITS ETF | H56: 494.4598568 | I56: 81.86264165
A57: 2021-04-02 | B57: 0 | C57: -15 | D57: 0 | E57: 0 | F57: 1 | G57: Binck Service Fee Green | H57: 479.4598568 | I57: 81.86264165
A58: 2021-04-26 | B58: 0 | C58: 1000 | D58: 0 | E58: -1000 | F58: 1 | G58: Maandelijkse geldoverboeking van NL99RABO0123456789 G.E.L.D. Nerd | H58: 1479.459857 | I58: 81.86264165
A59: 2021-04-26 | B59: 983.74 | C59: -983.74 | D59: 0 | E59: 0 | F59: 1 | G59: Koop 19 stuks Vanguard FTSE All-World Hi Div Yld @ 51,46 | H59: 495.7198568 | I59: 81.86264165
A60: 2021-05-03 | B60: 0 | C60: -15 | D60: 0 | E60: 0 | F60: 1 | G60: Saxo Service Fee Green | H60: 480.7198568 | I60: 81.86264165
A61: 2021-05-25 | B61: 0 | C61: 1000 | D61: 0 | E61: -1000 | F61: 1 | G61: Maandelijkse geldoverboeking van NL99RABO0123456789 G.E.L.D. Nerd | H61: 1480.719857 | I61: 81.86264165
A62: 2021-05-25 | B62: 964.2 | C62: -964.2 | D62: 0 | E62: 0 | F62: 1 | G62: Koop 10 stuks Vanguard FTSE All-World UCITS ETF @ 95,82 | H62: 516.5198568 | I62: 81.86264165
A63: 2021-06-02 | B63: 0 | C63: -15 | D63: 0 | E63: 0 | F63: 1 | G63: Saxo Service Fee Green | H63: 501.5198568 | I63: 81.86264165
A64: 2021-06-23 | B64: 0 | C64: 51.68 | D64: 0 | E64: 0 | F64: 1 | G64: Dividenduitkering 160 stuks @ 0,323 VanEck Dev Markets Dividend Leaders ETF | H64: 553.1998568 | I64: 81.86264165
A65: 2021-06-25 | B65: 0 | C65: 1000 | D65: 0 | E65: -1000 | F65: 1 | G65: Maandelijkse geldoverboeking van NL99RABO0123456789 G.E.L.D. Nerd | H65: 1553.199857 | I65: 81.86264165
A66: 2021-06-25 | B66: 998.5 | C66: -998.5 | D66: 0 | E66: 0 | F66: 1 | G66: Koop 10 stuks Vanguard FTSE All-World UCITS ETF @ 99,25 | H66: 554.6998568 | I66: 81.86264165
A67: 2021-07-01 | B67: 0 | C67: 53.4318 | D67: 0 | E67: 0 | F67: 1 | G67: Dividenduitkering 109 stuks @ 0,4902 Vanguard FTSE All-World UCITS ETF | H67: 608.1316568 | I67: 81.86264165
A68: 2021-07-01 | B68: 0 | C68: 19.6536 | D68: 0 | E68: 0 | F68: 1 | G68: Dividenduitkering 38 stuks @ 0,5172 Vanguard FTSE All-World Hi Div Yld | H68: =H67+C68 -> 627.7852568 | I68: =I67+D68 -> 81.86264165
A69: 2021-07-02 | B69: 0 | C69: -15 | D69: 0 | E69: 0 | F69: 1 | G69: Saxo Service Fee Green | H69: 612.7852568 | I69: 81.86264165
A70: 2021-07-26 | B70: 0 | C70: 1000 | D70: 0 | E70: -1000 | F70: 1 | G70: Maandelijkse geldoverboeking van NL99RABO0123456789 G.E.L.D. Nerd | H70: 1612.785257 | I70: 81.86264165
A71: 2021-07-27 | B71: 984.24 | C71: -984.24 | D71: 0 | E71: 0 | F71: 1 | G71: Koop 160 stuks iShares MSCI World Small Cap @ 6,114 | H71: 628.5452568 | I71: 81.86264165
A72: 2021-08-02 | B72: 0 | C72: -15 | D72: 0 | E72: 0 | F72: 1 | G72: Saxo Service Fee Green | H72: 613.5452568 | I72: 81.86264165
A73: 2021-08-25 | B73: 0 | C73: 1000 | D73: 0 | E73: -1000 | F73: 1 | G73: Maandelijkse geldoverboeking van NL99RABO0123456789 G.E.L.D. Nerd | H73: 1613.545257 | I73: 81.86264165
A74: 2021-08-25 | B74: 1008.72 | C74: -1008.72 | D74: 0 | E74: 0 | F74: 1 | G74: Koop 160 stuks iShares MSCI World Small Cap @ 6,267 | H74: 604.8252568 | I74: 81.86264165
A75: 2021-09-02 | B75: 0 | C75: -15 | D75: 0 | E75: 0 | F75: 1 | G75: Saxo Service Fee Green | H75: 589.8252568 | I75: 81.86264165
A76: 2021-09-22 | B76: 0 | C76: 43.52 | D76: 0 | E76: 0 | F76: 1 | G76: Dividenduitkering 160 stuks @ 0,272 VanEck Dev Markets Dividend Leaders ETF | H76: 633.3452568 | I76: 81.86264165
A77: 2021-09-27 | B77: 0 | C77: 1000 | D77: 0 | E77: -1000 | F77: 1 | G77: Maandelijkse geldoverboeking van NL99RABO0123456789 G.E.L.D. Nerd | H77: 1633.345257 | I77: 81.86264165
A78: 2021-09-27 | B78: 1031 | C78: -1031 | D78: 0 | E78: 0 | F78: 1 | G78: Koop 10 stuks Vanguard FTSE All-World UCITS ETF @ 102,5 | H78: 602.3452568 | I78: 81.86264165
A79: 2021-09-29 | B79: 0 | C79: 46.04073939 | D79: 0 | E79: 0 | F79: 1 | G79: Dividenduitkering 119 stuks @ 0,38689696969697 Vanguard FTSE All-World UCITS ETF | H79: 648.3859962 | I79: 81.86264165
A80: 2021-09-29 | B80: 0 | C80: 16.644 | D80: 0 | E80: 0 | F80: 1 | G80: Dividenduitkering 38 stuks @ 0,438 Vanguard FTSE All-World Hi Div Yld | H80: 665.0299962 | I80: 81.86264165
A81: 2021-10-04 | B81: 0 | C81: -15 | D81: 0 | E81: 0 | F81: 1 | G81: Saxo Service Fee Green | H81: 650.0299962 | I81: 81.86264165
A82: 2021-10-25 | B82: 0 | C82: 1000 | D82: 0 | E82: -1000 | F82: 1 | G82: Maandelijkse geldoverboeking van NL99RABO0123456789 G.E.L.D. Nerd | H82: 1650.029996 | I82: 81.86264165
A83: 2021-10-25 | B83: 934.54 | C83: -934.54 | D83: 0 | E83: 0 | F83: 1 | G83: Koop 17 stuks Vanguard FTSE All-World Hi Div Yld @ 54,62 | H83: 715.4899962 | I83: 81.86264165
A84: 2021-11-02 | B84: 0 | C84: -15 | D84: 0 | E84: 0 | F84: 1 | G84: Saxo Service Fee Green | H84: 700.4899962 | I84: 81.86264165
A85: 2021-11-25 | B85: 0 | C85: 1000 | D85: 0 | E85: -1000 | F85: 1 | G85: Maandelijkse geldoverboeking van NL99RABO0123456789 G.E.L.D. Nerd | H85: 1700.489996 | I85: 81.86264165
A86: 2021-11-25 | B86: 965.9016 | C86: -965.9016 | D86: 0 | E86: 0 | F86: 1 | G86: Koop 17 stuks Vanguard FTSE All-World Hi Div Yld @ 56,4648 | H86: 734.5883962 | I86: 81.86264165
A87: 2021-12-02 | B87: 0 | C87: -15 | D87: 0 | E87: 0 | F87: 1 | G87: Saxo Service Fee Green | H87: 719.5883962 | I87: 81.86264165
A88: 2021-12-22 | B88: 0 | C88: 42.15961353 | D88: 0 | E88: 0 | F88: 1 | G88: Dividenduitkering 160 stuks @ 0,263497584541063 VanEck Dev Markets Dividend Leaders ETF | H88: 761.7480097 | I88: 81.86264165
A89: 2021-12-27 | B89: 0 | C89: 1000 | D89: 0 | E89: -1000 | F89: 1 | G89: Maandelijkse geldoverboeking van NL99RABO0123456789 G.E.L.D. Nerd | H89: 1761.74801 | I89: 81.86264165
A90: 2021-12-29 | B90: 0 | C90: 48.64266667 | D90: 0 | E90: 0 | F90: 1 | G90: Dividenduitkering 119 stuks @ 0,408761904761905 Vanguard FTSE All-World UCITS ETF | H90: 1810.390676 | I90: 81.86264165
A91: 2021-12-29 | B91: 0 | C91: 32.3064 | D91: 0 | E91: 0 | F91: 1 | G91: Dividenduitkering 72 stuks @ 0,4487 Vanguard FTSE All-World Hi Div Yld | H91: 1842.697076 | I91: 81.86264165
A92: 2021-12-30 | B92: 988.95 | C92: -988.95 | D92: 0 | E92: 0 | F92: 1 | G92: Koop 150 stuks iShares MSCI World Small Cap UCITS ETF @ 6,553 | H92: 853.7470764 | I92: 81.86264165
A93: 2022-01-04 | B93: 0 | C93: -15 | D93: 0 | E93: 0 | F93: 1 | G93: Saxo Service Fee Green | H93: 838.7470764 | I93: 81.86264165
A94: 2022-01-25 | B94: 0 | C94: 1000 | D94: 0 | E94: -1000 | F94: 1 | G94: Maandelijkse geldoverboeking van NL99RABO0123456789 G.E.L.D. Nerd | H94: 1838.747076 | I94: 81.86264165
A95: 2022-01-25 | B95: 1029 | C95: -1029 | D95: 0 | E95: 0 | F95: 1 | G95: Koop 10 stuks Vanguard FTSE All-World UCITS ETF @ 102,3 | H95: 809.7470764 | I95: 81.86264165
A96: 2022-02-02 | B96: 0 | C96: -15 | D96: 0 | E96: 0 | F96: 1 | G96: Saxo Service Fee Green | H96: 794.7470764 | I96: 81.86264165
A97: 2022-02-25 | B97: 0 | C97: 1000 | D97: 0 | E97: -1000 | F97: 1 | G97: Maandelijkse geldoverboeking van NL99RABO0123456789 G.E.L.D. Nerd | H97: 1794.747076 | I97: 81.86264165
A98: 2022-02-28 | B98: 920.94 | C98: -920.94 | D98: 0 | E98: 0 | F98: 1 | G98: Koop 9 stuks Vanguard FTSE All-World UCITS ETF @ 101,66 | H98: 873.8070764 | I98: 81.86264165
A99: 2022-03-02 | B99: 0 | C99: -15 | D99: 0 | E99: 0 | F99: 1 | G99: Saxo Service Fee Green | H99: 858.8070764 | I99: 81.86264165
A100: 2022-03-09 | B100: 0 | C100: 14.95961353 | D100: 0 | E100: 0 | F100: 1 | G100: Dividenduitkering 160 stuks @ 0,0934975845410628 VanEck Dev Markets Dividend Leaders ETF | H100: 873.7666899 | I100: 81.86264165
A101: 2022-03-24 | B101: 0 | C101: 1000 | D101: 0 | E101: -1000 | F101: 1 | G101: Maandelijkse geldoverboeking van NL99RABO0123456789 G.E.L.D. Nerd | H101: 1873.76669 | I101: 81.86264165
A102: 2022-03-25 | B102: 1058.2 | C102: -1058.2 | D102: 0 | E102: 0 | F102: 1 | G102: Koop 10 stuks Vanguard FTSE All-World UCITS ETF @ 105,22 | H102: 815.5666899 | I102: 81.86264165
A103: 2022-03-30 | B103: 0 | C103: 43.53353349 | D103: 0 | E103: 0 | F103: 1 | G103: Dividenduitkering 148 stuks @ 0,294145496535797 Vanguard FTSE All-World UCITS ETF | H103: 859.1002234 | I103: 81.86264165
A104: 2022-03-30 | B104: 0 | C104: 22.8384 | D104: 0 | E104: 0 | F104: 1 | G104: Dividenduitkering 72 stuks @ 0,3172 Vanguard FTSE All-World Hi Div Yld | H104: 881.9386234 | I104: 81.86264165
A105: 2022-04-04 | B105: 0 | C105: -15 | D105: 0 | E105: 0 | F105: 1 | G105: Saxo Service Fee Green | H105: 866.9386234 | I105: 81.86264165
A106: 2022-04-22 | B106: 0 | C106: 1000 | D106: 0 | E106: -1000 | F106: 1 | G106: Maandelijkse geldoverboeking van NL99RABO0123456789 G.E.L.D. Nerd | H106: 1866.938623 | I106: 81.86264165
A107: 2022-04-25 | B107: 947.04 | C107: -947.04 | D107: 0 | E107: 0 | F107: 1 | G107: Koop 9 stuks Vanguard FTSE All-World UCITS ETF @ 104,56 | H107: 919.8986234 | I107: 81.86264165
A108: 2022-05-02 | B108: 0 | C108: -15 | D108: 0 | E108: 0 | F108: 1 | G108: Saxo Service Fee Green | H108: 904.8986234 | I108: 81.86264165
A109: 2022-05-24 | B109: 0 | C109: 1000 | D109: 0 | E109: -1000 | F109: 1 | G109: Maandelijkse geldoverboeking van NL99RABO0123456789 G.E.L.D. Nerd | H109: 1904.898623 | I109: 81.86264165
A110: 2022-05-25 | B110: 966.8 | C110: -966.8 | D110: 0 | E110: 0 | F110: 1 | G110: Koop 10 stuks Vanguard FTSE All-World UCITS ETF @ 96,08 | H110: 938.0986234 | I110: 81.86264165
A111: 2022-06-02 | B111: 0 | C111: -15 | D111: 0 | E111: 0 | F111: 1 | G111: Saxo Service Fee Green | H111: 923.0986234 | I111: 81.86264165
A112: 2022-06-08 | B112: 0 | C112: 126.4803865 | D112: 0 | E112: 0 | F112: 1 | G112: Dividenduitkering 160 stuks @ 0,790502415458937 VanEck Dev Markets Dividend Leaders ETF | H112: 1049.57901 | I112: 81.86264165
A113: 2022-06-27 | B113: 0 | C113: 1000 | D113: 0 | E113: -1000 | F113: 1 | G113: Maandelijkse geldoverboeking van NL99RABO0123456789 G.E.L.D. Nerd | H113: 2049.57901 | I113: 81.86264165
A114: 2022-06-27 | B114: 965 | C114: -965 | D114: 0 | E114: 0 | F114: 1 | G114: Koop 10 stuks Vanguard FTSE All-World UCITS ETF @ 95,9 | H114: 1084.57901 | I114: 81.86264165
A115: 2022-06-29 | B115: 0 | C115: 140.6533923 | D115: 0 | E115: 0 | F115: 1 | G115: Dividenduitkering 177 stuks @ 0,794651933701657 Vanguard FTSE All-World UCITS ETF | H115: 1225.232402 | I115: 81.86264165
A116: 2022-06-29 | B116: 0 | C116: 62.2656 | D116: 0 | E116: 0 | F116: 1 | G116: Dividenduitkering 72 stuks @ 0,8648 Vanguard FTSE All-World Hi Div Yld | H116: 1287.498002 | I116: 81.86264165
A117: 2022-07-04 | B117: 0 | C117: -15 | D117: 0 | E117: 0 | F117: 1 | G117: Saxo Service Fee Green | H117: 1272.498002 | I117: 81.86264165
A118: 2022-07-25 | B118: 0 | C118: 1000 | D118: 0 | E118: -1000 | F118: 1 | G118: Maandelijkse geldoverboeking van NL99RABO0123456789 G.E.L.D. Nerd | H118: 2272.498002 | I118: 81.86264165
A119: 2022-07-25 | B119: 998.3 | C119: -998.3 | D119: 0 | E119: 0 | F119: 1 | G119: Koop 10 stuks Vanguard FTSE All-World UCITS ETF @ 99,23 | H119: 1274.198002 | I119: 81.86264165
A120: 2022-08-02 | B120: 0 | C120: -15 | D120: 0 | E120: 0 | F120: 1 | G120: Saxo Service Fee Green | H120: 1259.198002 | I120: 81.86264165
A121: 2022-08-25 | B121: 0 | C121: 1000 | D121: 0 | E121: -1000 | F121: 1 | G121: Maandelijkse geldoverboeking van NL99RABO0123456789 G.E.L.D. Nerd | H121: 2259.198002 | I121: 81.86264165
A122: 2022-08-25 | B122: 953.16 | C122: -953.16 | D122: 0 | E122: 0 | F122: 1 | G122: Koop 9 stuks Vanguard FTSE All-World UCITS ETF @ 105,24 | H122: 1306.038002 | I122: 81.86264165
A123: 2022-09-02 | B123: 0 | C123: -15 | D123: 0 | E123: 0 | F123: 1 | G123: Saxo Service Fee Green | H123: 1291.038002 | I123: 81.86264165
A124: 2022-09-14 | B124: 0 | C124: 43.52 | D124: 0 | E124: 0 | F124: 1 | G124: Dividenduitkering 160 stuks @ 0,272 VanEck Dev Markets Dividend Leaders ETF | H124: 1334.558002 | I124: 81.86264165
A125: 2022-09-25 | B125: 0 | C125: 1000 | D125: 0 | E125: -1000 | F125: 1 | G125: Maandelijkse geldoverboeking van NL99RABO0123456789 G.E.L.D. Nerd | H125: 2334.558002 | I125: 81.86264165
A126: 2022-09-26 | B126: 958.2 | C126: -958.2 | D126: 0 | E126: 0 | F126: 1 | G126: Koop 30 stuks VanEck Dev Markets Dividend Leaders ETF @ 31,74 | H126: 1376.358002 | I126: 81.86264165
A127: 2022-09-28 | B127: 0 | C127: 101.6790833 | D127: 0 | E127: 0 | F127: 1 | G127: Dividenduitkering 196 stuks @ 0,518770833333333 Vanguard FTSE All-World UCITS ETF | H127: 1478.037085 | I127: 81.86264165
A128: 2022-09-28 | B128: 0 | C128: 37.224 | D128: 0 | E128: 0 | F128: 1 | G128: Dividenduitkering 72 stuks @ 0,517 Vanguard FTSE All-World Hi Div Yld | H128: 1515.261085 | I128: 81.86264165
A129: 2022-10-03 | B129: 0 | C129: -15 | D129: 0 | E129: 0 | F129: 1 | G129: Saxo Service Fee Green | H129: 1500.261085 | I129: 81.86264165
A130: 2022-10-25 | B130: 0 | C130: 1000 | D130: 0 | E130: -1000 | F130: 1 | G130: Maandelijkse geldoverboeking van NL99RABO0123456789 G.E.L.D. Nerd | H130: 2500.261085 | I130: 81.86264165
A131: 2022-10-25 | B131: 959.1 | C131: -959.1 | D131: 0 | E131: 0 | F131: 1 | G131: Koop 10 stuks Vanguard FTSE All-World UCITS ETF @ 95,31 | H131: 1541.161085 | I131: 81.86264165
A132: 2022-11-02 | B132: 0 | C132: -15 | D132: 0 | E132: 0 | F132: 1 | G132: Saxo Service Fee Green | H132: =H131+C132 -> 1526.161085 | I132: =I131+D132 -> 81.86264165
A133: 2022-11-25 | B133: 0 | C133: 1000 | D133: 0 | E133: -1000 | F133: 1 | G133: Maandelijkse geldoverboeking van NL99RABO0123456789 G.E.L.D. Nerd | H133: 2526.161085 | I133: 81.86264165
A134: 2022-11-25 | B134: 994 | C134: -994 | D134: 0 | E134: 0 | F134: 1 | G134: Koop 10 stuks Vanguard FTSE All-World UCITS ETF @ 98,8 | H134: 1532.161085 | I134: 81.86264165
A135: 2022-12-02 | B135: 0 | C135: -15 | D135: 0 | E135: 0 | F135: 1 | G135: Saxo Service Fee Green | H135: 1517.161085 | I135: 81.86264165
A136: 2022-12-14 | B136: 0 | C136: 32.3 | D136: 0 | E136: 0 | F136: 1 | G136: Dividenduitkering 190 stuks @ 0,2000 pre-tax VanEck Dev Markets Dividend Leaders ETF | H136: 1549.461085 | I136: 81.86264165
A137: 2022-12-27 | B137: 0 | C137: 1000 | D137: 0 | E137: -1000 | F137: 1 | G137: Maandelijkse geldoverboeking van NL99RABO0123456789 G.E.L.D. Nerd | H137: 2549.461085 | I137: 81.86264165
A138: 2022-12-27 | B138: 945 | C138: -945 | D138: 0 | E138: 0 | F138: 1 | G138: Koop 10 stuks Vanguard FTSE All-World UCITS ETF @ 93,9 | H138: 1604.461085 | I138: 81.86264165
A139: 2022-12-28 | B139: 0 | C139: 80.343 | D139: 0 | E139: 0 | F139: 1 | G139: Dividenduitkering 226 stuks @ 0,3785 pre-tax Vanguard FTSE All-World UCITS ETF | H139: 1684.804085 | I139: 81.86264165
A140: 2022-12-28 | B140: 0 | C140: 27.9432 | D140: 0 | E140: 0 | F140: 1 | G140: Dividenduitkering 72 stuks @ 0,4131 pre-tax Vanguard FTSE All-World Hi Div Yld | H140: 1712.747285 | I140: 81.86264165
A141: 2023-01-02 | B141: 0 | C141: -15 | D141: 0 | E141: 0 | F141: 1 | G141: Saxo Service Fee Green | H141: 1697.747285 | I141: 81.86264165
A142: 2023-01-25 | B142: 0 | C142: 1000 | D142: 0 | E142: -1000 | F142: 1 | G142: Maandelijkse geldoverboeking van NL99RABO0123456789 G.E.L.D. Nerd | H142: 2697.747285 | I142: 81.86264165
A143: 2023-01-25 | B143: 973.3 | C143: -973.3 | D143: 0 | E143: 0 | F143: 1 | G143: Koop 10 stuks Vanguard FTSE All-World UCITS ETF @ 96,73 | H143: 1724.447285 | I143: 81.86264165

Sheet FundHistory
A1: FundISIN | B1: FundName | C1: FundAcro | D1: FundCurr | E1: 2020-01-01 | F1: 2020-01-04 | G1: 2020-01-11 | H1: 2020-01-18 | I1: 2020-01-25 | J1: 2020-02-01 | K1: 2020-02-08 | L1: 2020-02-15 | M1: 2020-02-22 | N1: 2020-02-29 | O1: 2020-03-07 | P1: 2020-03-14 | Q1: 2020-03-21 | R1: 2020-03-28 | S1: 2020-04-04 | T1: 2020-04-11 | U1: 2020-04-18 | V1: 2020-04-25 | W1: 2020-05-02 | X1: 2020-05-09 | Y1: 2020-05-16 | Z1: 2020-05-23 | AA1: 2020-05-30 | AB1: 2020-06-06 | AC1: 2020-06-13 | AD1: 2020-06-20 | AE1: 2020-06-27 | AF1: 2020-07-01 | AG1: 2020-07-04 | AH1: 2020-07-11 | AI1: 2020-07-18 | AJ1: 2020-07-25 | AK1: 2020-08-01 | AL1: 2020-08-08 | AM1: 2020-08-15 | AN1: 2020-08-22 | AO1: 2020-08-29 | AP1: 2020-09-05 | AQ1: 2020-09-12 | AR1: 2020-09-19 | AS1: 2020-09-26 | AT1: 2020-10-01 | AU1: 2020-10-03 | AV1: 2020-10-10 | AW1: 2020-10-17 | AX1: 2020-10-24 | AY1: 2020-10-31 | AZ1: 2020-11-07 | BA1: 2020-11-14 | BB1: 2020-11-21 | BC1: 2020-11-28 | BD1: 2020-12-05 | BE1: 2020-12-12 | BF1: 2020-12-19 | BG1: 2020-12-26 | BH1: 2020-12-31 | BI1: 2021-01-01 | BJ1: 2021-01-02 | BK1: 2021-01-09 | BL1: 2021-01-16 | BM1: 2021-01-23 | BN1: 2021-01-30 | BO1: 2021-02-06 | BP1: 2021-02-13 | BQ1: 2021-02-20 | BR1: 2021-02-27 | BS1: 2021-03-06 | BT1: 2021-03-13 | BU1: 2021-03-20 | BV1: 2021-03-27 | BW1: 2021-03-31 | BX1: 2021-04-03 | BY1: 2021-04-10 | BZ1: 2021-04-17 | CA1: 2021-04-24 | CB1: 2021-05-01 | CC1: 2021-05-08 | CD1: 2021-05-15 | CE1: 2021-05-22 | CF1: 2021-05-30 | CG1: 2021-06-05 | CH1: 2021-06-12 | CI1: 2021-06-19 | CJ1: 2021-06-26 | CK1: 2021-07-01 | CL1: 2021-07-03 | CM1: 2021-07-10 | CN1: 2021-07-17 | CO1: 2021-07-24 | CP1: 2021-07-31 | CQ1: 2021-08-07 | CR1: 2021-08-14 | CS1: 2021-08-21 | CT1: 2021-08-28 | CU1: 2021-09-04 | CV1: 2021-09-11 | CW1: 2021-09-18 | CX1: 2021-09-25 | CY1: 2021-09-30 | CZ1: 2021-10-02 | DA1: 2021-10-09 | DB1: 2021-10-16 | DC1: 2021-10-23 | DD1: 2021-10-30 | DE1: 2021-11-06 | DF1: 2021-11-13 | DG1: 2021-11-20 | DH1: 2021-11-27 | DI1: 2021-12-04 | DJ1: 2021-12-11 | DK1: 2021-12-18 | DL1: 2021-12-25 | DM1: 2021-12-31 | DN1: 2022-01-01 | DO1: 2022-01-08 | DP1: 2022-01-15 | DQ1: 2022-01-22 | DR1: 2022-01-29 | DS1: 2022-02-05 | DT1: 2022-02-12 | DU1: 2022-02-19 | DV1: 2022-02-26 | DW1: 2022-03-05 | DX1: 2022-03-12 | DY1: 2022-03-19 | DZ1: 2022-03-26 | EA1: 2022-03-31 | EB1: 2022-04-02 | EC1: 2022-04-09 | ED1: 2022-04-16 | EE1: 2022-04-23 | EF1: 2022-04-30 | EG1: 2022-05-07 | EH1: 2022-05-11 | EI1: 2022-05-14 | EJ1: 2022-05-21 | EK1: 2022-05-28 | EL1: 2022-06-04 | EM1: 2022-06-11 | EN1: 2022-06-18 | EO1: 2022-06-25 | EP1: 2022-06-30 | EQ1: 2022-07-09 | ER1: 2022-07-16 | ES1: 2022-07-23 | ET1: 2022-07-30 | EU1: 2022-08-06 | EV1: 2022-08-13 | EW1: 2022-08-20 | EX1: 2022-08-28 | EY1: 2022-09-03 | EZ1: 2022-09-10 | FA1: 2022-09-17 | FB1: 2022-09-24 | FC1: 2022-10-01 | FD1: 2022-10-08 | FE1: 2022-10-15 | FF1: 2022-10-22 | FG1: 2022-10-29 | FH1: 2022-11-05 | FI1: 2022-11-12 | FJ1: 2022-11-19 | FK1: 2022-11-26 | FL1: 2022-12-03 | FM1: 2022-12-10 | FN1: 2022-12-17 | FO1: 2022-12-24 | FP1: 2022-12-31 | FQ1: 2023-01-01 | FR1: 2023-01-07 | FS1: 2023-01-14 | FT1: 2023-01-21 | FU1: 2023-01-28 | FV1: 2023-02-04 | FW1: 2023-02-11
A2: IE00B3RBWM25 | B2: Vanguard FTSE All-World UCITS ETF | C2: VWRL | D2: EUR | E2: 82.82 | F2: 83.75 | G2: 84.84 | H2: 86.04 | I2: 86.05 | J2: 83.15 | K2: 86.55 | L2: 88.24 | M2: 87.2 | N2: 76.36 | O2: 74.73 | P2: 64.67 | Q2: 62.81 | R2: 64.86 | S2: 65.01 | T2: 70.9 | U2: 72 | V2: 71.49 | W2: 73.6 | X2: 74.38 | Y2: 72.49 | Z2: 74.35 | AA2: 75.12 | AB2: 79.41 | AC2: 75.43 | AD2: 78.08 | AE2: 76 | AF2: 76.63 | AG2: 77.96 | AH2: 78.56 | AI2: 79.01 | AJ2: 77.72 | AK2: 76.54 | AL2: 78.78 | AM2: 79.54 | AN2: 79.81 | AO2: 81.2 | AP2: 79.4 | AQ2: 79.23 | AR2: 79.21 | AS2: 78.11 | AT2: 79.57 | AU2: 79.51 | AV2: 81.37 | AW2: 82.15 | AX2: 80.69 | AY2: 77.89 | AZ2: 82.09 | BA2: 84.17 | BB2: 84.99 | BC2: 86.07 | BD2: 86 | BE2: 85.44 | BF2: 85.86 | BG2: 85.97 | BH2: 86.49 | BI2: 86.49 | BJ2: 86.49 | BK2: 88.95 | BL2: 89.3 | BM2: 90 | BN2: 87.37 | BO2: 91.8 | BP2: 92.65 | BQ2: 92.7 | BR2: 89.9 | BS2: 89.53 | BT2: 92.92 | BU2: 93.08 | BV2: 93.61 | BW2: 94.74 | BX2: 95.28 | BY2: 95.99 | BZ2: 96.91 | CA2: 96.15 | CB2: 96.24 | CC2: 96.8 | CD2: 95.15 | CE2: 95.38 | CF2: 96.63 | CG2: 97.28 | CH2: 98.17 | CI2: 97.93 | CJ2: 99.39 | CK2: 99.79 | CL2: 100.44 | CM2: 100.52 | CN2: 100.46 | CO2: 101.68 | CP2: 100.58 | CQ2: 102.22 | CR2: 102.7 | CS2: 101.9 | CT2: 103.02 | CU2: 103.56 | CV2: 103.06 | CW2: 102.18 | CX2: 102.24 | CY2: 101.26 | CZ2: 100.6 | DA2: 102.16 | DB2: 103.88 | DC2: 104.64 | DD2: 105.88 | DE2: 107.84 | DF2: 108.64 | DG2: 109.76 | DH2: 106.12 | DI2: 105.26 | DJ2: 108.18 | DK2: 107.18 | DL2: 108.64 | DM2: 109.44 | DN2: 109.44 | DO2: 107.6 | DP2: 106.62 | DQ2: 104.54 | DR2: 102.7 | DS2: 102.76 | DT2: 104.16 | DU2: 102.1 | DV2: 102.08 | DW2: 101.54 | DX2: 100.34 | DY2: 103.92 | DZ2: 105.7 | EA2: 106.24 | EB2: 106 | EC2: 106.62 | ED2: 105.76 | EE2: 103.48 | EF2: 103.7 | EG2: 100.34 | EH2: 97.18 | EI2: 99.93 | EJ2: 96.89 | EK2: 100.48 | EL2: 100.08 | EM2: 97.24 | EN2: 91.65 | EO2: 95.05 | EP2: 93.65 | EQ2: 98.57 | ER2: 97.39 | ES2: 99.24 | ET2: 102.06 | EU2: 102.86 | EV2: 104.86 | EW2: 105.66 | EX2: 104.1 | EY2: 101.08 | EZ2: 101.88 | FA2: 97.28 | FB2: 95.53 | FC2: 94.13 | FD2: 94.7 | FE2: 93.44 | FF2: 94.61 | FG2: 96.54 | FH2: 95.79 | FI2: 97.78 | FJ2: 97.6 | FK2: 98.8 | FL2: 99.07 | FM2: 97.22 | FN2: 93.59 | FO2: 93.32 | FP2: 92.64 | FQ2: 92.64 | FR2: 95.35 | FS2: 96.39 | FT2: 96.04 | FU2: 98.33 | FV2: 99.99 | FW2: 99.2
A3: IE00BF4RFH31 | B3: iShares MSCI World Small Cap | C3: IUSN | D3: EUR | E3: 4.957 | F3: 4.9385 | G3: 4.9585 | H3: 5.042 | I3: 5.017 | J3: 4.8415 | K3: 5.002 | L3: 5.123 | M3: 5.069 | N3: 4.378 | O3: 4.235 | P3: 3.4525 | Q3: 3.2365 | R3: 3.463 | S3: 3.349 | T3: 3.7965 | U3: 3.7795 | V3: 3.7915 | W3: 4.022 | X3: 4.0695 | Y3: 3.9015 | Z3: 4.112 | AA3: 4.202 | AB3: 4.5295 | AC3: 4.1955 | AD3: 4.3675 | AE3: 4.2195 | AF3: 4.2665 | AG3: 4.2875 | AH3: 4.2695 | AI3: 4.338 | AJ3: 4.3045 | AK3: 4.22 | AL3: 4.4015 | AM3: 4.4495 | AN3: 4.4125 | AO3: 4.451 | AP3: 4.3565 | AQ3: 4.355 | AR3: 4.4405 | AS3: 4.335 | AT3: 4.43 | AU3: 4.462 | AV3: 4.653 | AW3: 4.688 | AX3: 4.625 | AY3: 4.447 | AZ3: 4.6665 | BA3: 4.8585 | BB3: 4.941 | BC3: 5.066 | BD3: 5.081 | BE3: 5.097 | BF3: 5.207 | BG3: 5.25 | BH3: 5.221 | BI3: 5.221 | BJ3: 5.221 | BK3: 5.449 | BL3: 5.521 | BM3: 5.527 | BN3: 5.42 | BO3: 5.731 | BP3: 5.822 | BQ3: 5.788 | BR3: 5.674 | BS3: 5.602 | BT3: 6.005 | BU3: 6.004 | BV3: 5.949 | BW3: 5.961 | BX3: 6.014 | BY3: 6.014 | BZ3: 6.059 | CA3: 5.989 | CB3: 6.038 | CC3: 6.048 | CD3: 5.92 | CE3: 5.888 | CF3: 6.022 | CG3: 6.056 | CH3: 6.157 | CI3: 6.056 | CJ3: 6.208 | CK3: 6.181 | CL3: 6.224 | CM3: 6.174 | CN3: 6.059 | CO3: 6.124 | CP3: 6.137 | CQ3: 6.234 | CR3: 6.242 | CS3: 6.126 | CT3: 6.326 | CU3: 6.365 | CV3: 6.31 | CW3: 6.297 | CX3: 6.347 | CY3: 6.267 | CZ3: 6.237 | DA3: 6.335 | DB3: 6.449 | DC3: 6.483 | DD3: 6.527 | DE3: 6.73 | DF3: 6.752 | DG3: 6.701 | DH3: 6.4 | DI3: 6.296 | DJ3: 6.409 | DK3: 6.339 | DL3: 6.504 | DM3: 6.552 | DN3: 6.552 | DO3: 6.452 | DP3: 6.314 | DQ3: 6.009 | DR3: 5.959 | DS3: 5.945 | DT3: 6.122 | DU3: 6.072 | DV3: 6.083 | DW3: 6.055 | DX3: 6.023 | DY3: 6.184 | DZ3: 6.271 | EA3: 6.261 | EB3: 6.313 | EC3: 6.218 | ED3: 6.265 | EE3: 6.133 | EF3: 6.13 | EG3: 5.978 | EH3: 5.66 | EI3: 5.865 | EJ3: 5.752 | EK3: 5.926 | EL3: 6.008 | EM3: 5.803 | EN3: 5.42 | EO3: 5.6 | EP3: 5.501 | EQ3: 5.808 | ER3: 5.667 | ES3: 5.987 | ET3: 6.114 | EU3: 6.201 | EV3: 6.395 | EW3: 6.321 | EX3: 6.362 | EY3: 5.979 | EZ3: 6.118 | FA3: 5.9 | FB3: 5.646 | FC3: 5.588 | FD3: 5.679 | FE3: 5.661 | FF3: 5.649 | FG3: 5.847 | FH3: 5.853 | FI3: 6.001 | FJ3: 5.941 | FK3: 6.017 | FL3: 6.043 | FM3: 5.8 | FN3: 5.645 | FO3: 5.645 | FP3: 5.64 | FQ3: 5.64 | FR3: 5.797 | FS3: 5.936 | FT3: 5.87 | FU3: 6.01 | FV3: 6.212 | FW3: 6.118
A4: NL0011683594 | B4: VanEck Dev Markets Dividend Leaders ETF | C4: TDIV | D4: EUR | E4: 29.04 | F4: 29.665 | G4: 29.84 | H4: 29.85 | I4: 29.72 | J4: 28.805 | K4: 29.665 | L4: 29.945 | M4: 29.66 | N4: 26.185 | O4: 25.415 | P4: 21.115 | Q4: 20.155 | R4: 21.35 | S4: 21.08 | T4: 22.825 | U4: 22.52 | V4: 22.215 | W4: 23.16 | X4: 22.9 | Y4: 22.1 | Z4: 22.72 | AA4: 23.325 | AB4: 25.47 | AC4: 23.925 | AD4: 24.05 | AE4: 23.19 | AF4: 23.435 | AG4: 23.53 | AH4: 23.31 | AI4: 23.74 | AJ4: 23.215 | AK4: 22.38 | AL4: 22.975 | AM4: 23.59 | AN4: 23.28 | AO4: 23.615 | AP4: 23.485 | AQ4: 23.485 | AR4: 23.25 | AS4: 22.565 | AT4: 22.83 | AU4: 22.8 | AV4: 23.38 | AW4: 23.17 | AX4: 23.045 | AY4: 22.145 | AZ4: 23.08 | BA4: 24.655 | BB4: 25.145 | BC4: 25.67 | BD4: 25.75 | BE4: 25.57 | BF4: 25.305 | BG4: 25.185 | BH4: 25.215 | BI4: 25.215 | BJ4: 25.215 | BK4: 26.245 | BL4: 26.55 | BM4: 26.17 | BN4: 25.465 | BO4: 26.39 | BP4: 26.495 | BQ4: 26.74 | BR4: 26.595 | BS4: 27.145 | BT4: 28.015 | BU4: 28.235 | BV4: 28.57 | BW4: 28.58 | BX4: 28.525 | BY4: 28.505 | BZ4: 28.64 | CA4: 28.435 | CB4: 28.455 | CC4: 29.15 | CD4: 29.195 | CE4: 29.01 | CF4: 29.035 | CG4: 29.2 | CH4: 29.215 | CI4: 28.535 | CJ4: 28.75 | CK4: 28.585 | CL4: 28.75 | CM4: 28.77 | CN4: 28.855 | CO4: 28.81 | CP4: 28.95 | CQ4: 29.29 | CR4: 29.75 | CS4: 29.435 | CT4: 29.41 | CU4: 29.27 | CV4: 28.895 | CW4: 28.44 | CX4: 28.5 | CY4: 28.73 | CZ4: 28.295 | DA4: 29.115 | DB4: 29.215 | DC4: 29.08 | DD4: 29.1 | DE4: 29.58 | DF4: 29.825 | DG4: 29.605 | DH4: 29.3 | DI4: 29.35 | DJ4: 30.01 | DK4: 30.49 | DL4: 30.84 | DM4: 30.9 | DN4: 30.9 | DO4: 32.165 | DP4: 32.875 | DQ4: 32.815 | DR4: 33 | DS4: 32.865 | DT4: 33.505 | DU4: 33.185 | DV4: 32.815 | DW4: 32.97 | DX4: 33.275 | DY4: 33.235 | DZ4: 34.16 | EA4: 33.94 | EB4: 34.03 | EC4: 34.965 | ED4: 35.22 | EE4: 34.84 | EF4: 34.75 | EG4: 34.715 | EH4: 34 | EI4: 35 | EJ4: 34.88 | EK4: 35.98 | EL4: 34.72 | EM4: 34.185 | EN4: 32.3 | EO4: 32.545 | EP4: 32.39 | EQ4: 33.095 | ER4: 32.475 | ES4: 32.605 | ET4: 33.48 | EU4: 33.44 | EV4: 34.02 | EW4: 34.225 | EX4: 33.87 | EY4: 33.555 | EZ4: 33.21 | FA4: 32.77 | FB4: 31.95 | FC4: 31.315 | FD4: 31.825 | FE4: 31.92 | FF4: 32.285 | FG4: 33.1 | FH4: 33.715 | FI4: 33.94 | FJ4: 34.34 | FK4: 35 | FL4: 34.86 | FM4: 34.385 | FN4: 33.5 | FO4: 34.33 | FP4: 34.31 | FQ4: 34.31 | FR4: 35.54 | FS4: 35.8 | FT4: 35.425 | FU4: 35.765 | FV4: 35.82 | FW4: 36.105
A5: LU0378818131 | B5: Xtrackers II Global Gov Bond UCITS ETF | C5: DBZB | D5: EUR | E5: 235.05 | F5: 236.26 | G5: 235.22 | H5: 235.34 | I5: 237.34 | J5: 239.63 | K5: 238.52 | L5: 238.51 | M5: 240.21 | N5: 242.87 | O5: 246.68 | P5: 240.38 | Q5: 236.52 | R5: 243.76 | S5: 244.49 | T5: 242.94 | U5: 243.6 | V5: 244.07 | W5: 244.8 | X5: 243.8 | Y5: 243.92 | Z5: 244.05 | AA5: 244.12 | AB5: 241.09 | AC5: 243.98 | AD5: 243.8 | AE5: 244.38 | AF5: 244.4 | AG5: 244.28 | AH5: 245.43 | AI5: 244.77 | AJ5: 245.75 | AK5: 246.69 | AL5: 246.52 | AM5: 244.03 | AN5: 245.14 | AO5: 243.28 | AP5: 244.28 | AQ5: 245.1 | AR5: 245.01 | AS5: 245.82 | AT5: 244.96 | AU5: 245.29 | AV5: 244.57 | AW5: 245.97 | AX5: 244.33 | AY5: 244.69 | AZ5: 245.54 | BA5: 244.81 | BB5: 245.53 | BC5: 245.19 | BD5: 244.1 | BE5: 245.87 | BF5: 244.91 | BG5: 244.77 | BH5: 244.82 | BI5: 244.82 | BJ5: 244.82 | BK5: 243.02 | BL5: 243.46 | BM5: 242.85 | BN5: 242.99 | BO5: 242.32 | BP5: 241.89 | BQ5: 239.39 | BR5: 237.34 | BS5: 237.96 | BT5: 237.56 | BU5: 236.94 | BV5: 238.11 | BW5: 237.22 | BX5: 237.52 | BY5: 237.37 | BZ5: 237.72 | CA5: 237.81 | CB5: 236.78 | CC5: 237.19 | CD5: 235.95 | CE5: 236.28 | CF5: 237.17 | CG5: 237.34 | CH5: 238.54 | CI5: 238.14 | CJ5: 237.27 | CK5: 238.15 | CL5: 238.4 | CM5: 239.58 | CN5: 240.4 | CO5: 241.11 | CP5: 241.69 | CQ5: 241.17 | CR5: 241.44 | CS5: 242.16 | CT5: 240.85 | CU5: 240.39 | CV5: 240.24 | CW5: 239.59 | CX5: 238.72 | CY5: 237.44 | CZ5: 237.74 | DA5: 236.59 | DB5: 237.13 | DC5: 236.09 | DD5: 237.07 | DE5: 239.3 | DF5: 238.26 | DG5: 239.03 | DH5: 238.68 | DI5: 240.21 | DJ5: 239.52 | DK5: 239.8 | DL5: 237.88 | DM5: 237 | DN5: 237 | DO5: 234.02 | DP5: 234.57 | DQ5: 234.69 | DR5: 233.93 | DS5: 230.75 | DT5: 228.32 | DU5: 229.87 | DV5: 229.09 | DW5: 233.12 | DX5: 228.37 | DY5: 227.26 | DZ5: 223.81 | EA5: 225.12 | EB5: 224.25 | EC5: 221.46 | ED5: 219.93 | EE5: 218.36 | EF5: 218.47 | EG5: 215.86 | EH5: 217.02 | EI5: 217.91 | EJ5: 217.82 | EK5: 218.4 | EL5: 215 | EM5: 211.9 | EN5: 211.03 | EO5: 212.1 | EP5: 213.16 | EQ5: 212.69 | ER5: 214.83 | ES5: 216.26 | ET5: 218.11 | EU5: 216.7 | EV5: 216.12 | EW5: 213.84 | EX5: 212.33 | EY5: 210.09 | EZ5: 208.83 | FA5: 207.52 | FB5: 204.48 | FC5: 203.65 | FD5: 201.96 | FE5: 200.19 | FF5: 198.97 | FG5: 202.99 | FH5: 200.6 | FI5: 203.41 | FJ5: 204.76 | FK5: 205.61 | FL5: 207.09 | FM5: 207.38 | FN5: 205.61 | FO5: 203.15 | FP5: 201.2 | FQ5: 201.2 | FR5: 204.39 | FS5: 205.65 | FT5: 206.06 | FU5: 204.93 | FV5: 205.87 | FW5: 203.49
A6: IE00B8GKDB10 | B6: Vanguard FTSE All-World Hi Div Yld | C6: VHYL | D6: EUR | E6: 52.2 | F6: 52.49 | G6: 53.043 | H6: 52.663 | I6: 50.572 | J6: 52.346 | K6: 52.99 | L6: 52.383 | M6: 46.059 | N6: 44.927 | O6: 38.081 | P6: 37.036 | Q6: 37.874 | R6: 38.185 | S6: 41.306 | T6: 41.029 | U6: 40.713 | V6: 42.089 | W6: 41.996 | X6: 40.541 | Y6: 41.172 | Z6: 42.021 | AA6: 45.267 | AB6: 42.259 | AC6: 43.33 | AD6: 41.938 | AE6: 42.864 | AF6: 42.3 | AG6: 42.609 | AH6: 43.298 | AI6: 42.649 | AJ6: 41.448 | AK6: 42.343 | AL6: 43.196 | AM6: 42.658 | AN6: 42.935 | AO6: 42.52 | AP6: 42.532 | AQ6: 42.671 | AR6: 41.211 | AS6: 41.642 | AT6: 41.68 | AU6: 42.67 | AV6: 42.764 | AW6: 42.306 | AX6: 40.725 | AY6: 42.35 | AZ6: 44.632 | BA6: 45.156 | BB6: 45.889 | BC6: 46.041 | BD6: 45.939 | BE6: 45.555 | BF6: 45.505 | BG6: 45.741 | BH6: 45.83 | BI6: 45.83 | BJ6: 47.54 | BK6: 48.313 | BL6: 47.672 | BM6: 46.261 | BN6: 48.214 | BO6: 48.6 | BP6: 48.983 | BQ6: 48.283 | BR6: 49.274 | BS6: 50.94 | BT6: 50.318 | BU6: 50.32 | BV6: 51.403 | BW6: 51.816 | BX6: 51.854 | BY6: 51.765 | BZ6: 52.09 | CA6: 51.544 | CB6: 51.627 | CC6: 52.75 | CD6: 52.629 | CE6: 52.5 | CF6: 52.85 | CG6: 53.517 | CH6: 53.59 | CI6: 52.41 | CJ6: 53.041 | CK6: 52.846 | CL6: 53.15 | CM6: 52.999 | CN6: 52.896 | CO6: 52.994 | CP6: 52.831 | CQ6: 53.503 | CR6: 54.07 | CS6: 53.222 | CT6: 53.77 | CU6: 53.779 | CV6: 53.265 | CW6: 52.744 | CX6: 52.983 | CY6: 53.16 | CZ6: 52.934 | DA6: 53.87 | DB6: 54.521 | DC6: 54.577 | DD6: 54.75 | DE6: 55.303 | DF6: 55.932 | DG6: 55.69 | DH6: 54.3 | DI6: 54.697 | DJ6: 55.806 | DK6: 55.75 | DL6: 56.168 | DM6: 56.63 | DN6: 56.63 | DO6: 57.64 | DP6: 57.912 | DQ6: 57.269 | DR6: 56.983 | DS6: 56.844 | DT6: 57.988 | DU6: 57.253 | DV6: 56.653 | DW6: 56.4 | DX6: 56.156 | DY6: 57.052 | DZ6: 58.148 | EA6: 57.991 | EB6: 58.122 | EC6: 58.93 | ED6: 58.98 | EE6: 58.353 | EF6: 58.48 | EG6: 57.695 | EH6: 56.548 | EI6: 57.822 | EJ6: 56.844 | EK6: 58.61 | EL6: 58.2 | EM6: 56.775 | EN6: 53.096 | EO6: 54.104 | EP6: 53.845 | EQ6: 55.5 | ER6: 54.8 | ES6: 55.295 | ET6: 56.605 | EU6: 56.476 | EV6: 57.654 | EW6: 58.366 | EX6: 57.75 | EY6: 56.614 | EZ6: 56.7 | FA6: 54.69 | FB6: 53.777 | FC6: 52.565 | FD6: 53.298 | FE6: 53.6 | FF6: 53.972 | FG6: 55.34 | FH6: 56.044 | FI6: 56.464 | FJ6: 56.4 | FK6: 57.34 | FL6: 57.232 | FM6: 56.25 | FN6: 54.353 | FO6: 55.013 | FP6: 54.662 | FQ6: 54.662 | FR6: 56.438 | FS6: 56.3 | FT6: 55.784 | FU6: 56.472 | FV6: 56.49 | FW6: 56.588
A7: DE000A0F5UH1 | B7: iShares STOXX Global Select Dividend 100 UCITS ETF | C7: ISPA | D7: EUR | E7: 29.13 | F7: 29.315 | G7: 29.57 | H7: 29.63 | I7: 28.63 | J7: 29.265 | K7: 29.86 | L7: 29.525 | M7: 25.88 | N7: 25.29 | O7: 21.015 | P7: 19.734 | Q7: 20.64 | R7: 19.878 | S7: 22.18 | T7: 21.19 | U7: 20.795 | V7: 22 | W7: 21.715 | X7: 20.54 | Y7: 21.055 | Z7: 21.705 | AA7: 24.545 | AB7: 22.655 | AC7: 23.04 | AD7: 22.165 | AE7: 22.6 | AF7: 22.6 | AG7: 22.315 | AH7: 22.535 | AI7: 22.18 | AJ7: 21.395 | AK7: 22.075 | AL7: 22.45 | AM7: 22.035 | AN7: 22.51 | AO7: 22.275 | AP7: 22.295 | AQ7: 22.22 | AR7: 21.37 | AS7: 22 | AT7: 22 | AU7: 22.815 | AV7: 22.26 | AW7: 22.27 | AX7: 21.345 | AY7: 22.26 | AZ7: 23.85 | BA7: 24.545 | BB7: 25.17 | BC7: 25.335 | BD7: 25.165 | BE7: 25.265 | BF7: 25.25 | BG7: 25.4 | BH7: 25.4 | BI7: 25.4 | BJ7: 26.375 | BK7: 26.345 | BL7: 25.95 | BM7: 25.22 | BN7: 26.255 | BO7: 26.44 | BP7: 26.73 | BQ7: 27 | BR7: 27.59 | BS7: 28.495 | BT7: 28.47 | BU7: 28.595 | BV7: 28.73 | BW7: 28.73 | BX7: 28.75 | BY7: 28.845 | BZ7: 28.54 | CA7: 28.58 | CB7: 29.065 | CC7: 29 | CD7: 29.025 | CE7: 29.215 | CF7: 29.445 | CG7: 29.435 | CH7: 28.995 | CI7: 29.125 | CJ7: 29.24 | CK7: 29.24 | CL7: 29.135 | CM7: 28.915 | CN7: 28.88 | CO7: 28.785 | CP7: 29.195 | CQ7: 29.615 | CR7: 29.17 | CS7: 29.175 | CT7: 29.05 | CU7: 28.705 | CV7: 28.49 | CW7: 28.34 | CX7: 28.4 | CY7: 28.6 | CZ7: 28.805 | DA7: 28.78 | DB7: 28.83 | DC7: 28.82 | DD7: 29.15 | DE7: 29.435 | DF7: 29.24 | DG7: 28.78 | DH7: 28.815 | DI7: 29.3 | DJ7: 29.605 | DK7: 29.85 | DL7: 30.12 | DM7: 30.35 | DN7: 30.35 | DO7: 30.675 | DP7: 31.025 | DQ7: 30.36 | DR7: 30.2 | DS7: 30.3 | DT7: 30.96 | DU7: 30.565 | DV7: 30.155 | DW7: 29.745 | DX7: 30.035 | DY7: 30.55 | DZ7: 30.92 | EA7: 30.87 | EB7: 30.93 | EC7: 30.95 | ED7: 31.105 | EE7: 30.635 | EF7: 30.785 | EG7: 29.99 | EH7: 29.46 | EI7: 30.24 | EJ7: 30.23 | EK7: 30.87 | EL7: 30.575 | EM7: 29.475 | EN7: 28 | EO7: 28.155 | EP7: 27.99 | EQ7: 28.865 | ER7: 27.8 | ES7: 28.275 | ET7: 29.045 | EU7: 29.105 | EV7: 29.785 | EW7: 29.69 | EX7: 29.2 | EY7: 28.57 | EZ7: 28.755 | FA7: 28.145 | FB7: 27.525 | FC7: 26.76 | FD7: 26.84 | FE7: 26.745 | FF7: 26.59 | FG7: 26.975 | FH7: 27.6 | FI7: 28.235 | FJ7: 28.45 | FK7: 28.815 | FL7: 28.865 | FM7: 28.935 | FN7: 28.085 | FO7: 28.185 | FP7: 28.155 | FQ7: 28.155 | FR7: 29.08 | FS7: 29.18 | FT7: 28.8 | FU7: 29.285 | FV7: 29.305

Sheet FundValue
A1: FundISIN | B1: FundName | C1: FundAcro | D1: FundCurr | E1: 2020-01-01 | F1: 2020-01-04 | G1: 2020-01-11 | H1: 2020-01-18 | I1: 2020-01-25 | J1: 2020-02-01 | K1: 2020-02-08 | L1: 2020-02-15 | M1: 2020-02-22 | N1: 2020-02-29 | O1: 2020-03-07 | P1: 2020-03-14 | Q1: 2020-03-21 | R1: 2020-03-28 | S1: 2020-04-04 | T1: 2020-04-11 | U1: 2020-04-18 | V1: 2020-04-25 | W1: 2020-05-02 | X1: 2020-05-09 | Y1: 2020-05-16 | Z1: 2020-05-23 | AA1: 2020-05-30 | AB1: 2020-06-06 | AC1: 2020-06-13 | AD1: 2020-06-20 | AE1: 2020-06-27 | AF1: 2020-07-01 | AG1: 2020-07-04 | AH1: 2020-07-11 | AI1: 2020-07-18 | AJ1: 2020-07-25 | AK1: 2020-08-01 | AL1: 2020-08-08 | AM1: 2020-08-15 | AN1: 2020-08-22 | AO1: 2020-08-29 | AP1: 2020-09-05 | AQ1: 2020-09-12 | AR1: 2020-09-19 | AS1: 2020-09-26 | AT1: 2020-10-01 | AU1: 2020-10-03 | AV1: 2020-10-10 | AW1: 2020-10-17 | AX1: 2020-10-24 | AY1: 2020-10-31 | AZ1: 2020-11-07 | BA1: 2020-11-14 | BB1: 2020-11-21 | BC1: 2020-11-28 | BD1: 2020-12-05 | BE1: 2020-12-12 | BF1: 2020-12-19 | BG1: 2020-12-26 | BH1: 2020-12-31 | BI1: 2021-01-01 | BJ1: 2021-01-02 | BK1: 2021-01-09 | BL1: 2021-01-16 | BM1: 2021-01-23 | BN1: 2021-01-30 | BO1: 2021-02-06 | BP1: 2021-02-13 | BQ1: 2021-02-20 | BR1: 2021-02-27 | BS1: 2021-03-06 | BT1: 2021-03-13 | BU1: 2021-03-20 | BV1: 2021-03-27 | BW1: 2021-03-31 | BX1: 2021-04-03 | BY1: 2021-04-10 | BZ1: 2021-04-17 | CA1: 2021-04-24 | CB1: 2021-05-01 | CC1: 2021-05-08 | CD1: 2021-05-15 | CE1: 2021-05-22 | CF1: 2021-05-30 | CG1: 2021-06-05 | CH1: 2021-06-12 | CI1: 2021-06-19 | CJ1: 2021-06-26 | CK1: 2021-07-01 | CL1: 2021-07-03 | CM1: 2021-07-10 | CN1: 2021-07-17 | CO1: 2021-07-24 | CP1: 2021-07-31 | CQ1: 2021-08-07 | CR1: 2021-08-14 | CS1: 2021-08-21 | CT1: 2021-08-28 | CU1: 2021-09-04 | CV1: 2021-09-11 | CW1: 2021-09-18 | CX1: 2021-09-25 | CY1: 2021-09-30 | CZ1: 2021-10-02 | DA1: 2021-10-09 | DB1: 2021-10-16 | DC1: 2021-10-23 | DD1: 2021-10-30 | DE1: 2021-11-06 | DF1: 2021-11-13 | DG1: 2021-11-20 | DH1: 2021-11-27 | DI1: 2021-12-04 | DJ1: 2021-12-11 | DK1: 2021-12-18 | DL1: 2021-12-25 | DM1: 2021-12-31 | DN1: 2022-01-01 | DO1: 2022-01-08 | DP1: 2022-01-15 | DQ1: 2022-01-22 | DR1: 2022-01-29 | DS1: 2022-02-05 | DT1: 2022-02-12 | DU1: 2022-02-19 | DV1: 2022-02-26 | DW1: 2022-03-05 | DX1: 2022-03-12 | DY1: 2022-03-19 | DZ1: 2022-03-26 | EA1: 2022-03-31 | EB1: 2022-04-02 | EC1: 2022-04-09 | ED1: 2022-04-16 | EE1: 2022-04-23 | EF1: 2022-04-30 | EG1: 2022-05-07 | EH1: 2022-05-11 | EI1: 2022-05-14 | EJ1: 2022-05-21 | EK1: 2022-05-28 | EL1: 2022-06-04 | EM1: 2022-06-11 | EN1: 2022-06-18 | EO1: 2022-06-25 | EP1: 2022-06-30 | EQ1: 2022-07-09 | ER1: 2022-07-16 | ES1: 2022-07-23 | ET1: 2022-07-30 | EU1: 2022-08-06 | EV1: 2022-08-13 | EW1: 2022-08-20 | EX1: 2022-08-28 | EY1: 2022-09-03 | EZ1: 2022-09-10 | FA1: 2022-09-17 | FB1: 2022-09-24 | FC1: 2022-10-01 | FD1: 2022-10-08 | FE1: 2022-10-15 | FF1: 2022-10-22 | FG1: 2022-10-29 | FH1: 2022-11-05 | FI1: 2022-11-12 | FJ1: 2022-11-19 | FK1: 2022-11-26 | FL1: 2022-12-03 | FM1: 2022-12-10 | FN1: 2022-12-17 | FO1: 2022-12-24 | FP1: 2022-12-31 | FQ1: 2023-01-01 | FR1: 2023-01-07 | FS1: 2023-01-14 | FT1: 2023-01-21 | FU1: 2023-01-28 | FV1: 2023-02-04 | FW1: 2023-02-11
A2: IE00B3RBWM25 | B2: Vanguard FTSE All-World UCITS ETF | C2: VWRL | D2: EUR | J2: 1080.95 | K2: 1125.15 | L2: 1147.12 | M2: 1133.6 | N2: 992.68 | O2: 971.49 | P2: 840.71 | Q2: 816.53 | R2: 1880.94 | S2: 1885.29 | T2: 2056.1 | U2: 2088 | V2: 2073.21 | W2: 3091.2 | X2: 3123.96 | Y2: 3044.58 | Z2: 3122.7 | AA2: 3155.04 | AB2: 3335.22 | AC2: 3168.06 | AD2: 3279.36 | AE2: 4180 | AF2: 4214.65 | AG2: 4287.8 | AH2: 4320.8 | AI2: 4345.55 | AJ2: 4274.6 | AK2: 4209.7 | AL2: 4332.9 | AM2: 4374.7 | AN2: 4389.55 | AO2: 4466 | AP2: 4367 | AQ2: 4357.65 | AR2: 4356.55 | AS2: 5233.37 | AT2: 5331.19 | AU2: 5327.17 | AV2: 5451.79 | AW2: 5504.05 | AX2: 5406.23 | AY2: 5218.63 | AZ2: 5500.03 | BA2: 5639.39 | BB2: 5694.33 | BC2: 5766.69 | BD2: 5762 | BE2: 5724.48 | BF2: 5752.62 | BG2: 5759.99 | BH2: 6832.71 | BI2: 6832.71 | BJ2: 6832.71 | BK2: 7027.05 | BL2: 7054.7 | BM2: 7110 | BN2: 7775.93 | BO2: 8170.2 | BP2: 8245.85 | BQ2: 8250.3 | BR2: 8001.1 | BS2: 7968.17 | BT2: 8269.88 | BU2: 8284.12 | BV2: 8331.29 | BW2: 8431.86 | BX2: 8479.92 | BY2: 8543.11 | BZ2: 8624.99 | CA2: 8557.35 | CB2: 8565.36 | CC2: 8615.2 | CD2: 8468.35 | CE2: 8488.82 | CF2: 9566.37 | CG2: 9630.72 | CH2: 9718.83 | CI2: 9695.07 | CJ2: 10833.51 | CK2: 10877.11 | CL2: 10947.96 | CM2: 10956.68 | CN2: 10950.14 | CO2: 11083.12 | CP2: 10963.22 | CQ2: 11141.98 | CR2: 11194.3 | CS2: 11107.1 | CT2: 11229.18 | CU2: 11288.04 | CV2: 11233.54 | CW2: 11137.62 | CX2: 11144.16 | CY2: 12049.94 | CZ2: 11971.4 | DA2: 12157.04 | DB2: 12361.72 | DC2: 12452.16 | DD2: 12599.72 | DE2: 12832.96 | DF2: 12928.16 | DG2: 13061.44 | DH2: 12628.28 | DI2: 12525.94 | DJ2: 12873.42 | DK2: 12754.42 | DL2: 12928.16 | DM2: 13023.36 | DN2: 13023.36 | DO2: 12804.4 | DP2: 12687.78 | DQ2: 12440.26 | DR2: 13248.3 | DS2: 13256.04 | DT2: 13436.64 | DU2: 13170.9 | DV2: 13168.32 | DW2: 14012.52 | DX2: 13846.92 | DY2: 14340.96 | DZ2: 15643.6 | EA2: 15723.52 | EB2: 15688 | EC2: 15779.76 | ED2: 15652.48 | EE2: 16246.36 | EF2: 16280.9 | EG2: 15753.38 | EH2: 15257.26 | EI2: 15689.01 | EJ2: 15211.73 | EK2: 16780.16 | EL2: 16713.36 | EM2: 16239.08 | EN2: 15305.55 | EO2: 15873.35 | EP2: 16576.05 | EQ2: 17446.89 | ER2: 17238.03 | ES2: 17565.48 | ET2: 19085.22 | EU2: 19234.82 | EV2: 19608.82 | EW2: 19758.42 | EX2: 20403.6 | EY2: 19811.68 | EZ2: 19968.48 | FA2: 19066.88 | FB2: 18723.88 | FC2: 18449.48 | FD2: 18561.2 | FE2: 18314.24 | FF2: 18543.56 | FG2: 19887.24 | FH2: 19732.74 | FI2: 20142.68 | FJ2: 20105.6 | FK2: 21340.8 | FL2: 21399.12 | FM2: 20999.52 | FN2: 20215.44 | FO2: 20157.12 | FP2: 20936.64 | FQ2: 20936.64 | FR2: 21549.1 | FS2: 21784.14 | FT2: 21705.04 | FU2: 23205.88 | FV2: 23597.64 | FW2: 23411.2
A3: IE00BF4RFH31 | B3: iShares MSCI World Small Cap | C3: IUSN | D3: EUR | AO3: 1112.75 | AP3: 1089.125 | AQ3: 1088.75 | AR3: 1110.125 | AS3: 1083.75 | AT3: 1107.5 | AU3: 1115.5 | AV3: 1163.25 | AW3: 1172 | AX3: 1156.25 | AY3: 1111.75 | AZ3: 1166.625 | BA3: 1214.625 | BB3: 1235.25 | BC3: 1266.5 | BD3: 1270.25 | BE3: 1274.25 | BF3: 1301.75 | BG3: 1312.5 | BH3: 1305.25 | BI3: 1305.25 | BJ3: 1305.25 | BK3: 1362.25 | BL3: 1380.25 | BM3: 1381.75 | BN3: 1355 | BO3: 1432.75 | BP3: 1455.5 | BQ3: 1447 | BR3: 1418.5 | BS3: 1400.5 | BT3: 1501.25 | BU3: 1501 | BV3: 1487.25 | BW3: 1490.25 | BX3: 1503.5 | BY3: 1503.5 | BZ3: 1514.75 | CA3: 1497.25 | CB3: 1509.5 | CC3: 1512 | CD3: 1480 | CE3: 1472 | CF3: 1505.5 | CG3: 1514 | CH3: 1539.25 | CI3: 1514 | CJ3: 1552 | CK3: 1545.25 | CL3: 1556 | CM3: 1543.5 | CN3: 1514.75 | CO3: 1531 | CP3: 2516.17 | CQ3: 2555.94 | CR3: 2559.22 | CS3: 2511.66 | CT3: 3605.82 | CU3: 3628.05 | CV3: 3596.7 | CW3: 3589.29 | CX3: 3617.79 | CY3: 3572.19 | CZ3: 3555.09 | DA3: 3610.95 | DB3: 3675.93 | DC3: 3695.31 | DD3: 3720.39 | DE3: 3836.1 | DF3: 3848.64 | DG3: 3819.57 | DH3: 3648 | DI3: 3588.72 | DJ3: 3653.13 | DK3: 3613.23 | DL3: 3707.28 | DM3: 4717.44 | DN3: 4717.44 | DO3: 4645.44 | DP3: 4546.08 | DQ3: 4326.48 | DR3: 4290.48 | DS3: 4280.4 | DT3: 4407.84 | DU3: 4371.84 | DV3: 4379.76 | DW3: 4359.6 | DX3: 4336.56 | DY3: 4452.48 | DZ3: 4515.12 | EA3: 4507.92 | EB3: 4545.36 | EC3: 4476.96 | ED3: 4510.8 | EE3: 4415.76 | EF3: 4413.6 | EG3: 4304.16 | EH3: 4075.2 | EI3: 4222.8 | EJ3: 4141.44 | EK3: 4266.72 | EL3: 4325.76 | EM3: 4178.16 | EN3: 3902.4 | EO3: 4032 | EP3: 3960.72 | EQ3: 4181.76 | ER3: 4080.24 | ES3: 4310.64 | ET3: 4402.08 | EU3: 4464.72 | EV3: 4604.4 | EW3: 4551.12 | EX3: 4580.64 | EY3: 4304.88 | EZ3: 4404.96 | FA3: 4248 | FB3: 4065.12 | FC3: 4023.36 | FD3: 4088.88 | FE3: 4075.92 | FF3: 4067.28 | FG3: 4209.84 | FH3: 4214.16 | FI3: 4320.72 | FJ3: 4277.52 | FK3: 4332.24 | FL3: 4350.96 | FM3: 4176 | FN3: 4064.4 | FO3: 4064.4 | FP3: 4060.8 | FQ3: 4060.8 | FR3: 4173.84 | FS3: 4273.92 | FT3: 4226.4 | FU3: 4327.2 | FV3: 4472.64 | FW3: 4404.96
A4: NL0011683594 | B4: VanEck Dev Markets Dividend Leaders ETF | C4: TDIV | D4: EUR | N4: 916.475 | O4: 889.525 | P4: 739.025 | Q4: 705.425 | R4: 747.25 | S4: 737.8 | T4: 798.875 | U4: 788.2 | V4: 777.525 | W4: 810.6 | X4: 801.5 | Y4: 773.5 | Z4: 795.2 | AA4: 816.375 | AB4: 891.45 | AC4: 837.375 | AD4: 841.75 | AE4: 811.65 | AF4: 820.225 | AG4: 823.55 | AH4: 815.85 | AI4: 830.9 | AJ4: 812.525 | AK4: 1790.4 | AL4: 1838 | AM4: 1887.2 | AN4: 1862.4 | AO4: 1889.2 | AP4: 1878.8 | AQ4: 1878.8 | AR4: 1860 | AS4: 1805.2 | AT4: 1826.4 | AU4: 1824 | AV4: 1870.4 | AW4: 1853.6 | AX4: 1843.6 | AY4: 2768.125 | AZ4: 2885 | BA4: 3081.875 | BB4: 3143.125 | BC4: 3208.75 | BD4: 3218.75 | BE4: 3196.25 | BF4: 3163.125 | BG4: 3148.125 | BH4: 3151.875 | BI4: 3151.875 | BJ4: 3151.875 | BK4: 3280.625 | BL4: 3318.75 | BM4: 3271.25 | BN4: 3183.125 | BO4: 3298.75 | BP4: 3311.875 | BQ4: 3342.5 | BR4: 4255.2 | BS4: 4343.2 | BT4: 4482.4 | BU4: 4517.6 | BV4: 4571.2 | BW4: 4572.8 | BX4: 4564 | BY4: 4560.8 | BZ4: 4582.4 | CA4: 4549.6 | CB4: 4552.8 | CC4: 4664 | CD4: 4671.2 | CE4: 4641.6 | CF4: 4645.6 | CG4: 4672 | CH4: 4674.4 | CI4: 4565.6 | CJ4: 4600 | CK4: 4573.6 | CL4: 4600 | CM4: 4603.2 | CN4: 4616.8 | CO4: 4609.6 | CP4: 4632 | CQ4: 4686.4 | CR4: 4760 | CS4: 4709.6 | CT4: 4705.6 | CU4: 4683.2 | CV4: 4623.2 | CW4: 4550.4 | CX4: 4560 | CY4: 4596.8 | CZ4: 4527.2 | DA4: 4658.4 | DB4: 4674.4 | DC4: 4652.8 | DD4: 4656 | DE4: 4732.8 | DF4: 4772 | DG4: 4736.8 | DH4: 4688 | DI4: 4696 | DJ4: 4801.6 | DK4: 4878.4 | DL4: 4934.4 | DM4: 4944 | DN4: 4944 | DO4: 5146.4 | DP4: 5260 | DQ4: 5250.4 | DR4: 5280 | DS4: 5258.4 | DT4: 5360.8 | DU4: 5309.6 | DV4: 5250.4 | DW4: 5275.2 | DX4: 5324 | DY4: 5317.6 | DZ4: 5465.6 | EA4: 5430.4 | EB4: 5444.8 | EC4: 5594.4 | ED4: 5635.2 | EE4: 5574.4 | EF4: 5560 | EG4: 5554.4 | EH4: 5440 | EI4: 5600 | EJ4: 5580.8 | EK4: 5756.8 | EL4: 5555.2 | EM4: 5469.6 | EN4: 5168 | EO4: 5207.2 | EP4: 5182.4 | EQ4: 5295.2 | ER4: 5196 | ES4: 5216.8 | ET4: 5356.8 | EU4: 5350.4 | EV4: 5443.2 | EW4: 5476 | EX4: 5419.2 | EY4: 5368.8 | EZ4: 5313.6 | FA4: 5243.2 | FB4: 5112 | FC4: 5949.85 | FD4: 6046.75 | FE4: 6064.8 | FF4: 6134.15 | FG4: 6289 | FH4: 6405.85 | FI4: 6448.6 | FJ4: 6524.6 | FK4: 6650 | FL4: 6623.4 | FM4: 6533.15 | FN4: 6365 | FO4: 6522.7 | FP4: 6518.9 | FQ4: 6518.9 | FR4: 6752.6 | FS4: 6802 | FT4: 6730.75 | FU4: 6795.35 | FV4: 6805.8 | FW4: 6859.95
A5: LU0378818131 | B5: Xtrackers II Global Gov Bond UCITS ETF | C5: DBZB | D5: EUR | AA5: 976.48 | AB5: 964.36 | AC5: 975.92 | AD5: 975.2 | AE5: 977.52 | AF5: 977.6 | AG5: 977.12 | AH5: 981.72 | AI5: 979.08 | AJ5: 983 | AK5: 986.76 | AL5: 986.08 | AM5: 976.12 | AN5: 980.56 | AO5: 973.12 | AP5: 977.12 | AQ5: 980.4 | AR5: 980.04 | AS5: 983.28 | AT5: 979.84 | AU5: 981.16 | AV5: 978.28 | AW5: 983.88 | AX5: 977.32 | AY5: 978.76 | AZ5: 982.16 | BA5: 979.24 | BB5: 982.12 | BC5: 1961.52 | BD5: 1952.8 | BE5: 1966.96 | BF5: 1959.28 | BG5: 1958.16 | BH5: 1958.56 | BI5: 1958.56 | BJ5: 1958.56 | BK5: 1944.16 | BL5: 1947.68 | BM5: 1942.8 | BN5: 1943.92 | BO5: 1938.56 | BP5: 1935.12 | BQ5: 1915.12 | BR5: 1898.72 | BS5: 1903.68 | BT5: 1900.48 | BU5: 1895.52 | BV5: 1904.88 | BW5: 1897.76 | BX5: 1900.16 | BY5: 1898.96 | BZ5: 1901.76 | CA5: 1902.48 | CB5: 1894.24 | CC5: 1897.52 | CD5: 1887.6 | CE5: 1890.24 | CF5: 1897.36 | CG5: 1898.72 | CH5: 1908.32 | CI5: 1905.12 | CJ5: 1898.16 | CK5: 1905.2 | CL5: 1907.2 | CM5: 1916.64 | CN5: 1923.2 | CO5: 1928.88 | CP5: 1933.52 | CQ5: 1929.36 | CR5: 1931.52 | CS5: 1937.28 | CT5: 1926.8 | CU5: 1923.12 | CV5: 1921.92 | CW5: 1916.72 | CX5: 1909.76 | CY5: 1899.52 | CZ5: 1901.92 | DA5: 1892.72 | DB5: 1897.04 | DC5: 1888.72 | DD5: 1896.56 | DE5: 1914.4 | DF5: 1906.08 | DG5: 1912.24 | DH5: 1909.44 | DI5: 1921.68 | DJ5: 1916.16 | DK5: 1918.4 | DL5: 1903.04 | DM5: 1896 | DN5: 1896 | DO5: 1872.16 | DP5: 1876.56 | DQ5: 1877.52 | DR5: 1871.44 | DS5: 1846 | DT5: 1826.56 | DU5: 1838.96 | DV5: 1832.72 | DW5: 1864.96 | DX5: 1826.96 | DY5: 1818.08 | DZ5: 1790.48 | EA5: 1800.96 | EB5: 1794 | EC5: 1771.68 | ED5: 1759.44 | EE5: 1746.88 | EF5: 1747.76 | EG5: 1726.88 | EH5: 1736.16 | EI5: 1743.28 | EJ5: 1742.56 | EK5: 1747.2 | EL5: 1720 | EM5: 1695.2 | EN5: 1688.24 | EO5: 1696.8 | EP5: 1705.28 | EQ5: 1701.52 | ER5: 1718.64 | ES5: 1730.08 | ET5: 1744.88 | EU5: 1733.6 | EV5: 1728.96 | EW5: 1710.72 | EX5: 1698.64 | EY5: 1680.72 | EZ5: 1670.64 | FA5: 1660.16 | FB5: 1635.84 | FC5: 1629.2 | FD5: 1615.68 | FE5: 1601.52 | FF5: 1591.76 | FG5: 1623.92 | FH5: 1604.8 | FI5: 1627.28 | FJ5: 1638.08 | FK5: 1644.88 | FL5: 1656.72 | FM5: 1659.04 | FN5: 1644.88 | FO5: 1625.2 | FP5: 1609.6 | FQ5: 1609.6 | FR5: 1635.12 | FS5: 1645.2 | FT5: 1648.48 | FU5: 1639.44 | FV5: 1646.96 | FW5: 1627.92
A6: IE00B8GKDB10 | B6: Vanguard FTSE All-World Hi Div Yld | C6: VHYL | D6: EUR | BV6: 976.657 | BW6: 984.504 | BX6: 985.226 | BY6: 983.535 | BZ6: 989.71 | CA6: 979.336 | CB6: 1961.826 | CC6: 2004.5 | CD6: 1999.902 | CE6: 1995 | CF6: 2008.3 | CG6: 2033.646 | CH6: 2036.42 | CI6: 1991.58 | CJ6: 2015.558 | CK6: 2008.148 | CL6: 2019.7 | CM6: 2013.962 | CN6: 2010.048 | CO6: 2013.772 | CP6: 2007.578 | CQ6: 2033.114 | CR6: 2054.66 | CS6: 2022.436 | CT6: 2043.26 | CU6: 2043.602 | CV6: 2024.07 | CW6: 2004.272 | CX6: 2013.354 | CY6: 2020.08 | CZ6: 2011.492 | DA6: 2047.06 | DB6: 2071.798 | DC6: 2073.926 | DD6: 3011.25 | DE6: 3041.665 | DF6: 3076.26 | DG6: 3062.95 | DH6: 3909.6 | DI6: 3938.184 | DJ6: 4018.032 | DK6: 4014 | DL6: 4044.096 | DM6: 4077.36 | DN6: 4077.36 | DO6: 4150.08 | DP6: 4169.664 | DQ6: 4123.368 | DR6: 4102.776 | DS6: 4092.768 | DT6: 4175.136 | DU6: 4122.216 | DV6: 4079.016 | DW6: 4060.8 | DX6: 4043.232 | DY6: 4107.744 | DZ6: 4186.656 | EA6: 4175.352 | EB6: 4184.784 | EC6: 4242.96 | ED6: 4246.56 | EE6: 4201.416 | EF6: 4210.56 | EG6: 4154.04 | EH6: 4071.456 | EI6: 4163.184 | EJ6: 4092.768 | EK6: 4219.92 | EL6: 4190.4 | EM6: 4087.8 | EN6: 3822.912 | EO6: 3895.488 | EP6: 3876.84 | EQ6: 3996 | ER6: 3945.6 | ES6: 3981.24 | ET6: 4075.56 | EU6: 4066.272 | EV6: 4151.088 | EW6: 4202.352 | EX6: 4158 | EY6: 4076.208 | EZ6: 4082.4 | FA6: 3937.68 | FB6: 3871.944 | FC6: 3784.68 | FD6: 3837.456 | FE6: 3859.2 | FF6: 3885.984 | FG6: 3984.48 | FH6: 4035.168 | FI6: 4065.408 | FJ6: 4060.8 | FK6: 4128.48 | FL6: 4120.704 | FM6: 4050 | FN6: 3913.416 | FO6: 3960.936 | FP6: 3935.664 | FQ6: 3935.664 | FR6: 4063.536 | FS6: 4053.6 | FT6: 4016.448 | FU6: 4065.984 | FV6: 4067.28 | FW6: 4074.336
A7: DE000A0F5UH1 | B7: iShares STOXX Global Select Dividend 100 UCITS ETF | C7: ISPA | D7: EUR

Sheet TotalValue
A1: FundISIN | B1: FundName | C1: FundAcro | D1: FundCurr | E1: 2020-01-01 | F1: 2020-01-04 | G1: 2020-01-11 | H1: 2020-01-18 | I1: 2020-01-25 | J1: 2020-02-01 | K1: 2020-02-08 | L1: 2020-02-15 | M1: 2020-02-22 | N1: 2020-02-29 | O1: 2020-03-07 | P1: 2020-03-14 | Q1: 2020-03-21 | R1: 2020-03-28 | S1: 2020-04-04 | T1: 2020-04-11 | U1: 2020-04-18 | V1: 2020-04-25 | W1: 2020-05-02 | X1: 2020-05-09 | Y1: 2020-05-16 | Z1: 2020-05-23 | AA1: 2020-05-30 | AB1: 2020-06-06 | AC1: 2020-06-13 | AD1: 2020-06-20 | AE1: 2020-06-27 | AF1: 2020-07-01 | AG1: 2020-07-04 | AH1: 2020-07-11 | AI1: 2020-07-18 | AJ1: 2020-07-25 | AK1: 2020-08-01 | AL1: 2020-08-08 | AM1: 2020-08-15 | AN1: 2020-08-22 | AO1: 2020-08-29 | AP1: 2020-09-05 | AQ1: 2020-09-12 | AR1: 2020-09-19 | AS1: 2020-09-26 | AT1: 2020-10-01 | AU1: 2020-10-03 | AV1: 2020-10-10 | AW1: 2020-10-17 | AX1: 2020-10-24 | AY1: 2020-10-31 | AZ1: 2020-11-07 | BA1: 2020-11-14 | BB1: 2020-11-21 | BC1: 2020-11-28 | BD1: 2020-12-05 | BE1: 2020-12-12 | BF1: 2020-12-19 | BG1: 2020-12-26 | BH1: 2020-12-31 | BI1: 2021-01-01 | BJ1: 2021-01-02 | BK1: 2021-01-09 | BL1: 2021-01-16 | BM1: 2021-01-23 | BN1: 2021-01-30 | BO1: 2021-02-06 | BP1: 2021-02-13 | BQ1: 2021-02-20 | BR1: 2021-02-27 | BS1: 2021-03-06 | BT1: 2021-03-13 | BU1: 2021-03-20 | BV1: 2021-03-27 | BW1: 2021-03-31 | BX1: 2021-04-03 | BY1: 2021-04-10 | BZ1: 2021-04-17 | CA1: 2021-04-24 | CB1: 2021-05-01 | CC1: 2021-05-08 | CD1: 2021-05-15 | CE1: 2021-05-22 | CF1: 2021-05-30 | CG1: 2021-06-05 | CH1: 2021-06-12 | CI1: 2021-06-19 | CJ1: 2021-06-26 | CK1: 2021-07-01 | CL1: 2021-07-03 | CM1: 2021-07-10 | CN1: 2021-07-17 | CO1: 2021-07-24 | CP1: 2021-07-31 | CQ1: 2021-08-07 | CR1: 2021-08-14 | CS1: 2021-08-21 | CT1: 2021-08-28 | CU1: 2021-09-04 | CV1: 2021-09-11 | CW1: 2021-09-18 | CX1: 2021-09-25 | CY1: 2021-09-30 | CZ1: 2021-10-02 | DA1: 2021-10-09 | DB1: 2021-10-16 | DC1: 2021-10-23 | DD1: 2021-10-30 | DE1: 2021-11-06 | DF1: 2021-11-13 | DG1: 2021-11-20 | DH1: 2021-11-27 | DI1: 2021-12-04 | DJ1: 2021-12-11 | DK1: 2021-12-18 | DL1: 2021-12-25 | DM1: 2021-12-31 | DN1: 2022-01-01 | DO1: 2022-01-08 | DP1: 2022-01-15 | DQ1: 2022-01-22 | DR1: 2022-01-29 | DS1: 2022-02-05 | DT1: 2022-02-12 | DU1: 2022-02-19 | DV1: 2022-02-26 | DW1: 2022-03-05 | DX1: 2022-03-12 | DY1: 2022-03-19 | DZ1: 2022-03-26 | EA1: 2022-03-31 | EB1: 2022-04-02 | EC1: 2022-04-09 | ED1: 2022-04-16 | EE1: 2022-04-23 | EF1: 2022-04-30 | EG1: 2022-05-07 | EH1: 2022-05-11 | EI1: 2022-05-14 | EJ1: 2022-05-21 | EK1: 2022-05-28 | EL1: 2022-06-04 | EM1: 2022-06-11 | EN1: 2022-06-18 | EO1: 2022-06-25 | EP1: 2022-06-30 | EQ1: 2022-07-09 | ER1: 2022-07-16 | ES1: 2022-07-23 | ET1: 2022-07-30 | EU1: 2022-08-06 | EV1: 2022-08-13 | EW1: 2022-08-20 | EX1: 2022-08-28 | EY1: 2022-09-03 | EZ1: 2022-09-10 | FA1: 2022-09-17 | FB1: 2022-09-24 | FC1: 2022-10-01 | FD1: 2022-10-08 | FE1: 2022-10-15 | FF1: 2022-10-22 | FG1: 2022-10-29 | FH1: 2022-11-05 | FI1: 2022-11-12 | FJ1: 2022-11-19 | FK1: 2022-11-26 | FL1: 2022-12-03 | FM1: 2022-12-10 | FN1: 2022-12-17 | FO1: 2022-12-24 | FP1: 2022-12-31 | FQ1: 2023-01-01 | FR1: 2023-01-07 | FS1: 2023-01-14 | FT1: 2023-01-21 | FU1: 2023-01-28 | FV1: 2023-02-04 | FW1: 2023-02-11
B2: Total Portfolio Value | E2: 0 | F2: =SUM(FundValue!F2:'FundValue'!F972) -> 0 | G2: =SUM(FundValue!G2:'FundValue'!G972) -> 0 | H2: =SUM(FundValue!H2:'FundValue'!H972) -> 0 | I2: =SUM(FundValue!I2:'FundValue'!I972) -> 0 | J2: =SUM(FundValue!J2:'FundValue'!J972) -> 1080.95 | K2: =SUM(FundValue!K2:'FundValue'!K972) -> 1125.15 | L2: =SUM(FundValue!L2:'FundValue'!L972) -> 1147.12 | M2: =SUM(FundValue!M2:'FundValue'!M972) -> 1133.6 | N2: =SUM(FundValue!N2:'FundValue'!N972) -> 1909.155 | O2: =SUM(FundValue!O2:'FundValue'!O972) -> 1861.015 | P2: =SUM(FundValue!P2:'FundValue'!P972) -> 1579.735 | Q2: =SUM(FundValue!Q2:'FundValue'!Q972) -> 1521.955 | R2: =SUM(FundValue!R2:'FundValue'!R972) -> 2628.19 | S2: =SUM(FundValue!S2:'FundValue'!S972) -> 2623.09 | T2: =SUM(FundValue!T2:'FundValue'!T972) -> 2854.975 | U2: =SUM(FundValue!U2:'FundValue'!U972) -> 2876.2 | V2: =SUM(FundValue!V2:'FundValue'!V972) -> 2850.735 | W2: =SUM(FundValue!W2:'FundValue'!W972) -> 3901.8 | X2: =SUM(FundValue!X2:'FundValue'!X972) -> 3925.46 | Y2: =SUM(FundValue!Y2:'FundValue'!Y972) -> 3818.08 | Z2: =SUM(FundValue!Z2:'FundValue'!Z972) -> 3917.9 | AA2: =SUM(FundValue!AA2:'FundValue'!AA972) -> 4947.895 | AB2: =SUM(FundValue!AB2:'FundValue'!AB972) -> 5191.03 | AC2: =SUM(FundValue!AC2:'FundValue'!AC972) -> 4981.355 | AD2: =SUM(FundValue!AD2:'FundValue'!AD972) -> 5096.31 | AE2: =SUM(FundValue!AE2:'FundValue'!AE972) -> 5969.17 | AF2: =SUM(FundValue!AF2:'FundValue'!AF972) -> 6012.475 | AG2: =SUM(FundValue!AG2:'FundValue'!AG972) -> 6088.47 | AH2: =SUM(FundValue!AH2:'FundValue'!AH972) -> 6118.37 | AI2: =SUM(FundValue!AI2:'FundValue'!AI972) -> 6155.53 | AJ2: =SUM(FundValue!AJ2:'FundValue'!AJ972) -> 6070.125 | AK2: =SUM(FundValue!AK2:'FundValue'!AK972) -> 6986.86 | AL2: =SUM(FundValue!AL2:'FundValue'!AL972) -> 7156.98 | AM2: =SUM(FundValue!AM2:'FundValue'!AM972) -> 7238.02 | AN2: =SUM(FundValue!AN2:'FundValue'!AN972) -> 7232.51 | AO2: =SUM(FundValue!AO2:'FundValue'!AO972) -> 8441.07 | AP2: =SUM(FundValue!AP2:'FundValue'!AP972) -> 8312.045 | AQ2: =SUM(FundValue!AQ2:'FundValue'!AQ972) -> 8305.6 | AR2: =SUM(FundValue!AR2:'FundValue'!AR972) -> 8306.715 | AS2: =SUM(FundValue!AS2:'FundValue'!AS972) -> 9105.6 | AT2: =SUM(FundValue!AT2:'FundValue'!AT972) -> 9244.93 | AU2: =SUM(FundValue!AU2:'FundValue'!AU972) -> 9247.83 | AV2: =SUM(FundValue!AV2:'FundValue'!AV972) -> 9463.72 | AW2: =SUM(FundValue!AW2:'FundValue'!AW972) -> 9513.53 | AX2: =SUM(FundValue!AX2:'FundValue'!AX972) -> 9383.4 | AY2: =SUM(FundValue!AY2:'FundValue'!AY972) -> 10077.265 | AZ2: =SUM(FundValue!AZ2:'FundValue'!AZ972) -> 10533.815 | BA2: =SUM(FundValue!BA2:'FundValue'!BA972) -> 10915.13 | BB2: =SUM(FundValue!BB2:'FundValue'!BB972) -> 11054.825 | BC2: =SUM(FundValue!BC2:'FundValue'!BC972) -> 12203.46 | BD2: =SUM(FundValue!BD2:'FundValue'!BD972) -> 12203.8 | BE2: =SUM(FundValue!BE2:'FundValue'!BE972) -> 12161.94 | BF2: =SUM(FundValue!BF2:'FundValue'!BF972) -> 12176.775 | BG2: =SUM(FundValue!BG2:'FundValue'!BG972) -> 12178.775 | BH2: =SUM(FundValue!BH2:'FundValue'!BH972) -> 13248.395 | BI2: =SUM(FundValue!BI2:'FundValue'!BI972) -> 13248.395 | BJ2: =SUM(FundValue!BJ2:'FundValue'!BJ972) -> 13248.395 | BK2: =SUM(FundValue!BK2:'FundValue'!BK972) -> 13614.085 | BL2: =SUM(FundValue!BL2:'FundValue'!BL972) -> 13701.38 | BM2: =SUM(FundValue!BM2:'FundValue'!BM972) -> 13705.8 | BN2: =SUM(FundValue!BN2:'FundValue'!BN972) -> 14257.975 | BO2: =SUM(FundValue!BO2:'FundValue'!BO972) -> 14840.26 | BP2: =SUM(FundValue!BP2:'FundValue'!BP972) -> 14948.345 | BQ2: =SUM(FundValue!BQ2:'FundValue'!BQ972) -> 14954.92 | BR2: =SUM(FundValue!BR2:'FundValue'!BR972) -> 15573.52 | BS2: =SUM(FundValue!BS2:'FundValue'!BS972) -> 15615.55 | BT2: =SUM(FundValue!BT2:'FundValue'!BT972) -> 16154.01 | BU2: =SUM(FundValue!BU2:'FundValue'!BU972) -> 16198.24 | BV2: =SUM(FundValue!BV2:'FundValue'!BV972) -> 17271.277 | BW2: =SUM(FundValue!BW2:'FundValue'!BW972) -> 17377.174 | BX2: =SUM(FundValue!BX2:'FundValue'!BX972) -> 17432.806 | BY2: =SUM(FundValue!BY2:'FundValue'!BY972) -> 17489.905 | BZ2: =SUM(FundValue!BZ2:'FundValue'!BZ972) -> 17613.61 | CA2: =SUM(FundValue!CA2:'FundValue'!CA972) -> 17486.016 | CB2: =SUM(FundValue!CB2:'FundValue'!CB972) -> 18483.726 | CC2: =SUM(FundValue!CC2:'FundValue'!CC972) -> 18693.22 | CD2: =SUM(FundValue!CD2:'FundValue'!CD972) -> 18507.052 | CE2: =SUM(FundValue!CE2:'FundValue'!CE972) -> 18487.66 | CF2: =SUM(FundValue!CF2:'FundValue'!CF972) -> 19623.13 | CG2: =SUM(FundValue!CG2:'FundValue'!CG972) -> 19749.086 | CH2: =SUM(FundValue!CH2:'FundValue'!CH972) -> 19877.22 | CI2: =SUM(FundValue!CI2:'FundValue'!CI972) -> 19671.37 | CJ2: =SUM(FundValue!CJ2:'FundValue'!CJ972) -> 20899.228 | CK2: =SUM(FundValue!CK2:'FundValue'!CK972) -> 20909.308 | CL2: =SUM(FundValue!CL2:'FundValue'!CL972) -> 21030.86 | CM2: =SUM(FundValue!CM2:'FundValue'!CM972) -> 21033.982 | CN2: =SUM(FundValue!CN2:'FundValue'!CN972) -> 21014.938 | CO2: =SUM(FundValue!CO2:'FundValue'!CO972) -> 21166.372 | CP2: =SUM(FundValue!CP2:'FundValue'!CP972) -> 22052.488 | CQ2: =SUM(FundValue!CQ2:'FundValue'!CQ972) -> 22346.794 | CR2: =SUM(FundValue!CR2:'FundValue'!CR972) -> 22499.7 | CS2: =SUM(FundValue!CS2:'FundValue'!CS972) -> 22288.076 | CT2: =SUM(FundValue!CT2:'FundValue'!CT972) -> 23510.66 | CU2: =SUM(FundValue!CU2:'FundValue'!CU972) -> 23566.012 | CV2: =SUM(FundValue!CV2:'FundValue'!CV972) -> 23399.43 | CW2: =SUM(FundValue!CW2:'FundValue'!CW972) -> 23198.302 | CX2: =SUM(FundValue!CX2:'FundValue'!CX972) -> 23245.064 | CY2: =SUM(FundValue!CY2:'FundValue'!CY972) -> 24138.53 | CZ2: =SUM(FundValue!CZ2:'FundValue'!CZ972) -> 23967.102 | DA2: =SUM(FundValue!DA2:'FundValue'!DA972) -> 24366.17 | DB2: =SUM(FundValue!DB2:'FundValue'!DB972) -> 24680.888 | DC2: =SUM(FundValue!DC2:'FundValue'!DC972) -> 24762.916 | DD2: =SUM(FundValue!DD2:'FundValue'!DD972) -> 25883.92 | DE2: =SUM(FundValue!DE2:'FundValue'!DE972) -> 26357.925 | DF2: =SUM(FundValue!DF2:'FundValue'!DF972) -> 26531.14 | DG2: =SUM(FundValue!DG2:'FundValue'!DG972) -> 26593 | DH2: =SUM(FundValue!DH2:'FundValue'!DH972) -> 26783.32 | DI2: =SUM(FundValue!DI2:'FundValue'!DI972) -> 26670.524 | DJ2: =SUM(FundValue!DJ2:'FundValue'!DJ972) -> 27262.342 | DK2: =SUM(FundValue!DK2:'FundValue'!DK972) -> 27178.45 | DL2: =SUM(FundValue!DL2:'FundValue'!DL972) -> 27516.976 | DM2: =SUM(FundValue!DM2:'FundValue'!DM972) -> 28658.16 | DN2: =SUM(FundValue!DN2:'FundValue'!DN972) -> 28658.16 | DO2: =SUM(FundValue!DO2:'FundValue'!DO972) -> 28618.48 | DP2: =SUM(FundValue!DP2:'FundValue'!DP972) -> 28540.084 | DQ2: =SUM(FundValue!DQ2:'FundValue'!DQ972) -> 28018.028 | DR2: =SUM(FundValue!DR2:'FundValue'!DR972) -> 28792.996 | DS2: =SUM(FundValue!DS2:'FundValue'!DS972) -> 28733.608 | DT2: =SUM(FundValue!DT2:'FundValue'!DT972) -> 29206.976 | DU2: =SUM(FundValue!DU2:'FundValue'!DU972) -> 28813.516 | DV2: =SUM(FundValue!DV2:'FundValue'!DV972) -> 28710.216 | DW2: =SUM(FundValue!DW2:'FundValue'!DW972) -> 29573.08 | DX2: =SUM(FundValue!DX2:'FundValue'!DX972) -> 29377.672 | DY2: =SUM(FundValue!DY2:'FundValue'!DY972) -> 30036.864 | DZ2: =SUM(FundValue!DZ2:'FundValue'!DZ972) -> 31601.456 | EA2: =SUM(FundValue!EA2:'FundValue'!EA972) -> 31638.152 | EB2: =SUM(FundValue!EB2:'FundValue'!EB972) -> 31656.944 | EC2: =SUM(FundValue!EC2:'FundValue'!EC972) -> 31865.76 | ED2: =SUM(FundValue!ED2:'FundValue'!ED972) -> 31804.48 | EE2: =SUM(FundValue!EE2:'FundValue'!EE972) -> 32184.816 | EF2: =SUM(FundValue!EF2:'FundValue'!EF972) -> 32212.82 | EG2: =SUM(FundValue!EG2:'FundValue'!EG972) -> 31492.86 | EH2: =SUM(FundValue!EH2:'FundValue'!EH972) -> 30580.076 | EI2: =SUM(FundValue!EI2:'FundValue'!EI972) -> 31418.274 | EJ2: =SUM(FundValue!EJ2:'FundValue'!EJ972) -> 30769.298 | EK2: =SUM(FundValue!EK2:'FundValue'!EK972) -> 32770.8 | EL2: =SUM(FundValue!EL2:'FundValue'!EL972) -> 32504.72 | EM2: =SUM(FundValue!EM2:'FundValue'!EM972) -> 31669.84 | EN2: =SUM(FundValue!EN2:'FundValue'!EN972) -> 29887.102 | EO2: =SUM(FundValue!EO2:'FundValue'!EO972) -> 30704.838 | EP2: =SUM(FundValue!EP2:'FundValue'!EP972) -> 31301.29 | EQ2: =SUM(FundValue!EQ2:'FundValue'!EQ972) -> 32621.37 | ER2: =SUM(FundValue!ER2:'FundValue'!ER972) -> 32178.51 | ES2: =SUM(FundValue!ES2:'FundValue'!ES972) -> 32804.24 | ET2: =SUM(FundValue!ET2:'FundValue'!ET972) -> 34664.54 | EU2: =SUM(FundValue!EU2:'FundValue'!EU972) -> 34849.812 | EV2: =SUM(FundValue!EV2:'FundValue'!EV972) -> 35536.468 | EW2: =SUM(FundValue!EW2:'FundValue'!EW972) -> 35698.612 | EX2: =SUM(FundValue!EX2:'FundValue'!EX972) -> 36260.08 | EY2: =SUM(FundValue!EY2:'FundValue'!EY972) -> 35242.288 | EZ2: =SUM(FundValue!EZ2:'FundValue'!EZ972) -> 35440.08 | FA2: =SUM(FundValue!FA2:'FundValue'!FA972) -> 34155.92 | FB2: =SUM(FundValue!FB2:'FundValue'!FB972) -> 33408.784 | FC2: =SUM(FundValue!FC2:'FundValue'!FC972) -> 33836.57 | FD2: =SUM(FundValue!FD2:'FundValue'!FD972) -> 34149.966 | FE2: =SUM(FundValue!FE2:'FundValue'!FE972) -> 33915.68 | FF2: =SUM(FundValue!FF2:'FundValue'!FF972) -> 34222.734 | FG2: =SUM(FundValue!FG2:'FundValue'!FG972) -> 35994.48 | FH2: =SUM(FundValue!FH2:'FundValue'!FH972) -> 35992.718 | FI2: =SUM(FundValue!FI2:'FundValue'!FI972) -> 36604.688 | FJ2: =SUM(FundValue!FJ2:'FundValue'!FJ972) -> 36606.6 | FK2: =SUM(FundValue!FK2:'FundValue'!FK972) -> 38096.4 | FL2: =SUM(FundValue!FL2:'FundValue'!FL972) -> 38150.904 | FM2: =SUM(FundValue!FM2:'FundValue'!FM972) -> 37417.71 | FN2: =SUM(FundValue!FN2:'FundValue'!FN972) -> 36203.136 | FO2: =SUM(FundValue!FO2:'FundValue'!FO972) -> 36330.356 | FP2: =SUM(FundValue!FP2:'FundValue'!FP972) -> 37061.604 | FQ2: =SUM(FundValue!FQ2:'FundValue'!FQ972) -> 37061.604 | FR2: =SUM(FundValue!FR2:'FundValue'!FR972) -> 38174.196 | FS2: =SUM(FundValue!FS2:'FundValue'!FS972) -> 38558.86 | FT2: =SUM(FundValue!FT2:'FundValue'!FT972) -> 38327.118 | FU2: =SUM(FundValue!FU2:'FundValue'!FU972) -> 40033.854 | FV2: =SUM(FundValue!FV2:'FundValue'!FV972) -> 40590.32 | FW2: =SUM(FundValue!FW2:'FundValue'!FW972) -> 40378.366
B3: Total Value in currency | D3: EUR | E3: 0 | F3: 0 | G3: 0 | H3: 0 | I3: 0 | J3: 1080.95 | K3: 1125.15 | L3: 1147.12 | M3: 1133.6 | N3: 1909.155 | O3: 1861.015 | P3: 1579.735 | Q3: 1521.955 | R3: 2628.19 | S3: 2623.09 | T3: 2854.975 | U3: 2876.2 | V3: 2850.735 | W3: 3901.8 | X3: 3925.46 | Y3: 3818.08 | Z3: 3917.9 | AA3: 4947.895 | AB3: 5191.03 | AC3: 4981.355 | AD3: 5096.31 | AE3: 5969.17 | AF3: 6012.475 | AG3: 6088.47 | AH3: 6118.37 | AI3: 6155.53 | AJ3: 6070.125 | AK3: 6986.86 | AL3: 7156.98 | AM3: 7238.02 | AN3: 7232.51 | AO3: 8441.07 | AP3: 8312.045 | AQ3: 8305.6 | AR3: 8306.715 | AS3: 9105.6 | AT3: 9244.93 | AU3: 9247.83 | AV3: 9463.72 | AW3: 9513.53 | AX3: 9383.4 | AY3: 10077.265 | AZ3: 10533.815 | BA3: 10915.13 | BB3: 11054.825 | BC3: 12203.46 | BD3: 12203.8 | BE3: 12161.94 | BF3: 12176.775 | BG3: 12178.775 | BH3: 13248.395 | BI3: 13248.395 | BJ3: 13248.395 | BK3: 13614.085 | BL3: 13701.38 | BM3: 13705.8 | BN3: 14257.975 | BO3: 14840.26 | BP3: 14948.345 | BQ3: 14954.92 | BR3: 15573.52 | BS3: 15615.55 | BT3: 16154.01 | BU3: 16198.24 | BV3: 17271.277 | BW3: 17377.174 | BX3: 17432.806 | BY3: 17489.905 | BZ3: 17613.61 | CA3: 17486.016 | CB3: 18483.726 | CC3: 18693.22 | CD3: 18507.052 | CE3: 18487.66 | CF3: 19623.13 | CG3: 19749.086 | CH3: 19877.22 | CI3: 19671.37 | CJ3: 20899.228 | CK3: 20909.308 | CL3: 21030.86 | CM3: 21033.982 | CN3: 21014.938 | CO3: 21166.372 | CP3: 22052.488 | CQ3: 22346.794 | CR3: 22499.7 | CS3: 22288.076 | CT3: 23510.66 | CU3: 23566.012 | CV3: 23399.43 | CW3: 23198.302 | CX3: 23245.064 | CY3: 24138.53 | CZ3: 23967.102 | DA3: 24366.17 | DB3: 24680.888 | DC3: 24762.916 | DD3: 25883.92 | DE3: 26357.925 | DF3: 26531.14 | DG3: 26593 | DH3: 26783.32 | DI3: 26670.524 | DJ3: 27262.342 | DK3: 27178.45 | DL3: 27516.976 | DM3: 28658.16 | DN3: 28658.16 | DO3: 28618.48 | DP3: 28540.084 | DQ3: 28018.028 | DR3: 28792.996 | DS3: 28733.608 | DT3: 29206.976 | DU3: 28813.516 | DV3: 28710.216 | DW3: 29573.08 | DX3: 29377.672 | DY3: 30036.864 | DZ3: 31601.456 | EA3: 31638.152 | EB3: 31656.944 | EC3: 31865.76 | ED3: 31804.48 | EE3: 32184.816 | EF3: 32212.82 | EG3: 31492.86 | EH3: 30580.076 | EI3: 31418.274 | EJ3: 30769.298 | EK3: 32770.8 | EL3: 32504.72 | EM3: 31669.84 | EN3: 29887.102 | EO3: 30704.838 | EP3: 31301.29 | EQ3: 32621.37 | ER3: 32178.51 | ES3: 32804.24 | ET3: 34664.54 | EU3: 34849.812 | EV3: 35536.468 | EW3: 35698.612 | EX3: 36260.08 | EY3: 35242.288 | EZ3: 35440.08 | FA3: 34155.92 | FB3: 33408.784 | FC3: 33836.57 | FD3: 34149.966 | FE3: 33915.68 | FF3: 34222.734 | FG3: 35994.48 | FH3: 35992.718 | FI3: 36604.688 | FJ3: 36606.6 | FK3: 38096.4 | FL3: 38150.904 | FM3: 37417.71 | FN3: 36203.136 | FO3: 36330.356 | FP3: 37061.604 | FQ3: 37061.604 | FR3: 38174.196 | FS3: 38558.86 | FT3: 38327.118 | FU3: 40033.854 | FV3: 40590.32 | FW3: 40378.366
B4: EUR / USD Rate 1 EUR = USD | E4: 1.12183 | F4: 1.11595 | G4: 1.112 | H4: 1.10908 | I4: 1.10254 | J4: 1.10943 | K4: 1.09463 | L4: 1.083085 | M4: 1.084705 | N4: 1.10278 | O4: 1.12862 | P4: 1.11445 | Q4: 1.07635 | R4: 1.11685 | S4: 1.0805 | T4: 1.09355 | U4: 1.0875 | V4: 1.082205 | W4: 1.10945 | X4: 1.09705 | Y4: 1.08216 | Z4: 1.0905 | AA4: 1.1105 | AB4: 1.12915 | AC4: 1.12554 | AD4: 1.117735 | AE4: 1.121805 | AF4: 1.122347 | AG4: 1.1245 | AH4: 1.1295 | AI4: 1.14295 | AJ4: 1.165605 | AK4: 1.178 | AL4: 1.178885 | AM4: 1.18424 | AN4: 1.1795 | AO4: 1.19065 | AP4: 1.183865 | AQ4: 1.18475 | AR4: 1.18397 | AS4: 1.16315 | AT4: 1.175192 | AU4: 1.171705 | AV4: 1.183085 | AW4: 1.1715 | AX4: 1.18625 | AY4: 1.16775 | AZ4: 1.187435 | BA4: 1.18354 | BB4: 1.185665 | BC4: 1.196375 | BD4: 1.212305 | BE4: 1.21116 | BF4: 1.22575 | BG4: 1.22835 | BH4: 1.22302 | BI4: 1.22302 | BJ4: 1.217576 | BK4: 1.2225 | BL4: 1.20795 | BM4: 1.21745 | BN4: 1.21375 | BO4: 1.204905 | BP4: 1.21205 | BQ4: 1.211825 | BR4: 1.20721 | BS4: 1.19161 | BT4: 1.195325 | BU4: 1.19485 | BV4: 1.18245 | BW4: 1.172656 | BX4: 1.17593 | BY4: 1.19008 | BZ4: 1.198195 | CA4: 1.209715 | CB4: 1.201995 | CC4: 1.216325 | CD4: 1.21459 | CE4: 1.218125 | CF4: 1.219255 | CG4: 1.216655 | CH4: 1.210895 | CI4: 1.186435 | CJ4: 1.19361 | CK4: 1.184 | CL4: 1.1864 | CM4: 1.1873 | CN4: 1.1805 | CO4: 1.1771 | CP4: 1.187 | CQ4: 1.176 | CR4: 1.1791 | CS4: 1.1696 | CT4: 1.1793 | CU4: 1.1882 | CV4: 1.1814 | CW4: 1.1725 | CX4: 1.1714 | CY4: 1.1581 | CZ4: 1.1594 | DA4: 1.1567 | DB4: 1.16 | DC4: 1.1647 | DD4: 1.1561 | DE4: 1.1566 | DF4: 1.145 | DG4: 1.1288 | DH4: 1.1317 | DI4: 1.1313 | DJ4: 1.1311 | DK4: 1.1239 | DL4: 1.1317 | DM4: 1.1368 | DN4: 1.1368 | DO4: 1.1359 | DP4: 1.1414 | DQ4: 1.134 | DR4: 1.1143 | DS4: 1.1446 | DT4: 1.1349 | DU4: 1.1322 | DV4: 1.1267 | DW4: 1.0926 | DX4: 1.0909 | DY4: 1.1055 | DZ4: 1.0981 | EA4: 1.1065 | EB4: 1.1053 | EC4: 1.0876 | ED4: 1.0811 | EE4: 1.0794 | EF4: 1.054 | EG4: 1.0551 | EH4: 1.0539 | EI4: 1.0411 | EJ4: 1.056 | EK4: 1.0727 | EL4: 1.0718 | EM4: 1.0515 | EN4: 1.0498 | EO4: 1.0554 | EP4: 1.0464 | EQ4: 1.0183 | ER4: 1.0087 | ES4: 1.021 | ET4: 1.0218 | EU4: 1.0181 | EV4: 1.0258 | EW4: 1.0034 | EX4: 0.9961 | EY4: 0.9951 | EZ4: 1.0039 | FA4: 1.0015 | FB4: 0.969 | FC4: 0.9799 | FD4: 0.9741 | FE4: 0.9719 | FF4: 0.986 | FG4: 0.9963 | FH4: 0.996 | FI4: 1.0352 | FJ4: 1.0324 | FK4: 1.0395 | FL4: 1.0538 | FM4: 1.053 | FN4: 1.0582 | FO4: 1.0614 | FP4: 1.0702 | FQ4: 1.0702 | FR4: 1.0644 | FS4: 1.0828 | FT4: 1.0855 | FU4: 1.0867 | FV4: 1.0793 | FW4: 1.0675
B5: Total Value in currency | D5: USD | E5: 0 | F5: 0 | G5: 0 | H5: 0 | I5: 0 | J5: 0 | K5: 0 | L5: 0 | M5: 0 | N5: 0 | O5: 0 | P5: 0 | Q5: 0 | R5: 0 | S5: 0 | T5: 0 | U5: 0 | V5: 0 | W5: 0 | X5: 0 | Y5: 0 | Z5: 0 | AA5: 0 | AB5: 0 | AC5: 0 | AD5: 0 | AE5: 0 | AF5: 0 | AG5: 0 | AH5: 0 | AI5: 0 | AJ5: 0 | AK5: 0 | AL5: 0 | AM5: 0 | AN5: 0 | AO5: 0 | AP5: 0 | AQ5: 0 | AR5: 0 | AS5: 0 | AT5: 0 | AU5: 0 | AV5: 0 | AW5: 0 | AX5: 0 | AY5: 0 | AZ5: 0 | BA5: 0 | BB5: 0 | BC5: 0 | BD5: 0 | BE5: 0 | BF5: 0 | BG5: 0 | BH5: 0 | BI5: 0 | BJ5: 0 | BK5: 0 | BL5: 0 | BM5: 0 | BN5: 0 | BO5: 0 | BP5: 0 | BQ5: 0 | BR5: 0 | BS5: 0 | BT5: 0 | BU5: 0 | BV5: 0 | BW5: 0 | BX5: 0 | BY5: 0 | BZ5: 0 | CA5: 0 | CB5: 0 | CC5: 0 | CD5: 0 | CE5: 0 | CF5: 0 | CG5: 0 | CH5: 0 | CI5: 0 | CJ5: 0 | CK5: 0 | CL5: 0 | CM5: 0 | CN5: 0 | CO5: 0 | CP5: 0 | CQ5: 0 | CR5: 0 | CS5: 0 | CT5: 0 | CU5: 0 | CV5: 0 | CW5: 0 | CX5: 0 | CY5: 0 | CZ5: 0 | DA5: 0 | DB5: 0 | DC5: 0 | DD5: 0 | DE5: 0 | DF5: 0 | DG5: 0 | DH5: 0 | DI5: 0 | DJ5: 0 | DK5: 0 | DL5: 0 | DM5: 0 | DN5: 0 | DO5: 0 | DP5: 0 | DQ5: 0 | DR5: 0 | DS5: 0 | DT5: 0 | DU5: 0 | DV5: 0 | DW5: 0 | DX5: 0 | DY5: 0 | DZ5: 0 | EA5: 0 | EB5: 0 | EC5: 0 | ED5: 0 | EE5: 0 | EF5: 0 | EG5: 0 | EH5: 0 | EI5: 0 | EJ5: 0 | EK5: 0 | EL5: 0 | EM5: 0 | EN5: 0 | EO5: 0 | EP5: 0 | EQ5: 0 | ER5: 0 | ES5: 0 | ET5: 0 | EU5: 0 | EV5: 0 | EW5: 0 | EX5: 0 | EY5: 0 | EZ5: 0 | FA5: 0 | FB5: 0 | FC5: 0 | FD5: 0 | FE5: 0 | FF5: 0 | FG5: 0 | FH5: 0 | FI5: 0 | FJ5: 0 | FK5: 0 | FL5: 0 | FM5: 0 | FN5: 0 | FO5: 0 | FP5: 0 | FQ5: 0 | FR5: 0 | FS5: 0 | FT5: 0 | FU5: 0 | FV5: 0 | FW5: 0
B6: Total Inflow to Date | E6: 0 | F6: 0 | G6: 250 | H6: 250 | I6: 250 | J6: 1250 | K6: 1250 | L6: 1250 | M6: 1250 | N6: 2250 | O6: 2250 | P6: 2250 | Q6: 2250 | R6: 3250 | S6: 3250 | T6: 3250 | U6: 3250 | V6: 3250 | W6: 4250 | X6: 4250 | Y6: 4250 | Z6: 4250 | AA6: 5250 | AB6: 5250 | AC6: 5250 | AD6: 5250 | AE6: 6250 | AF6: 6250 | AG6: 6250 | AH6: 6250 | AI6: 6250 | AJ6: 6250 | AK6: 7350 | AL6: 7350 | AM6: 7350 | AN6: 7350 | AO6: 8450 | AP6: 8450 | AQ6: 8450 | AR6: 8450 | AS6: 9550 | AT6: 9550 | AU6: 9550 | AV6: 9550 | AW6: 9550 | AX6: 9550 | AY6: 10650 | AZ6: 10650 | BA6: 10650 | BB6: 10650 | BC6: 11750 | BD6: 11750 | BE6: 11750 | BF6: 11750 | BG6: 12750 | BH6: 12750 | BI6: 12750 | BJ6: 12750 | BK6: 12750 | BL6: 12750 | BM6: 12750 | BN6: 13750 | BO6: 13750 | BP6: 13750 | BQ6: 13750 | BR6: 14750 | BS6: 14750 | BT6: 14750 | BU6: 14750 | BV6: 15750 | BW6: 15750 | BX6: 15750 | BY6: 15750 | BZ6: 15750 | CA6: 15750 | CB6: 16750 | CC6: 16750 | CD6: 16750 | CE6: 16750 | CF6: 17750 | CG6: 17750 | CH6: 17750 | CI6: 17750 | CJ6: 18750 | CK6: 18750 | CL6: 18750 | CM6: 18750 | CN6: 18750 | CO6: 18750 | CP6: 19750 | CQ6: 19750 | CR6: 19750 | CS6: 19750 | CT6: 20750 | CU6: 20750 | CV6: 20750 | CW6: 20750 | CX6: 20750 | CY6: 21750 | CZ6: 21750 | DA6: 21750 | DB6: 21750 | DC6: 21750 | DD6: 22750 | DE6: 22750 | DF6: 22750 | DG6: 22750 | DH6: 23750 | DI6: 23750 | DJ6: 23750 | DK6: 23750 | DL6: 23750 | DM6: 24750 | DN6: 24750 | DO6: 24750 | DP6: 24750 | DQ6: 24750 | DR6: 25750 | DS6: 25750 | DT6: 25750 | DU6: 25750 | DV6: 26750 | DW6: 26750 | DX6: 26750 | DY6: 26750 | DZ6: 27750 | EA6: 27750 | EB6: 27750 | EC6: 27750 | ED6: 27750 | EE6: 28750 | EF6: 28750 | EG6: 28750 | EH6: 28750 | EI6: 28750 | EJ6: 28750 | EK6: 29750 | EL6: 29750 | EM6: 29750 | EN6: 29750 | EO6: 29750 | EP6: 30750 | EQ6: 30750 | ER6: 30750 | ES6: 30750 | ET6: 31750 | EU6: 31750 | EV6: 31750 | EW6: 31750 | EX6: 32750 | EY6: 32750 | EZ6: 32750 | FA6: 32750 | FB6: 32750 | FC6: 33750 | FD6: 33750 | FE6: 33750 | FF6: 33750 | FG6: 34750 | FH6: 34750 | FI6: 34750 | FJ6: 34750 | FK6: 35750 | FL6: 35750 | FM6: 35750 | FN6: 35750 | FO6: 35750 | FP6: 36750 | FQ6: 36750 | FR6: 36750 | FS6: 36750 | FT6: 36750 | FU6: 37750 | FV6: 37750 | FW6: 37750
B7: Total Value including Cash | E7: 0 | F7: 0 | G7: 250 | H7: 250 | I7: 250 | J7: 1233.34 | K7: 1262.54 | L7: 1284.51 | M7: 1270.99 | N7: 2034.645 | O7: 1971.505 | P7: 1690.225 | Q7: 1632.445 | R7: 2683.817182 | S7: 2663.717182 | T7: 2900.457927 | U7: 2921.70994 | V7: 2896.268831 | W7: 4019.025519 | X7: 4027.739617 | Y7: 3920.426217 | Z7: 4020.20869 | AA7: 5069.098851 | AB7: 5297.154873 | AC7: 5087.494956 | AD7: 5202.4829 | AE7: 6091.567551 | AF7: 6134.863373 | AG7: 6195.822002 | AH7: 6225.638072 | AI7: 6262.575945 | AJ7: 6176.808386 | AK7: 7144.025925 | AL7: 7299.132338 | AM7: 7380.09056 | AN7: 7374.652909 | AO7: 8558.731137 | AP7: 8414.808762 | AQ7: 8408.35031 | AR7: 8409.477165 | AS7: 9387.164022 | AT7: 9526.3062 | AU7: 9514.26019 | AV7: 9755.721724 | AW7: 9805.964542 | AX7: 9675.284949 | AY7: 10431.4201 | AZ7: 10872.23501 | BA7: 11253.69352 | BB7: 11393.31011 | BC7: 12655.43415 | BD7: 12640.20542 | BE7: 12598.3858 | BF7: 12612.71192 | BG7: 13639.05969 | BH7: 13638.9522 | BI7: 13638.9522 | BJ7: 13639.1415 | BK7: 13989.66021 | BL7: 14077.4654 | BM7: 14081.5509 | BN7: 14721.55556 | BO7: 15289.15373 | BP7: 15396.9854 | BQ7: 15403.56833 | BR7: 16065.55668 | BS7: 16093.14821 | BT7: 16631.47316 | BU7: 16675.72038 | BV7: 17809.52783 | BW7: 17941.44345 | BX7: 17981.88109 | BY7: 18038.15237 | BZ7: 18161.39149 | CA7: 18033.14687 | CB7: 19047.5515 | CC7: 19241.24312 | CD7: 19055.17126 | CE7: 19035.58367 | CF7: 20206.79138 | CG7: 20317.89087 | CH7: 20446.34493 | CI7: 20241.8887 | CJ7: 21522.51194 | CK7: 21606.234 | CL7: 21712.64613 | CM7: 21715.71583 | CN7: 21697.06899 | CO7: 21848.7033 | CP7: 22749.99926 | CQ7: 23029.95035 | CR7: 23182.67333 | CS7: 22971.61326 | CT7: 24184.90156 | CU7: 24224.73361 | CV7: 24058.54816 | CW7: 23857.94614 | CX7: 23948.2937 | CY7: 24874.24702 | CZ7: 24702.73976 | DA7: 25086.97257 | DB7: 25401.48924 | DC7: 25483.23246 | DD7: 26670.2193 | DE7: 27129.19369 | DF7: 27303.12575 | DG7: 27366.01183 | DH7: 27590.24439 | DI7: 27462.47396 | DJ7: 28054.30476 | DK7: 27970.87641 | DL7: 28351.06 | DM7: 29583.91855 | DN7: 29583.91855 | DO7: 29529.29561 | DP7: 29450.55233 | DQ7: 28928.96435 | DR7: 29676.20861 | DS7: 29599.87582 | DT7: 30073.85511 | DU7: 29680.56712 | DV7: 30577.62008 | DW7: 30506.8117 | DX7: 30326.48007 | DY7: 30984.68102 | DZ7: 32491.57204 | EA7: 32594.07403 | EB7: 32612.94635 | EC7: 32807.96769 | ED7: 32747.14024 | EE7: 34127.5955 | EF7: 33210.38716 | EG7: 32475.34619 | EH7: 31562.65053 | EI7: 32401.80353 | EJ7: 31751.71806 | EK7: 33785.2132 | EL7: 33504.19728 | EM7: 32797.27221 | EN7: 31014.66028 | EO7: 31831.98252 | EP7: 32667.02065 | EQ7: 33974.25948 | ER7: 33532.16458 | ES7: 34156.91689 | ET7: 36018.85411 | EU7: 36189.41727 | EV7: 36875.46971 | EW7: 37039.39525 | EX7: 37648.30116 | EY7: 36615.59175 | EZ7: 36812.66262 | FA7: 35572.21803 | FB7: 34827.82357 | FC7: 35435.37292 | FD7: 35734.26634 | FE7: 35500.17058 | FF7: 35806.02008 | FG7: 37617.80774 | FH7: 37601.07049 | FI7: 38209.92814 | FJ7: 38212.05462 | FK7: 39707.31303 | FL7: 39745.74837 | FM7: 39012.61339 | FN7: 37829.95736 | FO7: 37956.94413 | FP7: 38850.84413 | FQ7: 38850.84413 | FR7: 39948.85295 | FS7: 40332.21002 | FT7: 40100.27997 | FU7: 41833.63269 | FV7: 42390.61519 | FW7: 42179.4996
B8: Shares EUR | E8: 0 | F8: 0 | G8: 0 | H8: 0 | I8: 0 | J8: 1080.95 | K8: 1125.15 | L8: 1147.12 | M8: 1133.6 | N8: 1909.155 | O8: 1861.015 | P8: 1579.735 | Q8: 1521.955 | R8: 2628.19 | S8: 2623.09 | T8: 2854.975 | U8: 2876.2 | V8: 2850.735 | W8: 3901.8 | X8: 3925.46 | Y8: 3818.08 | Z8: 3917.9 | AA8: 3971.415 | AB8: 4226.67 | AC8: 4005.435 | AD8: 4121.11 | AE8: 4991.65 | AF8: 5034.875 | AG8: 5111.35 | AH8: 5136.65 | AI8: 5176.45 | AJ8: 5087.125 | AK8: 6000.1 | AL8: 6170.9 | AM8: 6261.9 | AN8: 6251.95 | AO8: 7467.95 | AP8: 7334.925 | AQ8: 7325.2 | AR8: 7326.675 | AS8: 8122.32 | AT8: 8265.09 | AU8: 8266.67 | AV8: 8485.44 | AW8: 8529.65 | AX8: 8406.08 | AY8: 9098.505 | AZ8: 9551.655 | BA8: 9935.89 | BB8: 10072.705 | BC8: 10241.94 | BD8: 10251 | BE8: 10194.98 | BF8: 10217.495 | BG8: 10220.615 | BH8: 11289.835 | BI8: 11289.835 | BJ8: 11289.835 | BK8: 11669.925 | BL8: 11753.7 | BM8: 11763 | BN8: 12314.055 | BO8: 12901.7 | BP8: 13013.225 | BQ8: 13039.8 | BR8: 13674.8 | BS8: 13711.87 | BT8: 14253.53 | BU8: 14302.72 | BV8: 15366.397 | BW8: 15479.414 | BX8: 15532.646 | BY8: 15590.945 | BZ8: 15711.85 | CA8: 15583.536 | CB8: 16589.486 | CC8: 16795.7 | CD8: 16619.452 | CE8: 16597.42 | CF8: 17725.77 | CG8: 17850.366 | CH8: 17968.9 | CI8: 17766.25 | CJ8: 19001.068 | CK8: 19004.108 | CL8: 19123.66 | CM8: 19117.342 | CN8: 19091.738 | CO8: 19237.492 | CP8: 20118.968 | CQ8: 20417.434 | CR8: 20568.18 | CS8: 20350.796 | CT8: 21583.86 | CU8: 21642.892 | CV8: 21477.51 | CW8: 21281.582 | CX8: 21335.304 | CY8: 22239.01 | CZ8: 22065.182 | DA8: 22473.45 | DB8: 22783.848 | DC8: 22874.196 | DD8: 23987.36 | DE8: 24443.525 | DF8: 24625.06 | DG8: 24680.76 | DH8: 24873.88 | DI8: 24748.844 | DJ8: 25346.182 | DK8: 25260.05 | DL8: 25613.936 | DM8: 26762.16 | DN8: 26762.16 | DO8: 26746.32 | DP8: 26663.524 | DQ8: 26140.508 | DR8: 26921.556 | DS8: 26887.608 | DT8: 27380.416 | DU8: 26974.556 | DV8: 26877.496 | DW8: 27708.12 | DX8: 27550.712 | DY8: 28218.784 | DZ8: 29810.976 | EA8: 29837.192 | EB8: 29862.944 | EC8: 30094.08 | ED8: 30045.04 | EE8: 30437.936 | EF8: 30465.06 | EG8: 29765.98 | EH8: 28843.916 | EI8: 29674.994 | EJ8: 29026.738 | EK8: 31023.6 | EL8: 30784.72 | EM8: 29974.64 | EN8: 28198.862 | EO8: 29008.038 | EP8: 29596.01 | EQ8: 30919.85 | ER8: 30459.87 | ES8: 31074.16 | ET8: 32919.66 | EU8: 33116.212 | EV8: 33807.508 | EW8: 33987.892 | EX8: 34561.44 | EY8: 33561.568 | EZ8: 33769.44 | FA8: 32495.76 | FB8: 31772.944 | FC8: 32207.37 | FD8: 32534.286 | FE8: 32314.16 | FF8: 32630.974 | FG8: 34370.56 | FH8: 34387.918 | FI8: 34977.408 | FJ8: 34968.52 | FK8: 36451.52 | FL8: 36494.184 | FM8: 35758.67 | FN8: 34558.256 | FO8: 34705.156 | FP8: 35452.004 | FQ8: 35452.004 | FR8: 36539.076 | FS8: 36913.66 | FT8: 36678.638 | FU8: 38394.414 | FV8: 38943.36 | FW8: 38750.446
B9: Shares Total (EUR) | E9: 0 | F9: 0 | G9: 0 | H9: 0 | I9: 0 | J9: 1080.95 | K9: 1125.15 | L9: 1147.12 | M9: 1133.6 | N9: 1909.155 | O9: 1861.015 | P9: 1579.735 | Q9: 1521.955 | R9: 2628.19 | S9: 2623.09 | T9: 2854.975 | U9: 2876.2 | V9: 2850.735 | W9: 3901.8 | X9: 3925.46 | Y9: 3818.08 | Z9: 3917.9 | AA9: 3971.415 | AB9: 4226.67 | AC9: 4005.435 | AD9: 4121.11 | AE9: 4991.65 | AF9: 5034.875 | AG9: 5111.35 | AH9: 5136.65 | AI9: 5176.45 | AJ9: 5087.125 | AK9: 6000.1 | AL9: 6170.9 | AM9: 6261.9 | AN9: 6251.95 | AO9: 7467.95 | AP9: 7334.925 | AQ9: 7325.2 | AR9: 7326.675 | AS9: 8122.32 | AT9: 8265.09 | AU9: 8266.67 | AV9: 8485.44 | AW9: 8529.65 | AX9: 8406.08 | AY9: 9098.505 | AZ9: 9551.655 | BA9: 9935.89 | BB9: 10072.705 | BC9: 10241.94 | BD9: 10251 | BE9: 10194.98 | BF9: 10217.495 | BG9: 10220.615 | BH9: 11289.835 | BI9: 11289.835 | BJ9: 11289.835 | BK9: 11669.925 | BL9: 11753.7 | BM9: 11763 | BN9: 12314.055 | BO9: 12901.7 | BP9: 13013.225 | BQ9: 13039.8 | BR9: 13674.8 | BS9: 13711.87 | BT9: 14253.53 | BU9: 14302.72 | BV9: 15366.397 | BW9: 15479.414 | BX9: 15532.646 | BY9: 15590.945 | BZ9: 15711.85 | CA9: 15583.536 | CB9: 16589.486 | CC9: 16795.7 | CD9: 16619.452 | CE9: 16597.42 | CF9: 17725.77 | CG9: 17850.366 | CH9: 17968.9 | CI9: 17766.25 | CJ9: 19001.068 | CK9: 19004.108 | CL9: 19123.66 | CM9: 19117.342 | CN9: 19091.738 | CO9: 19237.492 | CP9: 20118.968 | CQ9: 20417.434 | CR9: 20568.18 | CS9: 20350.796 | CT9: 21583.86 | CU9: 21642.892 | CV9: 21477.51 | CW9: 21281.582 | CX9: 21335.304 | CY9: 22239.01 | CZ9: 22065.182 | DA9: 22473.45 | DB9: 22783.848 | DC9: 22874.196 | DD9: 23987.36 | DE9: 24443.525 | DF9: 24625.06 | DG9: 24680.76 | DH9: 24873.88 | DI9: 24748.844 | DJ9: 25346.182 | DK9: 25260.05 | DL9: 25613.936 | DM9: 26762.16 | DN9: 26762.16 | DO9: 26746.32 | DP9: 26663.524 | DQ9: 26140.508 | DR9: 26921.556 | DS9: 26887.608 | DT9: 27380.416 | DU9: 26974.556 | DV9: 26877.496 | DW9: 27708.12 | DX9: 27550.712 | DY9: 28218.784 | DZ9: 29810.976 | EA9: 29837.192 | EB9: 29862.944 | EC9: 30094.08 | ED9: 30045.04 | EE9: 30437.936 | EF9: 30465.06 | EG9: 29765.98 | EH9: 28843.916 | EI9: 29674.994 | EJ9: 29026.738 | EK9: 31023.6 | EL9: 30784.72 | EM9: 29974.64 | EN9: 28198.862 | EO9: 29008.038 | EP9: 29596.01 | EQ9: 30919.85 | ER9: 30459.87 | ES9: 31074.16 | ET9: 32919.66 | EU9: 33116.212 | EV9: 33807.508 | EW9: 33987.892 | EX9: 34561.44 | EY9: 33561.568 | EZ9: 33769.44 | FA9: 32495.76 | FB9: 31772.944 | FC9: 32207.37 | FD9: 32534.286 | FE9: 32314.16 | FF9: 32630.974 | FG9: 34370.56 | FH9: 34387.918 | FI9: 34977.408 | FJ9: 34968.52 | FK9: 36451.52 | FL9: 36494.184 | FM9: 35758.67 | FN9: 34558.256 | FO9: 34705.156 | FP9: 35452.004 | FQ9: 35452.004 | FR9: 36539.076 | FS9: 36913.66 | FT9: 36678.638 | FU9: 38394.414 | FV9: 38943.36 | FW9: 38750.446
B10: Bonds EUR | E10: 0 | F10: 0 | G10: 0 | H10: 0 | I10: 0 | J10: 0 | K10: 0 | L10: 0 | M10: 0 | N10: 0 | O10: 0 | P10: 0 | Q10: 0 | R10: 0 | S10: 0 | T10: 0 | U10: 0 | V10: 0 | W10: 0 | X10: 0 | Y10: 0 | Z10: 0 | AA10: 976.48 | AB10: 964.36 | AC10: 975.92 | AD10: 975.2 | AE10: 977.52 | AF10: 977.6 | AG10: 977.12 | AH10: 981.72 | AI10: 979.08 | AJ10: 983 | AK10: 986.76 | AL10: 986.08 | AM10: 976.12 | AN10: 980.56 | AO10: 973.12 | AP10: 977.12 | AQ10: 980.4 | AR10: 980.04 | AS10: 983.28 | AT10: 979.84 | AU10: 981.16 | AV10: 978.28 | AW10: 983.88 | AX10: 977.32 | AY10: 978.76 | AZ10: 982.16 | BA10: 979.24 | BB10: 982.12 | BC10: 1961.52 | BD10: 1952.8 | BE10: 1966.96 | BF10: 1959.28 | BG10: 1958.16 | BH10: 1958.56 | BI10: 1958.56 | BJ10: 1958.56 | BK10: 1944.16 | BL10: 1947.68 | BM10: 1942.8 | BN10: 1943.92 | BO10: 1938.56 | BP10: 1935.12 | BQ10: 1915.12 | BR10: 1898.72 | BS10: 1903.68 | BT10: 1900.48 | BU10: 1895.52 | BV10: 1904.88 | BW10: 1897.76 | BX10: 1900.16 | BY10: 1898.96 | BZ10: 1901.76 | CA10: 1902.48 | CB10: 1894.24 | CC10: 1897.52 | CD10: 1887.6 | CE10: 1890.24 | CF10: 1897.36 | CG10: 1898.72 | CH10: 1908.32 | CI10: 1905.12 | CJ10: 1898.16 | CK10: 1905.2 | CL10: 1907.2 | CM10: 1916.64 | CN10: 1923.2 | CO10: 1928.88 | CP10: 1933.52 | CQ10: 1929.36 | CR10: 1931.52 | CS10: 1937.28 | CT10: 1926.8 | CU10: 1923.12 | CV10: 1921.92 | CW10: 1916.72 | CX10: 1909.76 | CY10: 1899.52 | CZ10: 1901.92 | DA10: 1892.72 | DB10: 1897.04 | DC10: 1888.72 | DD10: 1896.56 | DE10: 1914.4 | DF10: 1906.08 | DG10: 1912.24 | DH10: 1909.44 | DI10: 1921.68 | DJ10: 1916.16 | DK10: 1918.4 | DL10: 1903.04 | DM10: 1896 | DN10: 1896 | DO10: 1872.16 | DP10: 1876.56 | DQ10: 1877.52 | DR10: 1871.44 | DS10: 1846 | DT10: 1826.56 | DU10: 1838.96 | DV10: 1832.72 | DW10: 1864.96 | DX10: 1826.96 | DY10: 1818.08 | DZ10: 1790.48 | EA10: 1800.96 | EB10: 1794 | EC10: 1771.68 | ED10: 1759.44 | EE10: 1746.88 | EF10: 1747.76 | EG10: 1726.88 | EH10: 1736.16 | EI10: 1743.28 | EJ10: 1742.56 | EK10: 1747.2 | EL10: 1720 | EM10: 1695.2 | EN10: 1688.24 | EO10: 1696.8 | EP10: 1705.28 | EQ10: 1701.52 | ER10: 1718.64 | ES10: 1730.08 | ET10: 1744.88 | EU10: 1733.6 | EV10: 1728.96 | EW10: 1710.72 | EX10: 1698.64 | EY10: 1680.72 | EZ10: 1670.64 | FA10: 1660.16 | FB10: 1635.84 | FC10: 1629.2 | FD10: 1615.68 | FE10: 1601.52 | FF10: 1591.76 | FG10: 1623.92 | FH10: 1604.8 | FI10: 1627.28 | FJ10: 1638.08 | FK10: 1644.88 | FL10: 1656.72 | FM10: 1659.04 | FN10: 1644.88 | FO10: 1625.2 | FP10: 1609.6 | FQ10: 1609.6 | FR10: 1635.12 | FS10: 1645.2 | FT10: 1648.48 | FU10: 1639.44 | FV10: 1646.96 | FW10: 1627.92
B11: Account EUR | E11: 0 | F11: 0 | G11: 250 | H11: 250 | I11: 250 | J11: 152.39 | K11: 137.39 | L11: 137.39 | M11: 137.39 | N11: 125.49 | O11: 110.49 | P11: 110.49 | Q11: 110.49 | R11: 55.62718182 | S11: 40.62718182 | T11: 40.62718182 | U11: 40.62718182 | V11: 40.62718182 | W11: 112.4393636 | X11: 97.43936364 | Y11: 97.43936364 | Z11: 97.43936364 | AA11: 116.4222208 | AB11: 101.4222208 | AC11: 101.4222208 | AD11: 101.4222208 | AE11: 103.3922208 | AF11: 103.3922208 | AG11: 88.39222078 | AH11: 88.39222078 | AI11: 88.39222078 | AJ11: 88.39222078 | AK11: 139.0672208 | AL11: 124.0672208 | AM11: 124.0672208 | AN11: 124.0672208 | AO11: 99.75472078 | AP11: 84.75472078 | AQ11: 84.75472078 | AR11: 84.75472078 | AS11: 263.2342502 | AT11: 263.2342502 | AU11: 248.2342502 | AV11: 248.2342502 | AW11: 248.2342502 | AX11: 248.2342502 | AY11: 309.8128709 | AZ11: 294.8128709 | BA11: 294.8128709 | BB11: 294.8128709 | BC11: 408.6928709 | BD11: 393.6928709 | BE11: 393.6928709 | BF11: 393.6928709 | BG11: 1418.130057 | BH11: 348.2188568 | BI11: 348.2188568 | BJ11: 348.2188568 | BK11: 333.2188568 | BL11: 333.2188568 | BM11: 333.2188568 | BN11: 420.9188568 | BO11: 405.9188568 | BP11: 405.9188568 | BQ11: 405.9188568 | BR11: 449.1438568 | BS11: 434.1438568 | BT11: 434.1438568 | BU11: 434.1438568 | BV11: 494.4598568 | BW11: 494.4598568 | BX11: 479.4598568 | BY11: 479.4598568 | BZ11: 479.4598568 | CA11: 479.4598568 | CB11: 495.7198568 | CC11: 480.7198568 | CD11: 480.7198568 | CE11: 480.7198568 | CF11: 516.5198568 | CG11: 501.5198568 | CH11: 501.5198568 | CI11: 501.5198568 | CJ11: 554.6998568 | CK11: 627.7852568 | CL11: 612.7852568 | CM11: 612.7852568 | CN11: 612.7852568 | CO11: 612.7852568 | CP11: 628.5452568 | CQ11: 613.5452568 | CR11: 613.5452568 | CS11: 613.5452568 | CT11: 604.8252568 | CU11: 589.8252568 | CV11: 589.8252568 | CW11: 589.8252568 | CX11: 633.3452568 | CY11: 665.0299962 | CZ11: 665.0299962 | DA11: 650.0299962 | DB11: 650.0299962 | DC11: 650.0299962 | DD11: 715.4899962 | DE11: 700.4899962 | DF11: 700.4899962 | DG11: 700.4899962 | DH11: 734.5883962 | DI11: 719.5883962 | DJ11: 719.5883962 | DK11: 719.5883962 | DL11: 761.7480097 | DM11: 853.7470764 | DN11: 853.7470764 | DO11: 838.7470764 | DP11: 838.7470764 | DQ11: 838.7470764 | DR11: 809.7470764 | DS11: 794.7470764 | DT11: 794.7470764 | DU11: 794.7470764 | DV11: 1794.747076 | DW11: 858.8070764 | DX11: 873.7666899 | DY11: 873.7666899 | DZ11: 815.5666899 | EA11: 881.9386234 | EB11: 881.9386234 | EC11: 866.9386234 | ED11: 866.9386234 | EE11: 1866.938623 | EF11: 919.8986234 | EG11: 904.8986234 | EH11: 904.8986234 | EI11: 904.8986234 | EJ11: 904.8986234 | EK11: 938.0986234 | EL11: 923.0986234 | EM11: 1049.57901 | EN11: 1049.57901 | EO11: 1049.57901 | EP11: 1287.498002 | EQ11: 1272.498002 | ER11: 1272.498002 | ES11: 1272.498002 | ET11: 1274.198002 | EU11: 1259.198002 | EV11: 1259.198002 | EW11: 1259.198002 | EX11: 1306.038002 | EY11: 1291.038002 | EZ11: 1291.038002 | FA11: 1334.558002 | FB11: 1334.558002 | FC11: 1515.261085 | FD11: 1500.261085 | FE11: 1500.261085 | FF11: 1500.261085 | FG11: 1541.161085 | FH11: 1526.161085 | FI11: 1526.161085 | FJ11: 1526.161085 | FK11: 1532.161085 | FL11: 1517.161085 | FM11: 1517.161085 | FN11: 1549.461085 | FO11: 1549.461085 | FP11: 1712.747285 | FQ11: 1712.747285 | FR11: 1697.747285 | FS11: 1697.747285 | FT11: 1697.747285 | FU11: 1724.447285 | FV11: 1724.447285 | FW11: 1724.447285
B12: Account USD | E12: 0 | F12: 0 | G12: 0 | H12: 0 | I12: 0 | J12: 0 | K12: 0 | L12: 0 | M12: 0 | N12: 0 | O12: 0 | P12: 0 | Q12: 0 | R12: 0 | S12: 0 | T12: 5.31 | U12: 5.31 | V12: 5.31 | W12: 5.31 | X12: 5.31 | Y12: 5.31 | Z12: 5.31 | AA12: 5.31 | AB12: 5.31 | AC12: 5.31 | AD12: 5.31 | AE12: 21.320274 | AF12: 21.320274 | AG12: 21.320274 | AH12: 21.320274 | AI12: 21.320274 | AJ12: 21.320274 | AK12: 21.320274 | AL12: 21.320274 | AM12: 21.320274 | AN12: 21.320274 | AO12: 21.320274 | AP12: 21.320274 | AQ12: 21.320274 | AR12: 21.320274 | AS12: 21.320274 | AT12: 21.320274 | AU12: 21.320274 | AV12: 51.78064165 | AW12: 51.78064165 | AX12: 51.78064165 | AY12: 51.78064165 | AZ12: 51.78064165 | BA12: 51.78064165 | BB12: 51.78064165 | BC12: 51.78064165 | BD12: 51.78064165 | BE12: 51.78064165 | BF12: 51.78064165 | BG12: 51.78064165 | BH12: 51.78064165 | BI12: 51.78064165 | BJ12: 51.78064165 | BK12: 51.78064165 | BL12: 51.78064165 | BM12: 51.78064165 | BN12: 51.78064165 | BO12: 51.78064165 | BP12: 51.78064165 | BQ12: 51.78064165 | BR12: 51.78064165 | BS12: 51.78064165 | BT12: 51.78064165 | BU12: 51.78064165 | BV12: 51.78064165 | BW12: 81.86264165 | BX12: 81.86264165 | BY12: 81.86264165 | BZ12: 81.86264165 | CA12: 81.86264165 | CB12: 81.86264165 | CC12: 81.86264165 | CD12: 81.86264165 | CE12: 81.86264165 | CF12: 81.86264165 | CG12: 81.86264165 | CH12: 81.86264165 | CI12: 81.86264165 | CJ12: 81.86264165 | CK12: 81.86264165 | CL12: 81.86264165 | CM12: 81.86264165 | CN12: 81.86264165 | CO12: 81.86264165 | CP12: 81.86264165 | CQ12: 81.86264165 | CR12: 81.86264165 | CS12: 81.86264165 | CT12: 81.86264165 | CU12: 81.86264165 | CV12: 81.86264165 | CW12: 81.86264165 | CX12: 81.86264165 | CY12: 81.86264165 | CZ12: 81.86264165 | DA12: 81.86264165 | DB12: 81.86264165 | DC12: 81.86264165 | DD12: 81.86264165 | DE12: 81.86264165 | DF12: 81.86264165 | DG12: 81.86264165 | DH12: 81.86264165 | DI12: 81.86264165 | DJ12: 81.86264165 | DK12: 81.86264165 | DL12: 81.86264165 | DM12: 81.86264165 | DN12: 81.86264165 | DO12: 81.86264165 | DP12: 81.86264165 | DQ12: 81.86264165 | DR12: 81.86264165 | DS12: 81.86264165 | DT12: 81.86264165 | DU12: 81.86264165 | DV12: 81.86264165 | DW12: 81.86264165 | DX12: 81.86264165 | DY12: 81.86264165 | DZ12: 81.86264165 | EA12: 81.86264165 | EB12: 81.86264165 | EC12: 81.86264165 | ED12: 81.86264165 | EE12: 81.86264165 | EF12: 81.86264165 | EG12: 81.86264165 | EH12: 81.86264165 | EI12: 81.86264165 | EJ12: 81.86264165 | EK12: 81.86264165 | EL12: 81.86264165 | EM12: 81.86264165 | EN12: 81.86264165 | EO12: 81.86264165 | EP12: 81.86264165 | EQ12: 81.86264165 | ER12: 81.86264165 | ES12: 81.86264165 | ET12: 81.86264165 | EU12: 81.86264165 | EV12: 81.86264165 | EW12: 81.86264165 | EX12: 81.86264165 | EY12: 81.86264165 | EZ12: 81.86264165 | FA12: 81.86264165 | FB12: 81.86264165 | FC12: 81.86264165 | FD12: 81.86264165 | FE12: 81.86264165 | FF12: 81.86264165 | FG12: 81.86264165 | FH12: 81.86264165 | FI12: 81.86264165 | FJ12: 81.86264165 | FK12: 81.86264165 | FL12: 81.86264165 | FM12: 81.86264165 | FN12: 81.86264165 | FO12: 81.86264165 | FP12: 81.86264165 | FQ12: 81.86264165 | FR12: 81.86264165 | FS12: 81.86264165 | FT12: 81.86264165 | FU12: 81.86264165 | FV12: 81.86264165 | FW12: 81.86264165
B13: Account Total (EUR) | E13: 0 | F13: 0 | G13: 250 | H13: 250 | I13: 250 | J13: 152.39 | K13: 137.39 | L13: 137.39 | M13: 137.39 | N13: 125.49 | O13: 110.49 | P13: 110.49 | Q13: 110.49 | R13: 55.62718182 | S13: 40.62718182 | T13: 45.48292687 | U13: 45.50994044 | V13: 45.53383074 | W13: 117.2255189 | X13: 102.279617 | Y13: 102.3462166 | Z13: 102.3086896 | AA13: 121.2038507 | AB13: 106.1248732 | AC13: 106.1399563 | AD13: 106.1728996 | AE13: 122.3975506 | AF13: 122.3883726 | AG13: 107.352002 | AH13: 107.268072 | AI13: 107.0459449 | AJ13: 106.6833863 | AK13: 157.1659254 | AL13: 142.1523385 | AM13: 142.0705596 | AN13: 142.1429088 | AO13: 117.6611366 | AP13: 102.7637624 | AQ13: 102.7503097 | AR13: 102.7621652 | AS13: 281.5640219 | AT13: 281.3761998 | AU13: 266.4301903 | AV13: 292.0017239 | AW13: 292.4345418 | AX13: 291.8849492 | AY13: 354.1551031 | AZ13: 338.4200087 | BA13: 338.5635186 | BB13: 338.4851068 | BC13: 451.9741511 | BD13: 436.4054239 | BE13: 436.4458033 | BF13: 435.9369187 | BG13: 1460.284688 | BH13: 390.5572009 | BI13: 390.5572009 | BJ13: 390.7465033 | BK13: 375.5752099 | BL13: 376.0854007 | BM13: 375.7509047 | BN13: 463.5805595 | BO13: 448.8937317 | BP13: 448.6403961 | BQ13: 448.6483282 | BR13: 492.0366772 | BS13: 477.5982099 | BT13: 477.4631563 | BU13: 477.4803774 | BV13: 538.2508346 | BW13: 564.2694528 | BX13: 549.0750904 | BY13: 548.2473683 | BZ13: 547.781492 | CA13: 547.1308716 | CB13: 563.8254992 | CC13: 548.02312 | CD13: 548.1192604 | CE13: 547.9236673 | CF13: 583.6613831 | CG13: 568.804865 | CH13: 569.1249271 | CI13: 570.5186993 | CJ13: 623.2839351 | CK13: 696.9260014 | CL13: 681.7861348 | CM13: 681.7338306 | CN13: 682.1309931 | CO13: 682.3312951 | CP13: 697.5112565 | CQ13: 683.1563466 | CR13: 682.9733305 | CS13: 683.5372555 | CT13: 674.241556 | CU13: 658.7216056 | CV13: 659.1181649 | CW13: 659.6441409 | CX13: 703.2297042 | CY13: 735.7170195 | CZ13: 735.6377603 | DA13: 720.8025748 | DB13: 720.601239 | DC13: 720.3164577 | DD13: 786.2993048 | DE13: 771.2686938 | DF13: 771.9857531 | DG13: 773.0118262 | DH13: 806.9243878 | DI13: 791.949964 | DJ13: 791.9627589 | DK13: 792.4264082 | DL13: 834.0840013 | DM13: 925.7585486 | DN13: 925.7585486 | DO13: 910.815605 | DP13: 910.4683324 | DQ13: 910.9363547 | DR13: 883.2126078 | DS13: 866.2678187 | DT13: 866.8791071 | DU13: 867.0511231 | DV13: 1867.404076 | DW13: 933.7316981 | DX13: 948.8080701 | DY13: 947.8170216 | DZ13: 890.1160403 | EA13: 955.922032 | EB13: 956.0023542 | EC13: 942.2076944 | ED13: 942.6602418 | EE13: 1942.779499 | EF13: 997.5671639 | EG13: 982.4861901 | EH13: 982.5745335 | EI13: 983.5295346 | EJ13: 982.4200644 | EK13: 1014.413196 | EL13: 999.4772777 | EM13: 1127.432212 | EN13: 1127.558284 | EO13: 1127.144522 | EP13: 1365.730649 | EQ13: 1352.88948 | ER13: 1353.654582 | ES13: 1352.676887 | ET13: 1354.314113 | EU13: 1339.605272 | EV13: 1339.001708 | EW13: 1340.783254 | EX13: 1388.221158 | EY13: 1373.303746 | EZ13: 1372.58262 | FA13: 1416.298034 | FB13: 1419.039572 | FC13: 1598.802918 | FD13: 1584.300344 | FE13: 1584.490576 | FF13: 1583.286077 | FG13: 1623.327744 | FH13: 1608.352493 | FI13: 1605.240144 | FJ13: 1605.454617 | FK13: 1610.913025 | FL13: 1594.844367 | FM13: 1594.903385 | FN13: 1626.821359 | FO13: 1626.588127 | FP13: 1789.240129 | FQ13: 1789.240129 | FR13: 1774.656945 | FS13: 1773.350021 | FT13: 1773.161971 | FU13: 1799.778694 | FV13: 1800.295188 | FW13: 1801.133601
B14: Minimum of Inflow (6) and Total Value (7) | E14: 0 | F14: 0 | G14: 250 | H14: 250 | I14: 250 | J14: 1233.34 | K14: 1250 | L14: 1250 | M14: 1250 | N14: 2034.645 | O14: 1971.505 | P14: 1690.225 | Q14: 1632.445 | R14: 2683.817182 | S14: 2663.717182 | T14: 2900.457927 | U14: 2921.70994 | V14: 2896.268831 | W14: 4019.025519 | X14: 4027.739617 | Y14: 3920.426217 | Z14: 4020.20869 | AA14: 5069.098851 | AB14: 5250 | AC14: 5087.494956 | AD14: 5202.4829 | AE14: 6091.567551 | AF14: 6134.863373 | AG14: 6195.822002 | AH14: 6225.638072 | AI14: 6250 | AJ14: 6176.808386 | AK14: 7144.025925 | AL14: 7299.132338 | AM14: 7350 | AN14: 7350 | AO14: 8450 | AP14: 8414.808762 | AQ14: 8408.35031 | AR14: 8409.477165 | AS14: 9387.164022 | AT14: 9526.3062 | AU14: 9514.26019 | AV14: 9550 | AW14: 9550 | AX14: 9550 | AY14: 10431.4201 | AZ14: 10650 | BA14: 10650 | BB14: 10650 | BC14: 11750 | BD14: 11750 | BE14: 11750 | BF14: 11750 | BG14: 12750 | BH14: 12750 | BI14: 12750 | BJ14: 12750 | BK14: 12750 | BL14: 12750 | BM14: 12750 | BN14: 13750 | BO14: 13750 | BP14: 13750 | BQ14: 13750 | BR14: 14750 | BS14: 14750 | BT14: 14750 | BU14: 14750 | BV14: 15750 | BW14: 15750 | BX14: 15750 | BY14: 15750 | BZ14: 15750 | CA14: 15750 | CB14: 16750 | CC14: 16750 | CD14: 16750 | CE14: 16750 | CF14: 17750 | CG14: 17750 | CH14: 17750 | CI14: 17750 | CJ14: 18750 | CK14: 18750 | CL14: 18750 | CM14: 18750 | CN14: 18750 | CO14: 18750 | CP14: 19750 | CQ14: 19750 | CR14: 19750 | CS14: 19750 | CT14: 20750 | CU14: 20750 | CV14: 20750 | CW14: 20750 | CX14: 20750 | CY14: 21750 | CZ14: 21750 | DA14: 21750 | DB14: 21750 | DC14: 21750 | DD14: 22750 | DE14: 22750 | DF14: 22750 | DG14: 22750 | DH14: 23750 | DI14: 23750 | DJ14: 23750 | DK14: 23750 | DL14: 23750 | DM14: 24750 | DN14: 24750 | DO14: 24750 | DP14: 24750 | DQ14: 24750 | DR14: 25750 | DS14: 25750 | DT14: 25750 | DU14: 25750 | DV14: 26750 | DW14: 26750 | DX14: 26750 | DY14: 26750 | DZ14: 27750 | EA14: 27750 | EB14: 27750 | EC14: 27750 | ED14: 27750 | EE14: 28750 | EF14: 28750 | EG14: 28750 | EH14: 28750 | EI14: 28750 | EJ14: 28750 | EK14: 29750 | EL14: 29750 | EM14: 29750 | EN14: 29750 | EO14: 29750 | EP14: 30750 | EQ14: 30750 | ER14: 30750 | ES14: 30750 | ET14: 31750 | EU14: 31750 | EV14: 31750 | EW14: 31750 | EX14: 32750 | EY14: 32750 | EZ14: 32750 | FA14: 32750 | FB14: 32750 | FC14: 33750 | FD14: 33750 | FE14: 33750 | FF14: 33750 | FG14: 34750 | FH14: 34750 | FI14: 34750 | FJ14: 34750 | FK14: 35750 | FL14: 35750 | FM14: 35750 | FN14: 35750 | FO14: 35750 | FP14: 36750 | FQ14: 36750 | FR14: 36750 | FS14: 36750 | FT14: 36750 | FU14: 37750 | FV14: 37750 | FW14: 37750
B15: XIRR 1Y | E15: 0 | BI15: 0.2852020562 | BJ15: 0.2831012428 | BK15: 0.3500411212 | BL15: 0.1067116439 | BM15: 0.09591185153 | BN15: 0.02871913016 | BO15: 0.1149851739 | BP15: 0.01521301568 | BQ15: 0.1697186053 | BR15: 0.3094985664 | BS15: 0.3164050758 | BT15: 0.1965862572 | BU15: 0.3704200327 | BV15: 0.3358364284 | BW15: 0.3406766951 | BX15: 0.2258626878 | BY15: 0.08827244937 | BZ15: 0.2142355621 | CA15: 0.2088053524 | CB15: 0.1952316225 | CC15: 0.09182194769 | CD15: 0.1528168619 | CE15: 0.171939832 | CF15: 0.2725665867 | CG15: 0.1799357355 | CH15: 0.2941338956 | CI15: 0.2579101145 | CJ15: 0.2754889667 | CK15: 0.2691027462 | CL15: 0.2038068473 | CM15: 0.110277909 | CN15: 0.1905965388 | CO15: 0.1917674005 | CP15: 0.1794914186 | CQ15: 0.09292342365 | CR15: 0.2135464132 | CS15: 0.193538028 | CT15: 0.2899588525 | CU15: 0.2148085773 | CV15: 0.2693807185 | CW15: 0.2473701656 | CX15: 0.1544439971 | CY15: 0.1493721306 | CZ15: 0.1484761059 | DA15: 0.1198710382 | DB15: 0.1843978584 | DC15: 0.1575044572 | DD15: 0.1555835307 | DE15: 0.1031125486 | DF15: 0.1801388681 | DG15: 0.1845954478 | DH15: 0.1952917993 | DI15: 0.1857564032 | DJ15: 0.1440061986 | DK15: 0.2027410567 | DL15: 0.2195745647 | DM15: 0.148024112 | DN15: 0.1442055762 | DO15: 0.1399365723 | DP15: 0.101524049 | DQ15: 0.09207822978 | DR15: 0.07780706584 | DS15: 0.07349812686 | DT15: 0.06345160306 | DU15: 0.09186672866 | DV15: 0.05739109218 | DW15: 0.09670999646 | DX15: -0.01378632486 | DY15: 0.05464704931 | DZ15: 0.1225762308 | EA15: 0.07953553498 | EB15: 0.07500986755 | EC15: 0.08978480399 | ED15: 0.03999899328 | EE15: 0.04929754436 | EF15: 0.05853052437 | EG15: 0.02769279778 | EH15: -0.05776924193 | EI15: 0.01159360111 | EJ15: -0.02132571042 | EK15: 0.07734732926 | EL15: 0.01329446137 | EM15: -0.0215898782 | EN15: -0.09898127913 | EO15: -0.06636224687 | EP15: -0.07351646721 | EQ15: -0.02710387409 | ER15: -0.07497119009 | ES15: -0.02696974576 | ET15: 0.00139118135 | EU15: 0.01617536843 | EV15: -0.003596565127 | EW15: 0.03684955537 | EX15: 0.06462505758 | EY15: 0.03511191905 | EZ15: 0.04022124708 | FA15: -0.07050227821 | FB15: -0.05824524462 | FC15: -0.08422287405 | FD15: -0.0827486068 | FE15: -0.09238863885 | FF15: -0.1143196467 | FG15: -0.07580284178 | FH15: -0.08038968742 | FI15: -0.06235530078 | FJ15: -0.06739959419 | FK15: 0.0139773041 | FL15: -0.003175351024 | FM15: -0.02336315215 | FN15: -0.09920257926 | FO15: -0.1256990995 | FP15: -0.104109617 | FQ15: -0.1043300074 | FR15: -0.06873778403 | FS15: -0.04203744233 | FT15: -0.07023972571 | FU15: 0.0118947655 | FV15: 0.01411295235 | FW15: 0.007678970695
B16: Value - InFlow | E16: 0 | F16: 0 | G16: 0 | H16: 0 | I16: 0 | J16: -16.66 | K16: 12.54 | L16: 34.51 | M16: 20.99 | N16: -215.355 | O16: -278.495 | P16: -559.775 | Q16: -617.555 | R16: -566.1828182 | S16: -586.2828182 | T16: -349.5420731 | U16: -328.2900596 | V16: -353.7311693 | W16: -230.9744811 | X16: -222.260383 | Y16: -329.5737834 | Z16: -229.7913104 | AA16: -180.9011493 | AB16: 47.15487322 | AC16: -162.5050437 | AD16: -47.51710039 | AE16: -158.4324494 | AF16: -115.1366274 | AG16: -54.17799798 | AH16: -24.36192796 | AI16: 12.57594491 | AJ16: -73.19161369 | AK16: -205.9740746 | AL16: -50.8676615 | AM16: 30.09055963 | AN16: 24.65290878 | AO16: 108.7311366 | AP16: -35.19123765 | AQ16: -41.64969028 | AR16: -40.52283478 | AS16: -162.8359781 | AT16: -23.69380024 | AU16: -35.7398097 | AV16: 205.7217239 | AW16: 255.9645418 | AX16: 125.2849492 | AY16: -218.5798969 | AZ16: 222.2350087 | BA16: 603.6935186 | BB16: 743.3101068 | BC16: 905.4341511 | BD16: 890.2054239 | BE16: 848.3858033 | BF16: 862.7119187 | BG16: 889.0596883 | BH16: 888.9522009 | BI16: 888.9522009 | BJ16: 889.1415033 | BK16: 1239.66021 | BL16: 1327.465401 | BM16: 1331.550905 | BN16: 971.5555595 | BO16: 1539.153732 | BP16: 1646.985396 | BQ16: 1653.568328 | BR16: 1315.556677 | BS16: 1343.14821 | BT16: 1881.473156 | BU16: 1925.720377 | BV16: 2059.527835 | BW16: 2191.443453 | BX16: 2231.88109 | BY16: 2288.152368 | BZ16: 2411.391492 | CA16: 2283.146872 | CB16: 2297.551499 | CC16: 2491.24312 | CD16: 2305.17126 | CE16: 2285.583667 | CF16: 2456.791383 | CG16: 2567.890865 | CH16: 2696.344927 | CI16: 2491.888699 | CJ16: 2772.511935 | CK16: 2856.234001 | CL16: 2962.646135 | CM16: 2965.715831 | CN16: 2947.068993 | CO16: 3098.703295 | CP16: 2999.999257 | CQ16: 3279.950347 | CR16: 3432.67333 | CS16: 3221.613255 | CT16: 3434.901556 | CU16: 3474.733606 | CV16: 3308.548165 | CW16: 3107.946141 | CX16: 3198.293704 | CY16: 3124.247019 | CZ16: 2952.73976 | DA16: 3336.972575 | DB16: 3651.489239 | DC16: 3733.232458 | DD16: 3920.219305 | DE16: 4379.193694 | DF16: 4553.125753 | DG16: 4616.011826 | DH16: 3840.244388 | DI16: 3712.473964 | DJ16: 4304.304759 | DK16: 4220.876408 | DL16: 4601.060001 | DM16: 4833.918549 | DN16: 4833.918549 | DO16: 4779.295605 | DP16: 4700.552332 | DQ16: 4178.964355 | DR16: 3926.208608 | DS16: 3849.875819 | DT16: 4323.855107 | DU16: 3930.567123 | DV16: 3827.620076 | DW16: 3756.811698 | DX16: 3576.48007 | DY16: 4234.681022 | DZ16: 4741.57204 | EA16: 4844.074032 | EB16: 4862.946354 | EC16: 5057.967694 | ED16: 4997.140242 | EE16: 5377.595499 | EF16: 4460.387164 | EG16: 3725.34619 | EH16: 2812.650534 | EI16: 3651.803535 | EJ16: 3001.718064 | EK16: 4035.213196 | EL16: 3754.197278 | EM16: 3047.272212 | EN16: 1264.660284 | EO16: 2081.982522 | EP16: 1917.020649 | EQ16: 3224.25948 | ER16: 2782.164582 | ES16: 3406.916887 | ET16: 4268.854113 | EU16: 4439.417272 | EV16: 5125.469708 | EW16: 5289.395254 | EX16: 4898.301158 | EY16: 3865.591746 | EZ16: 4062.66262 | FA16: 2822.218034 | FB16: 2077.823572 | FC16: 1685.372918 | FD16: 1984.266344 | FE16: 1750.170576 | FF16: 2056.020077 | FG16: 2867.807744 | FH16: 2851.070493 | FI16: 3459.928144 | FJ16: 3462.054617 | FK16: 3957.313025 | FL16: 3995.748367 | FM16: 3262.613385 | FN16: 2079.957359 | FO16: 2206.944127 | FP16: 2100.844129 | FQ16: 2100.844129 | FR16: 3198.852945 | FS16: 3582.210021 | FT16: 3350.279971 | FU16: 4083.632694 | FV16: 4640.615188 | FW16: 4429.499601
B17: Percentage Off V-ATH | E17: 0 | F17: 0 | G17: 0 | H17: 0 | I17: 0 | J17: -0.007404444444 | K17: 0 | L17: 0 | M17: -0.01052541436 | N17: -0.07607375225 | O17: -0.09529731984 | P17: -0.1809356647 | Q17: -0.1985273298 | R17: -0.1136704857 | S17: -0.117474055 | T17: -0.07267505845 | U17: -0.06865349097 | V17: -0.07346777076 | W17: -0.03644507058 | X17: -0.03524882016 | Y17: -0.04998054549 | Z17: -0.03628264775 | AA17: -0.02320113278 | AB17: 0 | AC17: -0.03957972194 | AD17: -0.01787223064 | AE17: -0.02817362742 | AF17: -0.02224038046 | AG17: -0.01388662745 | AH17: -0.009800641814 | AI17: -0.004738686365 | AJ17: -0.01649224787 | AK17: -0.02665313467 | AL17: -0.01032125263 | AM17: -0.001796781648 | AN17: -0.002369337421 | AO17: 0 | AP17: -0.01681585412 | AQ17: -0.01757045811 | AR17: -0.01743879659 | AS17: -0.02524155602 | AT17: -0.01230860174 | AU17: -0.01342825139 | AV17: 0 | AW17: 0 | AX17: -0.01332654142 | AY17: -0.03952572383 | AZ17: -0.002809398033 | BA17: 0 | BB17: 0 | BC17: 0 | BD17: -0.001203335025 | BE17: -0.004507814361 | BF17: -0.003375801405 | BG17: -0.001117296329 | BH17: -0.001124630632 | BI17: -0.001124630632 | BJ17: -0.001111713764 | BK17: 0 | BL17: 0 | BM17: 0 | BN17: -0.02238561114 | BO17: 0 | BP17: 0 | BQ17: 0 | BR17: -0.01942197397 | BS17: -0.01783657882 | BT17: 0 | BU17: 0 | BV17: 0 | BW17: 0 | BX17: 0 | BY17: 0 | BZ17: 0 | CA17: -0.007061387363 | CB17: -0.005646435307 | CC17: 0 | CD17: -0.009670469753 | CE17: -0.01068847015 | CF17: -0.001621926586 | CG17: 0 | CH17: 0 | CI17: -0.009999646813 | CJ17: 0 | CK17: 0 | CL17: 0 | CM17: 0 | CN17: -0.0008586793855 | CO17: 0 | CP17: -0.004138759133 | CQ17: 0 | CR17: 0 | CS17: -0.009104216411 | CT17: 0 | CU17: 0 | CV17: -0.00686015555 | CW17: -0.01514103192 | CX17: -0.01141147333 | CY17: -0.0133647339 | CZ17: -0.01990463862 | DA17: -0.005253095528 | DB17: 0 | DC17: 0 | DD17: 0 | DE17: 0 | DF17: 0 | DG17: 0 | DH17: -0.02641718743 | DI17: -0.03076815018 | DJ17: -0.01061455226 | DK17: -0.01345553561 | DL17: -0.0005091540844 | DM17: 0 | DN17: 0 | DO17: -0.001846372837 | DP17: -0.004508064609 | DQ17: -0.02213885875 | DR17: -0.02873962391 | DS17: -0.03115644844 | DT17: -0.01614946672 | DU17: -0.02860162599 | DV17: -0.02996370036 | DW17: -0.03207210168 | DX17: -0.03744168438 | DY17: -0.01784299013 | DZ17: -0.002595175352 | EA17: 0 | EB17: 0 | EC17: 0 | ED17: -0.001854045127 | EE17: 0 | EF17: -0.02687585581 | EG17: -0.04841387989 | EH17: -0.07515750607 | EI17: -0.05056881212 | EJ17: -0.06961748697 | EK17: -0.03715670211 | EL17: -0.04493513059 | EM17: -0.06450258468 | EN17: -0.1138446985 | EO17: -0.09122148684 | EP17: -0.09076299738 | EQ17: -0.05647709989 | ER17: -0.06807224227 | ES17: -0.05168641207 | ET17: -0.02763039682 | EU17: -0.02337987651 | EV17: -0.006283102393 | EW17: -0.002197994783 | EX17: -0.01137720622 | EY17: -0.03589105278 | EZ17: -0.03121310068 | FA17: -0.0606580422 | FB17: -0.07832803861 | FC17: -0.08367151076 | FD17: -0.07689812049 | FE17: -0.08220309497 | FF17: -0.07527206921 | FG17: -0.05440968098 | FH17: -0.0547725278 | FI17: -0.04157310466 | FJ17: -0.04152700487 | FK17: -0.02951077151 | FL17: -0.02871215814 | FM17: -0.04394531022 | FN17: -0.06851865559 | FO17: -0.06588011181 | FP17: -0.0653682136 | FQ17: -0.0653682136 | FR17: -0.04346393504 | FS17: -0.03581630958 | FT17: -0.0404431034 | FU17: -0.02482299045 | FV17: -0.01413800702 | FW17: -0.01818798449

Sheet Portfolio
A1: FundISIN | B1: FundName | C1: FundAcro | D1: FundCurr | E1: Data Type | F1: Name (Curr) (Acro) | G1: Date | H1: Position | I1: Price | J1: Value | K1: Days | L1: Highest | M1: Lowest | N1: S/L | O1: Realised | P1: RealisedYTD | Q1: Unrealised | R1: UnrealisedYTD | S1: AVG200 | T1: SinceLast | U1: ROI Total | V1: ROI YTD | W1: XIRR Total | X1: XIRR YTD | Y1: XIRR 1Y | Z1: AvgBUY | AA1: AvgSELL | AB1: TA | AC1: Net Inleg | AD1: RealCost | AE1: DividTotal | AF1: DividYTD | AG1: DivEURT | AH1: DivEURYTD | AI1: Div1Y | AJ1: Div1YAbs | AK1: YoC1Y
A2: IE00B3RBWM25 | B2: Vanguard FTSE All-World UCITS ETF | C2: VWRL | D2: EUR | E2: XAMS:VWRL | F2: =B2 & " (" & D2 & ") (" & C2 & ")" -> Vanguard FTSE All-World UCITS ETF (EUR) (VWRL) | G2: =MostRecent(Triggerfield) -> 2023-02-11 | H2: =Portfolio($G2,$A2,Triggerfield) -> 236 | I2: =CurrentPrice($G2,$A2,Triggerfield) -> 99.2 | J2: =FundValue($G2,$A2,Triggerfield) -> 23411.2 | K2: =NumberOfDays($G2,$A2,Triggerfield) -> 1110 | L2: =MaxPrice($G2,$A2,Triggerfield) -> 109.76 | M2: =MinPrice($G2,$A2,Triggerfield) -> 62.81 | N2: =StopLoss($G2,$A2,Triggerfield) -> -0.09620991254 | O2: =RealisedFund($G2, $A2,Triggerfield) -> 605.1 | P2: =RealisedFundYTD($G2,$A2,Triggerfield) -> 0 | Q2: =UnrealisedFund($G2, $A2,Triggerfield) -> 1716.29 | R2: =UnrealisedFundYTD($G2, $A2, Triggerfield) -> 1501.26 | S2: =AVGXDay($G2,$A2,200,Triggerfield) -> 97.79741935 | T2: =SinceLast($G2,$A2,Triggerfield) -> -0.007900790079 | U2: =FundRoiTotal($G2, $A2, Triggerfield) -> 0.1070015962 | V2: =FundRoiYTD($G2, $A2, Triggerfield) -> 0.0717049154 | W2: =XIRRFundtotal($G2, $A2, Triggerfield) -> 0.07763621509 | X2: =XIRRFundYTD($G2, $A2, Triggerfield) -> 0.8320752263 | Y2: =XIRRFundPeriod($G2-365, $G2, $A2, Triggerfield) -> -0.05953778923 | Z2: =FundAvgPrice("BUY", $A2, Triggerfield) -> 91.92758475 | AA2: =FundAvgPrice("SELL", $A2, Triggerfield) -> 0 | AB2: =TechSignal(G2,A2,Triggerfield) -> ▼ | AC2: =NetFundInlay($A2,"01-01-" & YearStart,$G2,Triggerfield) -> 21694.91 | AD2: =IFERROR((($J2-$O2)/$H2),0) -> 96.63601695 | AE2: =DividendReturnTotal($G2, $A2,Triggerfield) -> 0.02789133488 | AF2: =DividendReturnYTD($G2, $A2,Triggerfield) -> 0 | AG2: =DividendAmountTotal($G2, $A2,Triggerfield) -> 605.1 | AH2: =DividendAmountYTD($G2, $A2,Triggerfield) -> 0 | AI2: =DividendReturn1Y($G2, $A2,Triggerfield) -> 0.01975806452 | AJ2: =DividendReturn1YAbs($G2, $A2,Triggerfield) -> 1.96 | AK2: =IFERROR($AJ2/$Z2,0) -> 0.02132113016
A3: IE00BF4RFH31 | B3: iShares MSCI World Small Cap | C3: IUSN | D3: EUR | E3: XFRA:IUSN | F3: =B3 & " (" & D3 & ") (" & C3 & ")" -> iShares MSCI World Small Cap (EUR) (IUSN) | G3: =MostRecent(Triggerfield) -> 2023-02-11 | H3: =Portfolio($G3,$A3,Triggerfield) -> 720 | I3: =CurrentPrice($G3,$A3,Triggerfield) -> 6.118 | J3: =FundValue($G3,$A3,Triggerfield) -> 4404.96 | K3: =NumberOfDays($G3,$A3,Triggerfield) -> 899 | L3: =MaxPrice($G3,$A3,Triggerfield) -> 6.752 | M3: =MinPrice($G3,$A3,Triggerfield) -> 3.2365 | N3: =StopLoss($G3,$A3,Triggerfield) -> -0.09389810427 | O3: =RealisedFund($G3, $A3,Triggerfield) -> 0 | P3: =RealisedFundYTD($G3,$A3,Triggerfield) -> 0 | Q3: =UnrealisedFund($G3, $A3,Triggerfield) -> 298.74 | R3: =UnrealisedFundYTD($G3, $A3, Triggerfield) -> 344.16 | S3: =AVGXDay($G3,$A3,200,Triggerfield) -> 5.923064516 | T3: =SinceLast($G3,$A3,Triggerfield) -> -0.01513200258 | U3: =FundRoiTotal($G3, $A3, Triggerfield) -> 0.07275304294 | V3: =FundRoiYTD($G3, $A3, Triggerfield) -> 0.08475177305 | W3: =XIRRFundtotal($G3, $A3, Triggerfield) -> 0.04266404212 | X3: =XIRRFundYTD($G3, $A3, Triggerfield) -> 1.063129318 | Y3: =XIRRFundPeriod($G3-365, $G3, $A3, Triggerfield) -> 0.02862279117 | Z3: =FundAvgPrice("BUY", $A3, Triggerfield) -> 5.703086806 | AA3: =FundAvgPrice("SELL", $A3, Triggerfield) -> 0 | AB3: =TechSignal(G3,A3,Triggerfield) -> ▼ | AC3: =NetFundInlay($A3,"01-01-" & YearStart,$G3,Triggerfield) -> 4106.2225 | AD3: 6.118 | AE3: =DividendReturnTotal($G3, $A3,Triggerfield) -> 0 | AF3: =DividendReturnYTD($G3, $A3,Triggerfield) -> 0 | AG3: =DividendAmountTotal($G3, $A3,Triggerfield) -> 0 | AH3: =DividendAmountYTD($G3, $A3,Triggerfield) -> 0 | AI3: =DividendReturn1Y($G3, $A3,Triggerfield) -> 0 | AJ3: =DividendReturn1YAbs($G3, $A3,Triggerfield) -> 0 | AK3: 0
A4: NL0011683594 | B4: VanEck Dev Markets Dividend Leaders ETF | C4: TDIV | D4: EUR | E4: XAMS:TDIV | F4: VanEck Dev Markets Dividend Leaders ETF (EUR) (TDIV) | G4: =MostRecent(Triggerfield) -> 2023-02-11 | H4: =Portfolio($G4,$A4,Triggerfield) -> 190 | I4: =CurrentPrice($G4,$A4,Triggerfield) -> 36.105 | J4: =FundValue($G4,$A4,Triggerfield) -> 6859.95 | K4: =NumberOfDays($G4,$A4,Triggerfield) -> 1081 | L4: =MaxPrice($G4,$A4,Triggerfield) -> 36.105 | M4: =MinPrice($G4,$A4,Triggerfield) -> 20.155 | N4: =StopLoss($G4,$A4,Triggerfield) -> 0 | O4: =RealisedFund($G4, $A4,Triggerfield) -> 442.64 | P4: =RealisedFundYTD($G4,$A4,Triggerfield) -> 0 | Q4: =UnrealisedFund($G4, $A4,Triggerfield) -> 1845.33 | R4: =UnrealisedFundYTD($G4, $A4, Triggerfield) -> 341.05 | S4: =AVGXDay($G4,$A4,200,Triggerfield) -> 33.89403226 | T4: =SinceLast($G4,$A4,Triggerfield) -> 0.007956448911 | U4: =FundRoiTotal($G4, $A4, Triggerfield) -> 0.4562598961 | V4: =FundRoiYTD($G4, $A4, Triggerfield) -> 0.05231710871 | W4: =XIRRFundtotal($G4, $A4, Triggerfield) -> 0.2024824321 | X4: =XIRRFundYTD($G4, $A4, Triggerfield) -> 0.5745593488 | Y4: =XIRRFundPeriod($G4-365, $G4, $A4, Triggerfield) -> 0.1542947233 | Z4: =FundAvgPrice("BUY", $A4, Triggerfield) -> 26.3927441 | AA4: =FundAvgPrice("SELL", $A4, Triggerfield) -> 0 | AB4: =TechSignal(G4,A4,Triggerfield) -> ▲ | AC4: =NetFundInlay($A4,"01-01-" & YearStart,$G4,Triggerfield) -> 5014.621379 | AD4: 33.77531579 | AE4: =DividendReturnTotal($G4, $A4,Triggerfield) -> 0.08826989882 | AF4: =DividendReturnYTD($G4, $A4,Triggerfield) -> 0 | AG4: =DividendAmountTotal($G4, $A4,Triggerfield) -> 442.64 | AH4: =DividendAmountYTD($G4, $A4,Triggerfield) -> 0 | AI4: =DividendReturn1Y($G4, $A4,Triggerfield) -> 0.03656003324 | AJ4: =DividendReturn1YAbs($G4, $A4,Triggerfield) -> 1.32 | AK4: 0.05001374601
A5: LU0378818131 | B5: Xtrackers II Global Gov Bond UCITS ETF | C5: DBZB | D5: EUR | E5: XETR:DBZB | F5: Xtrackers II Global Gov Bond UCITS ETF (EUR) (DBZB) | G5: =MostRecent(Triggerfield) -> 2023-02-11 | H5: =Portfolio($G5,$A5,Triggerfield) -> 8 | I5: =CurrentPrice($G5,$A5,Triggerfield) -> 203.49 | J5: =FundValue($G5,$A5,Triggerfield) -> 1627.92 | K5: =NumberOfDays($G5,$A5,Triggerfield) -> 991 | L5: =MaxPrice($G5,$A5,Triggerfield) -> 246.69 | M5: =MinPrice($G5,$A5,Triggerfield) -> 198.97 | N5: =StopLoss($G5,$A5,Triggerfield) -> -0.1751185699 | O5: =RealisedFund($G5, $A5,Triggerfield) -> 0 | P5: =RealisedFundYTD($G5,$A5,Triggerfield) -> 0 | Q5: =UnrealisedFund($G5, $A5,Triggerfield) -> -339.22 | R5: =UnrealisedFundYTD($G5, $A5, Triggerfield) -> 18.32 | S5: =AVGXDay($G5,$A5,200,Triggerfield) -> 206.5303226 | T5: =SinceLast($G5,$A5,Triggerfield) -> -0.01156069364 | U5: =FundRoiTotal($G5, $A5, Triggerfield) -> -0.1724432425 | V5: =FundRoiYTD($G5, $A5, Triggerfield) -> 0.01138170974 | W5: =XIRRFundtotal($G5, $A5, Triggerfield) -> -0.07397908866 | X5: =XIRRFundYTD($G5, $A5, Triggerfield) -> 0.1060030878 | Y5: =XIRRFundPeriod($G5-365, $G5, $A5, Triggerfield) -> -0.1163417038 | Z5: =FundAvgPrice("BUY", $A5, Triggerfield) -> 245.8921429 | AA5: =FundAvgPrice("SELL", $A5, Triggerfield) -> 0 | AB5: =TechSignal(G5,A5,Triggerfield) -> ▼ | AC5: =NetFundInlay($A5,"01-01-" & YearStart,$G5,Triggerfield) -> 1967.137143 | AD5: 203.49 | AE5: =DividendReturnTotal($G5, $A5,Triggerfield) -> 0 | AF5: =DividendReturnYTD($G5, $A5,Triggerfield) -> 0 | AG5: =DividendAmountTotal($G5, $A5,Triggerfield) -> 0 | AH5: =DividendAmountYTD($G5, $A5,Triggerfield) -> 0 | AI5: =DividendReturn1Y($G5, $A5,Triggerfield) -> 0 | AJ5: =DividendReturn1YAbs($G5, $A5,Triggerfield) -> 0 | AK5: 0
A6: IE00B8GKDB10 | B6: Vanguard FTSE All-World Hi Div Yld | C6: VHYL | D6: EUR | E6: XAMS:VHYL | F6: =B6 & " (" & D6 & ") (" & C6 & ")" -> Vanguard FTSE All-World Hi Div Yld (EUR) (VHYL) | G6: =MostRecent(Triggerfield) -> 2023-02-11 | H6: =Portfolio($G6,$A6,Triggerfield) -> 72 | I6: =CurrentPrice($G6,$A6,Triggerfield) -> 56.588 | J6: =FundValue($G6,$A6,Triggerfield) -> 4074.336 | K6: =NumberOfDays($G6,$A6,Triggerfield) -> 687 | L6: =MaxPrice($G6,$A6,Triggerfield) -> 58.98 | M6: =MinPrice($G6,$A6,Triggerfield) -> 37.036 | N6: =StopLoss($G6,$A6,Triggerfield) -> -0.04055612072 | O6: =RealisedFund($G6, $A6,Triggerfield) -> 218.87 | P6: =RealisedFundYTD($G6,$A6,Triggerfield) -> 0 | Q6: =UnrealisedFund($G6, $A6,Triggerfield) -> 220.556 | R6: =UnrealisedFundYTD($G6, $A6, Triggerfield) -> 138.672 | S6: =AVGXDay($G6,$A6,200,Triggerfield) -> 55.78045161 | T6: =SinceLast($G6,$A6,Triggerfield) -> 0.001734820322 | U6: =FundRoiTotal($G6, $A6, Triggerfield) -> 0.1140246719 | V6: =FundRoiYTD($G6, $A6, Triggerfield) -> 0.03523471516 | W6: =XIRRFundtotal($G6, $A6, Triggerfield) -> 0.07387316525 | X6: =XIRRFundYTD($G6, $A6, Triggerfield) -> 0.3610755742 | Y6: =XIRRFundPeriod($G6-365, $G6, $A6, Triggerfield) -> 0.03226875365 | Z6: =FundAvgPrice("BUY", $A6, Triggerfield) -> 53.5248 | AA6: =FundAvgPrice("SELL", $A6, Triggerfield) -> 0 | AB6: =TechSignal(G6,A6,Triggerfield) -> ▼ | AC6: =NetFundInlay($A6,"01-01-" & YearStart,$G6,Triggerfield) -> 3853.7856 | AD6: 53.54813889 | AE6: =DividendReturnTotal($G6, $A6,Triggerfield) -> 0.05679358967 | AF6: =DividendReturnYTD($G6, $A6,Triggerfield) -> 0 | AG6: =DividendAmountTotal($G6, $A6,Triggerfield) -> 218.87 | AH6: =DividendAmountYTD($G6, $A6,Triggerfield) -> 0 | AI6: =DividendReturn1Y($G6, $A6,Triggerfield) -> 0.0369336255 | AJ6: =DividendReturn1YAbs($G6, $A6,Triggerfield) -> 2.09 | AK6: 0.03904732012
A7: DE000A0F5UH1 | B7: iShares STOXX Global Select Dividend 100 UCITS ETF | C7: ISPA | D7: EUR | E7: XETR:ISPA | F7: iShares STOXX Global Select Dividend 100 UCITS ETF (EUR) (ISPA) | G7: =MostRecent(Triggerfield) -> 2023-02-11 | H7: =Portfolio($G7, $A7, Triggerfield) -> 0 | I7: =CurrentPrice($G7, $A7, Triggerfield) -> 0 | J7: =FundValue($G7, $A7, Triggerfield) -> 0 | K7: =NumberOfDays($G7, $A7, Triggerfield) -> 0 | L7: =MaxPrice($G7, $A7, Triggerfield) -> 31.105 | M7: =MinPrice($G7, $A7, Triggerfield) -> 19.734 | N7: =StopLoss($G7, $A7, Triggerfield) -> 0 | O7: =RealisedFund($G7, $A7, Triggerfield) -> 0 | P7: =RealisedFundYTD($G7, $A7, Triggerfield) -> 0 | Q7: =UnrealisedFund($G7, $A7, Triggerfield) -> 0 | R7: =UnrealisedFundYTD($G7, $A7, Triggerfield) -> 0 | S7: =AVGXDay($G7, $A7, 200, Triggerfield) -> 0 | T7: =SinceLast($G7, $A7, Triggerfield) -> 0 | U7: =FundRoiTotal($G7, $A7, Triggerfield) -> 0 | V7: =FundRoiYTD($G7, $A7, Triggerfield) -> 0 | W7: =XIRRFundtotal($G7, $A7, Triggerfield) -> 0 | X7: =XIRRFundYTD($G7, $A7, Triggerfield) -> 0 | Y7: =XIRRFundPeriod($G7 - 365, $G7, $A7, Triggerfield) -> 0 | Z7: =FundAvgPrice("BUY", $A7, Triggerfield) -> 0 | AA7: =FundAvgPrice("SELL", $A7, Triggerfield) -> 0 | AB7: =TechSignal($G7, $A7,Triggerfield) -> ● | AC7: =NetFundInlay($A7,"01-01-" & YearStart,$G7,Triggerfield) -> 0 | AD7: 0 | AE7: =DividendReturnTotal($G7, $A7,Triggerfield) -> 0 | AF7: =DividendReturnYTD($G7, $A7,Triggerfield) -> 0 | AG7: =DividendAmountTotal($G7, $A7,Triggerfield) -> 0 | AH7: =DividendAmountYTD($G7, $A7,Triggerfield) -> 0 | AI7: =DividendReturn1Y($G7, $A7,Triggerfield) -> 0 | AJ7: =DividendReturn1YAbs($G7, $A7,Triggerfield) -> 0 | AK7: 0

Sheet Settings
A1: Settings
B3: Financial Year | C3: 2023 | F3: Currency | G3: EUR | H3: Euro
B4: Start Year | C4: 2020 | G4: USD | H4: US Dollar
G5: NOK | H5: Noorse Kroon
B6: Default Provider | C6: Saxo
K7: HANDLE WITH CARE!!
B8: Default Currency | C8: EUR | F8: Accounts | G8: EUR | H8: EUR Account
G9: USD | H9: USD Account
B10: API-key Exchange Rate | D10: <<< Vul hier jouw eigen API-key in >>> | G10: Portfolio | H10: Beleggingsportefeuille
G11: Other | H11: Tegenrekening
F14: Actions | G14: BUY | H14: Buy
G15: SELL | H15: Sell
G16: DEPOS | H16: Deposit
A17: Fund List | G17: DIVCA | H17: Dividend (Cash)
G18: DIVSH | H18: Dividend (Shares)
B19: IUSN | C19: EUR | D19: iShares MSCI World Small Cap | G19: SPLIT | H19: Split
B20: ISPA | C20: EUR | D20: iShares STOXX Global Select Dividend 100 UCITS ETF | G20: FEE | H20: Fee
B21: PORT | C21: EUR | D21: Portfolio | G21: WARU | H21: Warrants Uitoefening
B22: TDIV | C22: EUR | D22: VanEck Dev Markets Dividend Leaders ETF
B23: VHYL | C23: EUR | D23: Vanguard FTSE All-World Hi Div Yld
B24: DBZB | C24: EUR | D24: Xtrackers II Global Gov Bond UCITS ETF | F24: Quarters | G24: 1
G25: 2
G26: 3
G27: 4
G28: YTD
F31: ChartTerm | G31: YTD
G32: 3M
G33: 6M
G34: 1Y
G35: 2Y
G36: 3Y
G37: 5Y
G38: 10Y
G39: 15Y
G40: 20Y
F43: StopLoss | G43: -0.1
G44: -0.2
F47: Assetmanager | G47: No
F50: Years | G50: 2020
G51: 2021
G52: 2022
G53: 2023
F56: FundChart | G56: Price/Value
G57: Price
G58: Inflow/Value
F61: ChartType | G61: Price
G62: Value
G63: Portfolio
G64: Area
G65: Inflow
G66: Inflow 2
G67: EUR/USD
G68: EUR/USD Portfolio
G69: XIRR 1Y
G70: Dividend Return 1Y
G71: Dividend Yield On Cost 1Y
G72: Percentage Off (Virtual) High
G73: Account Balance
